Service Area,Service Division,Expense Type,Expense Code,Detailed Expense Type,Payment Date,Transaction Number,Amount Exc Vat,Supplier Name
Assistant Chief Executive,Partnerships & Community Engagement Div.,Cap Exp on Grants & Other Financial Assistance (REFCUS),918004,Contributions to other bodies,01-Oct-2012,2500326-12NB-BASH008,"20,000.00",BUTTERWICK HOSPICE.
Assistant Chief Executive,Partnerships & Community Engagement Div.,Supplies and Services,384085,Miscellaneous Expenses,01-Oct-2012,2500454-TOME10-12JOPP17-12,550.00,JACK DRUM ARTS LTD.
Assistant Chief Executive,Partnerships & Community Engagement Div.,Transfer Payments,525030,Other,02-Oct-2012,2501400-CBG,"3,500.00",FERRYHILL LADDER CENTRE LTD.
Assistant Chief Executive,Service Management & Administration,Supplies and Services,342013,Computers and Communications,02-Oct-2012,2501443-11896977,855.32,INSIGHT DIRECT (UK) LTD.
Assistant Chief Executive,Partnerships & Community Engagement Div.,Supplies and Services,384085,Miscellaneous Expenses,03-Oct-2012,212197-HARN05-12,500.00,BISHOP AUCKLAND TOWN FC.
Assistant Chief Executive,Partnerships & Community Engagement Div.,Supplies and Services,384085,Miscellaneous Expenses,03-Oct-2012,212258-HUNJ02-12,622.00,HAVANNAH PARTNERSHIP.
Assistant Chief Executive,Partnerships & Community Engagement Div.,Transfer Payments,525030,Other,03-Oct-2012,212274-PP,"3,000.00",KELLOE VILLAGE COMMUNITY PARTNERSHIP.
Assistant Chief Executive,Partnerships & Community Engagement Div.,Transfer Payments,525030,Other,04-Oct-2012,2501850-CB2012/13,"2,000.00",CONSETT CITIZENS HOUSE COMMUNITY ASSOCIATION.
Assistant Chief Executive,Partnerships & Community Engagement Div.,Supplies and Services,384086,Miscellaneous Expenses,04-Oct-2012,2501851-12NB-STAN010,"15,870.00",CONSETT YMCA.
Assistant Chief Executive,Partnerships & Community Engagement Div.,Supplies and Services,384086,Miscellaneous Expenses,04-Oct-2012,2501973-12NB-EDRC006,"2,000.00",FUTURE LEISURE IN COXHOE (FLIC).
Assistant Chief Executive,Assistant Chief Executive Financing,Supplies and Services,340001,Postages,04-Oct-2012,2502318-9039972616,"6,656.09",ROYAL MAIL GROUP PLC.
Assistant Chief Executive,Partnerships & Community Engagement Div.,Cap Exp on Grants & Other Financial Assistance (REFCUS),918004,Contributions to other bodies,04-Oct-2012,2502339-12NB-EDUR025,"2,515.00",SEAHAM TOWN COUNCIL.
Assistant Chief Executive,Partnerships & Community Engagement Div.,Supplies and Services,384085,Miscellaneous Expenses,08-Oct-2012,2503068-LETJ07-12,500.00,DAISY ARTS.
Assistant Chief Executive,Partnerships & Community Engagement Div.,Transfer Payments,525030,Other,08-Oct-2012,2503146-FF2012,"5,000.00",KIDS FOR KIDS UK.
Assistant Chief Executive,Partnerships & Community Engagement Div.,Transfer Payments,525030,Other,08-Oct-2012,2503204-GCB12/13,"2,000.00",PITTINGTON VILLAGE HALL ASSOCIATION.
Assistant Chief Executive,Policy & Communications Division,Supplies and Services,332029,"Printing, Stationery and Gen Off Exps",09-Oct-2012,2503901-0000042982,"10,699.88",ACORN WEB OFFSET LTD.
Assistant Chief Executive,Assistant Chief Executive Financing,Supplies and Services,340001,Postages,09-Oct-2012,2504071-9040040777,"1,758.86",ROYAL MAIL GROUP PLC.
Assistant Chief Executive,Assistant Chief Executive Financing,Supplies and Services,340001,Postages,09-Oct-2012,2504071-9040106857,"2,242.55",ROYAL MAIL GROUP PLC.
Assistant Chief Executive,Planning & Performance Division,Supplies and Services,338047,Services,09-Oct-2012,2504090-PSI-9042636,"4,875.00",TECHNOLOGY SERVICES GROUP LTD.
Assistant Chief Executive,Partnerships & Community Engagement Div.,Supplies and Services,384085,Miscellaneous Expenses,10-Oct-2012,212465-MORD09-12PLEM07-12,620.00,COXHOE COMMUNITY PARTNERSHIP.
Assistant Chief Executive,Partnerships & Community Engagement Div.,Cap Exp on Grants & Other Financial Assistance (REFCUS),918004,Contributions to other bodies,10-Oct-2012,212502-12NB-CHES017,"2,745.00",GREAT LUMLEY TODDLER GROUP.
Assistant Chief Executive,Partnerships & Community Engagement Div.,Transfer Payments,525030,Other,10-Oct-2012,212551-GA-2012/13,"2,000.00",MIDDLESTONE MOOR COMMUNITY ASSOCIATION.
Assistant Chief Executive,Policy & Communications Division,Supplies and Services,332029,"Printing, Stationery and Gen Off Exps",10-Oct-2012,2504121-0000042981,"23,924.56",ACORN WEB OFFSET LTD.
Assistant Chief Executive,Partnerships & Community Engagement Div.,Transfer Payments,525030,Other,10-Oct-2012,2504320-EDRC-PB017,"3,000.00",PIONEERING CARE PARTNERSHIP.
Assistant Chief Executive,Partnerships & Community Engagement Div.,Transfer Payments,525030,Other,10-Oct-2012,2504387-EDRC-PB026,"3,000.00",TRIMDON COMMUNITY COLLEGE ASSOCIATION.
Assistant Chief Executive,Partnerships & Community Engagement Div.,Supplies and Services,312009,"Newspapers, Books and Periodicals",11-Oct-2012,2506571-7,636.00,THE BURNHOPE PARTNERSHIP.
Assistant Chief Executive,Partnerships & Community Engagement Div.,Supplies and Services,384086,Miscellaneous Expenses,15-Oct-2012,2506885-12NB-3TWN013,"3,500.00",2D LTD.
Assistant Chief Executive,Partnerships & Community Engagement Div.,Supplies and Services,384086,Miscellaneous Expenses,15-Oct-2012,2506958-12NB-EDUR027,"2,000.00",BLACKHALL COMMUNITY ASSOCIATION.
Assistant Chief Executive,Partnerships & Community Engagement Div.,Transfer Payments,525030,Other,15-Oct-2012,2506980-SGF026,"1,000.00",BUTTERWICK HOSPICE.
Assistant Chief Executive,Partnerships & Community Engagement Div.,Supplies and Services,384085,Miscellaneous Expenses,15-Oct-2012,2507024-TAYT05-12,500.00,COUNDON & LEEHOLME COMMUNITY ASSOCIATION.
Assistant Chief Executive,Partnerships & Community Engagement Div.,Transfer Payments,525030,Other,15-Oct-2012,2507116-DCTY014AB11-MC,"7,595.00",FUTURE LEISURE IN COXHOE (FLIC).
Assistant Chief Executive,Policy & Communications Division,Supplies and Services,312010,"Newspapers, Books and Periodicals",15-Oct-2012,2507265-230775/0,"18,409.30",NATIONAL LEAFLET CO LTD.
Assistant Chief Executive,Assistant Chief Executive Financing,Supplies and Services,340001,Postages,15-Oct-2012,2507370-9040064385,"9,191.60",ROYAL MAIL GROUP PLC.
Assistant Chief Executive,Assistant Chief Executive Financing,Supplies and Services,340001,Postages,15-Oct-2012,2507370-9040326178,"7,503.08",ROYAL MAIL GROUP PLC.
Assistant Chief Executive,Partnerships & Community Engagement Div.,Cap Exp on Grants & Other Financial Assistance (REFCUS),918004,Contributions to other bodies,15-Oct-2012,2507483-24/09/2012,"10,000.00",TUDHOE PCC HALL FUND.
Assistant Chief Executive,Partnerships & Community Engagement Div.,Supplies and Services,384085,Miscellaneous Expenses,15-Oct-2012,2507498-BROD04-12,500.00,VISUAL IMPAIRMENT PROBLEM SOLVING.
Assistant Chief Executive,Partnerships & Community Engagement Div.,Cap Exp on Grants & Other Financial Assistance (REFCUS),918004,Contributions to other bodies,16-Oct-2012,2508213-09NB-CHES009-CDA,"20,000.00",GROUNDWORK NORTH EAST.
Assistant Chief Executive,Partnerships & Community Engagement Div.,Cap Exp on Grants & Other Financial Assistance (REFCUS),918004,Contributions to other bodies,16-Oct-2012,2508213-12NB-CHES018-FW,"5,000.00",GROUNDWORK NORTH EAST.
Assistant Chief Executive,Partnerships & Community Engagement Div.,Supplies and Services,384085,Miscellaneous Expenses,17-Oct-2012,212889-BARD06-12-ROBS07-12,500.00,RBL POPPY APPEAL FESTIVAL OF REMEMBRANCE.
Assistant Chief Executive,Partnerships & Community Engagement Div.,Cap Exp on Grants & Other Financial Assistance (REFCUS),918004,Contributions to other bodies,17-Oct-2012,2508539-12NB-TEES012-PS,"2,000.00",EVENWOOD & BARONY PARISH COUNCIL.
Assistant Chief Executive,Partnerships & Community Engagement Div.,Transfer Payments,525030,Other,17-Oct-2012,2508546-EDRC-PB011,"1,630.00",FISHBURN PANTOMIME GROUP.
Assistant Chief Executive,Partnerships & Community Engagement Div.,Transfer Payments,525030,Other,17-Oct-2012,2508547-EDRC-PB012-OTM,"1,162.00",FISHBURN YOUTH & COMMUNITY CENTRE.
Assistant Chief Executive,Planning & Performance Division,Supplies and Services,384197,Miscellaneous Expenses,17-Oct-2012,2508605-Z015746-Z015768,627.84,IRON MOUNTAIN (UK) LTD.
Assistant Chief Executive,Partnerships & Community Engagement Div.,Supplies and Services,384086,Miscellaneous Expenses,17-Oct-2012,2508822-12NB-DVLY009-WP,"3,812.00",ST JAMES CHURCH & COMMUNITY CENTRE.
Assistant Chief Executive,Partnerships & Community Engagement Div.,Supplies and Services,384086,Miscellaneous Expenses,17-Oct-2012,2508823-12NB-STAN015,"2,940.00",STANLEY COMMUNITY CENTRE.
Assistant Chief Executive,Partnerships & Community Engagement Div.,Transfer Payments,525030,Other,18-Oct-2012,2509318-12AB-3TWN006,"3,982.00",PRE SCHOOL LEARNING ALLIANCE.
Assistant Chief Executive,Assistant Chief Executive Financing,Supplies and Services,340001,Postages,19-Oct-2012,2509970-9040146660,"9,294.17",ROYAL MAIL GROUP PLC.
Assistant Chief Executive,Assistant Chief Executive Financing,Supplies and Services,340001,Postages,19-Oct-2012,2509970-9040240592,"10,490.50",ROYAL MAIL GROUP PLC.
Assistant Chief Executive,Partnerships & Community Engagement Div.,Transfer Payments,525030,Other,23-Oct-2012,2511226-12AB-TEES005,"1,000.00",MID TEESDALE PROJECT PARTNERSHIP.
Assistant Chief Executive,Partnerships & Community Engagement Div.,Supplies and Services,384086,Miscellaneous Expenses,24-Oct-2012,213080-12NBSTAN017-GSHF,"2,000.00",KALAPREMI (UK).
Assistant Chief Executive,Partnerships & Community Engagement Div.,Supplies and Services,384085,Miscellaneous Expenses,24-Oct-2012,213084-MORD10-12PLEM08-12,650.00,KELLOE BOWLS CLUB.
Assistant Chief Executive,Partnerships & Community Engagement Div.,Transfer Payments,525030,Other,24-Oct-2012,2511541-CBG2012/2013,500.00,MARWOOD VILLAGE HALL ASSOCIATION.
Assistant Chief Executive,Partnerships & Community Engagement Div.,Transfer Payments,525030,Other,24-Oct-2012,2511592-CBG2012/2013,"1,074.00",QUEBEC & DISTRICT VILLAGE HALL ASSOCIATION.
Assistant Chief Executive,Partnerships & Community Engagement Div.,Transfer Payments,525030,Other,24-Oct-2012,2511616-G-CB2012/2013,607.00,STAINTON GROVE COMMUNITY ASSOCIATION.
Assistant Chief Executive,Partnerships & Community Engagement Div.,Cap Exp on Grants & Other Financial Assistance (REFCUS),918004,Contributions to other bodies,29-Oct-2012,2512475-12NB-BASH006,"1,885.00",AUCKLAND YOUTH & COMMUNITY CENTRE.
Assistant Chief Executive,Partnerships & Community Engagement Div.,Cap Exp on Grants & Other Financial Assistance (REFCUS),918004,Contributions to other bodies,29-Oct-2012,2512492-9/10/12,"4,000.00",BELLE VUE TRAMPOLINE CLUB.
Assistant Chief Executive,Partnerships & Community Engagement Div.,Supplies and Services,384086,Miscellaneous Expenses,29-Oct-2012,2512576-12NB-3TWN019,"4,000.00",CROOK TOWN AFC.
Assistant Chief Executive,Partnerships & Community Engagement Div.,Supplies and Services,384085,Miscellaneous Expenses,29-Oct-2012,2512611-BELE05-12,620.00,EASTLEA COMMUNITY CENTRE.
Assistant Chief Executive,Partnerships & Community Engagement Div.,Transfer Payments,525030,Other,29-Oct-2012,2512853-12AB-3TWN005/SC,"8,000.00",PARKSIDE SPORTS COLLEGE ACADEMY..
Assistant Chief Executive,Partnerships & Community Engagement Div.,Summary reporting level,710765,Other Grants and Contributions,29-Oct-2012,2512858-R-R/HAP,690.00,PELTON FELL COMMUNITY PARTNERSHIP.
Assistant Chief Executive,Partnerships & Community Engagement Div.,Transfer Payments,525030,Other,30-Oct-2012,2513724-G-CB2012/2013,"3,500.00",DAWDON COMMUNITY ASSOCIATION.
Assistant Chief Executive,Partnerships & Community Engagement Div.,Supplies and Services,384085,Miscellaneous Expenses,31-Oct-2012,213338-MARC04-12,500.00,BEAMISH FC 0405.
Assistant Chief Executive,Partnerships & Community Engagement Div.,Supplies and Services,384085,Miscellaneous Expenses,31-Oct-2012,213387-MARC03-12,500.00,EAST STANLEY JUDO CLUB.
Assistant Chief Executive,Partnerships & Community Engagement Div.,Transfer Payments,525030,Other,31-Oct-2012,213502-12AB-DVLY008,"5,000.00",NORTH EAST AMBULANCE SERVICE NHS TRUST.
Corporate Resources,ICT Services incl. Design and Print,Stock,926900,Stock in hand-Inventory system,01-Oct-2012,2500423-INV0145733,"1,373.00",GV MULTI MEDIA LTD.
Corporate Resources,ICT Services incl. Design and Print,Supplies and Services,332029,"Printing, Stationery and Gen Off Exps",01-Oct-2012,2500436-64471,612.00,HILLPRINT MEDIA LTD.
Corporate Resources,ICT Services incl. Design and Print,Stock,926900,Stock in hand-Inventory system,01-Oct-2012,2500610-OP/L543159,"10,765.38",SPECIALIST COMPUTER CENTRES PLC.
Corporate Resources,ICT Services incl. Design and Print,Supplies and Services,304245,Equipment and Materials,02-Oct-2012,2501289-WN2255539,"1,011.68",ANTALIS MCNAUGHTON LTD.
Corporate Resources,Financing- Resources,Supplies and Services,372009,Subscriptions,02-Oct-2012,2501331-3071159,"1,280.00",CIPFA BUSINESS LTD.
Corporate Resources,ICT Services incl. Design and Print,Stock,926900,Stock in hand-Inventory system,02-Oct-2012,2501355-1157321,635.55,CPC.
Corporate Resources,ICT Services incl. Design and Print,Stock,926900,Stock in hand-Inventory system,02-Oct-2012,2501368-7401963682,"2,509.64",DELL COMPUTER CORPORATION LTD.
Corporate Resources,ICT Services incl. Design and Print,Supplies and Services,332029,"Printing, Stationery and Gen Off Exps",02-Oct-2012,2501432-64560,"12,984.00",HILLPRINT MEDIA LTD.
Corporate Resources,ICT Services incl. Design and Print,Supplies and Services,332029,"Printing, Stationery and Gen Off Exps",02-Oct-2012,2501432-64577,"6,200.00",HILLPRINT MEDIA LTD.
Corporate Resources,ICT Services incl. Design and Print,Stock,926900,Stock in hand-Inventory system,02-Oct-2012,2501443-11897775,"1,065.00",INSIGHT DIRECT (UK) LTD.
Corporate Resources,Financing- Resources,Supplies and Services,338019,Services,02-Oct-2012,2501586-3172,"32,060.49",PRINT SEARCH CHESTER LTD.
Corporate Resources,ICT Services incl. Design and Print,Supplies and Services,344033,Telephones,02-Oct-2012,2501588-161214,"3,745.00",PROCESSFLOWS UK LTD.
Corporate Resources,Financing- Resources,Supplies and Services,338099,Services,02-Oct-2012,2501647-S2130702,611.23,STOREYS EDWARD SYMMONS.
Corporate Resources,Financing- Resources,Supplies and Services,338099,Services,02-Oct-2012,2501647-S2130703,"1,528.08",STOREYS EDWARD SYMMONS.
Corporate Resources,ICT Services incl. Design and Print,Stock,926900,Stock in hand-Inventory system,02-Oct-2012,2501654-5277517,876.77,SUPPLIES TEAM LTD.
Corporate Resources,ICT Services incl. Design and Print,Supplies and Services,304303,Equipment and Materials,02-Oct-2012,2501683-103891,"3,867.86",TP ELECTRICAL SUPPLIES & FIXINGS LTD.
Corporate Resources,Legal & Democratic Services,Supplies and Services,338057,Services,03-Oct-2012,212219-F-LMCC,900.00,DR JOHN WRIGHT.
Corporate Resources,Financing- Resources,Supplies and Services,342051,Computers and Communications,03-Oct-2012,212261-11201365-GB03B,"6,891.92",INFOR GLOBAL SOLUTIONS (MIDLANDS II) LTD.
Corporate Resources,ICT Services incl. Design and Print,Supplies and Services,344135,Telephones,04-Oct-2012,2501771-14042237,"1,005.00",AZZURRI COMMUNICATIONS LTD.
Corporate Resources,Legal & Democratic Services,Premises,120021,Energy Costs,04-Oct-2012,2501796-D10984,530.90,BRADLEY HALL CHARTERED SURVEYORS CLIENT ACCOUNT.
Corporate Resources,Human Resources Total,Employees,040149,"Recruitment, Instruction and Training",04-Oct-2012,2501836-32807,"1,575.00",CIPP.
Corporate Resources,Human Resources Total,Employees,040149,"Recruitment, Instruction and Training",04-Oct-2012,2501836-32813,"1,575.00",CIPP.
Corporate Resources,Human Resources Total,Employees,040149,"Recruitment, Instruction and Training",04-Oct-2012,2501836-32834,"1,575.00",CIPP.
Corporate Resources,Human Resources Total,Employees,040149,"Recruitment, Instruction and Training",04-Oct-2012,2501836-32835,"1,575.00",CIPP.
Corporate Resources,ICT Services incl. Design and Print,Stock,926900,Stock in hand-Inventory system,04-Oct-2012,2501890-7401955506,"2,162.65",DELL COMPUTER CORPORATION LTD.
Corporate Resources,ICT Services incl. Design and Print,Stock,926900,Stock in hand-Inventory system,04-Oct-2012,2501890-7401964660,"4,467.40",DELL COMPUTER CORPORATION LTD.
Corporate Resources,ICT Services incl. Design and Print,Stock,926900,Stock in hand-Inventory system,04-Oct-2012,2501890-7401964869,"4,400.00",DELL COMPUTER CORPORATION LTD.
Corporate Resources,ICT Services incl. Design and Print,"Vehicles, Equipment, Furniture and Fittings",912701,Computer equipment,04-Oct-2012,2501890-7401965078,679.47,DELL COMPUTER CORPORATION LTD.
Corporate Resources,ICT Services incl. Design and Print,Supplies and Services,332029,"Printing, Stationery and Gen Off Exps",04-Oct-2012,2501941-84726,"1,324.00",ENCORE ENVELOPES LTD.
Corporate Resources,ICT Services incl. Design and Print,Supplies and Services,332029,"Printing, Stationery and Gen Off Exps",04-Oct-2012,2502023-64473,630.00,HILLPRINT MEDIA LTD.
Corporate Resources,ICT Services incl. Design and Print,Stock,926900,Stock in hand-Inventory system,04-Oct-2012,2502041-11860517,710.00,INSIGHT DIRECT (UK) LTD.
Corporate Resources,Human Resources Total,Supplies and Services,342053,Computers and Communications,04-Oct-2012,2502147-5501,"1,282.38",MIDLAND SOFTWARE LTD.
Corporate Resources,ICT Services incl. Design and Print,Employees,040149,"Recruitment, Instruction and Training",04-Oct-2012,2502174-4036184,"7,555.00",MTC SUNDERLAND.
Corporate Resources,ICT Services incl. Design and Print,Supplies and Services,342053,Computers and Communications,04-Oct-2012,2502257-OP/I676708,798.00,PHOENIX SOFTWARE LTD.
Corporate Resources,Legal & Democratic Services,Supplies and Services,340001,Postages,04-Oct-2012,2502320-9040167967,"1,328.15",ROYAL MAIL GROUP PLC.
Corporate Resources,ICT Services incl. Design and Print,Supplies and Services,332029,"Printing, Stationery and Gen Off Exps",04-Oct-2012,2502367-41298,929.00,SPRINT FINISH.
Corporate Resources,ICT Services incl. Design and Print,Stock,926900,Stock in hand-Inventory system,04-Oct-2012,2502383-5283307,761.39,SUPPLIES TEAM LTD.
Corporate Resources,ICT Services incl. Design and Print,Supplies and Services,304303,Equipment and Materials,04-Oct-2012,2502435-104039,602.65,TP ELECTRICAL SUPPLIES & FIXINGS LTD.
Corporate Resources,ICT Services incl. Design and Print,Supplies and Services,342033,Computers and Communications,04-Oct-2012,2502461-2309760,741.00,VIGLEN LTD.
Corporate Resources,ICT Services incl. Design and Print,Stock,926900,Stock in hand-Inventory system,05-Oct-2012,2502610-7401965787,"2,233.70",DELL COMPUTER CORPORATION LTD.
Corporate Resources,Financing- Resources,Supplies and Services,338099,Services,05-Oct-2012,2502652-HEX3000391171,"2,859.00",EXPERIAN LTD.
Corporate Resources,Financing- Resources,Supplies and Services,338099,Services,05-Oct-2012,2502652-HEX3000395294,689.00,EXPERIAN LTD.
Corporate Resources,ICT Services incl. Design and Print,Stock,926900,Stock in hand-Inventory system,05-Oct-2012,2502704-11903098,"1,007.35",INSIGHT DIRECT (UK) LTD.
Corporate Resources,ICT Services incl. Design and Print,Supplies and Services,332029,"Printing, Stationery and Gen Off Exps",05-Oct-2012,2502845-585553,560.00,POTTS PRINTERS LTD.
Corporate Resources,ICT Services incl. Design and Print,"Vehicles, Equipment, Furniture and Fittings",912701,Computer equipment,08-Oct-2012,2503023-14042604,"3,500.00",AZZURRI COMMUNICATIONS LTD.
Corporate Resources,ICT Services incl. Design and Print,"Vehicles, Equipment, Furniture and Fittings",912529,Purchase-equipment,08-Oct-2012,2503031-326989-R,566.00,BIGDUG LTD.
Corporate Resources,ICT Services incl. Design and Print,Stock,926900,Stock in hand-Inventory system,08-Oct-2012,2503130-11906339,"4,260.00",INSIGHT DIRECT (UK) LTD.
Corporate Resources,Financing- Resources,Supplies and Services,332029,"Printing, Stationery and Gen Off Exps",08-Oct-2012,2503144-7625,"4,293.82",KAIZEN CONSULTANTS.
Corporate Resources,Financing- Resources,Employees,050001,Pensions Increases Act payments,08-Oct-2012,2503189-7118463,"1,647.00",NORTH YORKSHIRE COUNTY COUNCIL.
Corporate Resources,Financing- Resources,Supplies and Services,342051,Computers and Communications,08-Oct-2012,2503193-068518,"80,000.00",NORTHUMBERLAND COUNTY COUNCIL.
Corporate Resources,Human Resources Total,Supplies and Services,372009,Subscriptions,08-Oct-2012,2503266-4500387927,664.00,THOMSON REUTERS.
Corporate Resources,ICT Services incl. Design and Print,Supplies and Services,344014,Telephones,08-Oct-2012,2503287-64110145,"1,050.00",VODAFONE CORPORATE LTD.
Corporate Resources,ICT Services incl. Design and Print,Debtors,930168,Debtor - Mobile Telephone Holding Account,08-Oct-2012,2503288-64827522,"3,788.58",VODAFONE LTD.
Corporate Resources,ICT Services incl. Design and Print,Supplies and Services,304245,Equipment and Materials,08-Oct-2012,2503301-968300184,914.00,XEROX OFFICE SUPPLIES.
Corporate Resources,ICT Services incl. Design and Print,Stock,926900,Stock in hand-Inventory system,09-Oct-2012,2503946-7401940862,"29,089.00",DELL COMPUTER CORPORATION LTD.
Corporate Resources,ICT Services incl. Design and Print,Stock,926900,Stock in hand-Inventory system,09-Oct-2012,2503946-7401940863,"16,425.50",DELL COMPUTER CORPORATION LTD.
Corporate Resources,ICT Services incl. Design and Print,Supplies and Services,332029,"Printing, Stationery and Gen Off Exps",09-Oct-2012,2503977-64490,"11,330.00",HILLPRINT MEDIA LTD.
Corporate Resources,Legal & Democratic Services,Supplies and Services,384059,Miscellaneous Expenses,09-Oct-2012,2504069-7140000224,722.71,RIVERSIDE EVENTS LLP.
Corporate Resources,Financing- Resources,Supplies and Services,332047,"Printing, Stationery and Gen Off Exps",09-Oct-2012,2504077-13136,577.05,SHAPE POSTURE SEATING.
Corporate Resources,Financing- Resources,Supplies and Services,352001,Conference Expenses,10-Oct-2012,212519-04/11TECH,"3,750.00",IRRV NORTHERN COUNTIES ASSOCIATION.
Corporate Resources,Financing- Resources,Supplies and Services,352001,Conference Expenses,10-Oct-2012,212519-05/11DIP,"6,500.00",IRRV NORTHERN COUNTIES ASSOCIATION.
Corporate Resources,ICT Services incl. Design and Print,Employees,040149,"Recruitment, Instruction and Training",10-Oct-2012,212534-90552798,"2,350.00",LANDESK INTERNATIONAL LTD.
Corporate Resources,Legal & Democratic Services,Supplies and Services,352001,Conference Expenses,10-Oct-2012,212549-870,979.00,MEDIA FRIENDLY LTD.
Corporate Resources,Financing- Resources,Supplies and Services,338045,Services,10-Oct-2012,212647-SH1,690.65,STRATHMORE HOLDINGS LTD.
Corporate Resources,Financing- Resources,Employees,050005,Pensions Increases Act payments,10-Oct-2012,212672-W8258822,"9,957.50",WEST YORKSHIRE PENSION FUND.
Corporate Resources,Financing- Resources,Supplies and Services,342053,Computers and Communications,10-Oct-2012,2504160-C/RB112157,"2,007.24",CIVICA UK LTD.
Corporate Resources,ICT Services incl. Design and Print,Supplies and Services,342033,Computers and Communications,10-Oct-2012,2504230-11868294,966.00,INSIGHT DIRECT (UK) LTD.
Corporate Resources,ICT Services incl. Design and Print,Stock,926900,Stock in hand-Inventory system,10-Oct-2012,2504230-11911543,"4,970.00",INSIGHT DIRECT (UK) LTD.
Corporate Resources,ICT Services incl. Design and Print,"Vehicles, Equipment, Furniture and Fittings",912701,Computer equipment,10-Oct-2012,2504318-OP/I677349,"1,259.60",PHOENIX SOFTWARE LTD.
Corporate Resources,ICT Services incl. Design and Print,"Vehicles, Equipment, Furniture and Fittings",912701,Computer equipment,10-Oct-2012,2504318-OP/I677403,"1,214.20",PHOENIX SOFTWARE LTD.
Corporate Resources,ICT Services incl. Design and Print,"Vehicles, Equipment, Furniture and Fittings",912701,Computer equipment,10-Oct-2012,2504318-OP/I677490,"2,610.00",PHOENIX SOFTWARE LTD.
Corporate Resources,ICT Services incl. Design and Print,Supplies and Services,332029,"Printing, Stationery and Gen Off Exps",10-Oct-2012,2504323-586068,684.00,POTTS PRINTERS LTD.
Corporate Resources,ICT Services incl. Design and Print,Supplies and Services,332029,"Printing, Stationery and Gen Off Exps",10-Oct-2012,2504323-586093,"1,399.00",POTTS PRINTERS LTD.
Corporate Resources,Financing- Resources,"Vehicles, Equipment, Furniture and Fittings",912701,Computer equipment,10-Oct-2012,2504346-OP/L549103,934.63,SPECIALIST COMPUTER CENTRES PLC.
Corporate Resources,ICT Services incl. Design and Print,"Vehicles, Equipment, Furniture and Fittings",912701,Computer equipment,10-Oct-2012,2504346-OP/L549104,"21,796.10",SPECIALIST COMPUTER CENTRES PLC.
Corporate Resources,ICT Services incl. Design and Print,Summary reporting level,720090,Fees and Charges,10-Oct-2012,2504350-R,"1,662.50",ST BEDES CATHOLIC ACADEMY (LANCHESTER).
Corporate Resources,ICT Services incl. Design and Print,Construction Work,908105,Construction work,10-Oct-2012,2504366-PSI-9048415,"4,272.10",TECHNOLOGY SERVICES GROUP LTD.
Corporate Resources,ICT Services incl. Design and Print,Supplies and Services,342033,Computers and Communications,10-Oct-2012,2504393-2310082,630.03,VIGLEN LTD.
Corporate Resources,ICT Services incl. Design and Print,Debtors,930168,Debtor - Mobile Telephone Holding Account,10-Oct-2012,2504395-64827510,582.48,VODAFONE LTD.
Corporate Resources,ICT Services incl. Design and Print,Supplies and Services,342215,Computers and Communications,11-Oct-2012,2505507-1909120141,"8,160.81",IBM UNITED KINGDOM LTD.
Corporate Resources,ICT Services incl. Design and Print,Supplies and Services,342215,Computers and Communications,12-Oct-2012,2506726-2539,"5,250.00",ADAM CONTINUITY LTD.
Corporate Resources,Legal & Democratic Services,Supplies and Services,332009,"Printing, Stationery and Gen Off Exps",12-Oct-2012,2506829-E/PC-AUG2012,507.30,MR ANDREW TWEDDLE.
Corporate Resources,ICT Services incl. Design and Print,Supplies and Services,340001,Postages,12-Oct-2012,2506860-9039441734,"5,301.87",ROYAL MAIL GROUP PLC.
Corporate Resources,ICT Services incl. Design and Print,Supplies and Services,342053,Computers and Communications,15-Oct-2012,2507043-1006426,500.00,DATA TRAK LTD.
Corporate Resources,ICT Services incl. Design and Print,Stock,926900,Stock in hand-Inventory system,15-Oct-2012,2507053-7401966395,"2,509.64",DELL COMPUTER CORPORATION LTD.
Corporate Resources,ICT Services incl. Design and Print,Stock,926900,Stock in hand-Inventory system,15-Oct-2012,2507053-7401967817,"2,509.64",DELL COMPUTER CORPORATION LTD.
Corporate Resources,ICT Services incl. Design and Print,Stock,926900,Stock in hand-Inventory system,15-Oct-2012,2507053-7401967820,"2,233.70",DELL COMPUTER CORPORATION LTD.
Corporate Resources,ICT Services incl. Design and Print,Stock,926900,Stock in hand-Inventory system,15-Oct-2012,2507053-7401967961,"2,233.70",DELL COMPUTER CORPORATION LTD.
Corporate Resources,Financing- Resources,Supplies and Services,384999,Miscellaneous Expenses,15-Oct-2012,2507107-RI7000140969,645.90,FOUNDATION.
Corporate Resources,ICT Services incl. Design and Print,"Vehicles, Equipment, Furniture and Fittings",912701,Computer equipment,15-Oct-2012,2507140-3060015,"3,437.50",GUIDANCE SOFTWARE INC.
Corporate Resources,ICT Services incl. Design and Print,Stock,926900,Stock in hand-Inventory system,15-Oct-2012,2507141-INV0145982,"1,999.00",GV MULTI MEDIA LTD.
Corporate Resources,ICT Services incl. Design and Print,Stock,926900,Stock in hand-Inventory system,15-Oct-2012,2507141-INV0145985,"3,823.00",GV MULTI MEDIA LTD.
Corporate Resources,ICT Services incl. Design and Print,Stock,926900,Stock in hand-Inventory system,15-Oct-2012,2507174-11915484,"1,020.00",INSIGHT DIRECT (UK) LTD.
Corporate Resources,ICT Services incl. Design and Print,Supplies and Services,342033,Computers and Communications,15-Oct-2012,2507174-11915801,761.76,INSIGHT DIRECT (UK) LTD.
Corporate Resources,ICT Services incl. Design and Print,Stock,926900,Stock in hand-Inventory system,15-Oct-2012,2507174-11918118,"1,420.00",INSIGHT DIRECT (UK) LTD.
Corporate Resources,ICT Services incl. Design and Print,Debtors,930168,Debtor - Mobile Telephone Holding Account,15-Oct-2012,2507298-SB14411209,858.55,O2 (UK) LTD.
Corporate Resources,ICT Services incl. Design and Print,Debtors,930168,Debtor - Mobile Telephone Holding Account,15-Oct-2012,2507298-SB14461209,545.89,O2 (UK) LTD.
Corporate Resources,ICT Services incl. Design and Print,Supplies and Services,342053,Computers and Communications,15-Oct-2012,2507321-OP/I677568,"1,992.00",PHOENIX SOFTWARE LTD.
Corporate Resources,ICT Services incl. Design and Print,Supplies and Services,332029,"Printing, Stationery and Gen Off Exps",15-Oct-2012,2507331-586180,"1,647.00",POTTS PRINTERS LTD.
Corporate Resources,ICT Services incl. Design and Print,Employees,040149,"Recruitment, Instruction and Training",15-Oct-2012,2507343-ICE185897,"1,650.00",QA IQ SLOUGH CENTRE.
Corporate Resources,ICT Services incl. Design and Print,Supplies and Services,340001,Postages,15-Oct-2012,2507370-9040270640,"1,857.68",ROYAL MAIL GROUP PLC.
Corporate Resources,Legal & Democratic Services,Supplies and Services,384199,Miscellaneous Expenses,15-Oct-2012,2507393-0000229187,"4,625.60",SHAW & SONS LTD.
Corporate Resources,Financing- Resources,Supplies and Services,342225,Computers and Communications,16-Oct-2012,2508174-7401968382,944.80,DELL COMPUTER CORPORATION LTD.
Corporate Resources,ICT Services incl. Design and Print,Stock,926900,Stock in hand-Inventory system,16-Oct-2012,2508231-11919068,"1,933.35",INSIGHT DIRECT (UK) LTD.
Corporate Resources,ICT Services incl. Design and Print,"Vehicles, Equipment, Furniture and Fittings",912701,Computer equipment,16-Oct-2012,2508241-35672,574.00,KBR IT & NETWORKING SOLUTIONS.
Corporate Resources,Financing- Resources,Supplies and Services,384199,Miscellaneous Expenses,16-Oct-2012,2508292-91227372,"6,120.11",NORTHGATE INFORMATION SOLUTIONS UK LTD.
Corporate Resources,Financing- Resources,Supplies and Services,384199,Miscellaneous Expenses,16-Oct-2012,2508292-91227373,"12,253.36",NORTHGATE INFORMATION SOLUTIONS UK LTD.
Corporate Resources,ICT Services incl. Design and Print,Supplies and Services,384199,Miscellaneous Expenses,16-Oct-2012,2508322-DE2949546,"15,995.00",RM EDUCATION PLC.
Corporate Resources,ICT Services incl. Design and Print,Stock,926900,Stock in hand-Inventory system,16-Oct-2012,2508360-5111947,936.16,SUPPLIES TEAM LTD.
Corporate Resources,Legal & Democratic Services,Supplies and Services,352001,Conference Expenses,17-Oct-2012,212867-2012/44,700.00,NATIONAL ASSOCIATION OF COUNCILLORS.
Corporate Resources,ICT Services incl. Design and Print,Supplies and Services,304245,Equipment and Materials,17-Oct-2012,2508409-WN2301939,824.00,ANTALIS MCNAUGHTON LTD.
Corporate Resources,ICT Services incl. Design and Print,"Vehicles, Equipment, Furniture and Fittings",912701,Computer equipment,17-Oct-2012,2508425-14042815,"32,134.40",AZZURRI COMMUNICATIONS LTD.
Corporate Resources,ICT Services incl. Design and Print,Debtors,930167,Debtor-Telephone Holding Account,17-Oct-2012,2508454-VP90592270M08801,531.55,BRITISH TELECOMMUNICATIONS PLC.
Corporate Resources,Legal & Democratic Services,Supplies and Services,384199,Miscellaneous Expenses,17-Oct-2012,2508458-00041,"3,921.00",C BRADBURY ELECTION EQUIPMENT LTD.
Corporate Resources,Internal Audit and Insurance,Supplies and Services,352001,Conference Expenses,17-Oct-2012,2508469-384267,635.00,CHARTERED INSTITUTE OF INTERNAL AUDITORS.
Corporate Resources,Financing- Resources,Supplies and Services,342053,Computers and Communications,17-Oct-2012,2508480-C/IC112346,"9,500.00",CIVICA UK LTD.
Corporate Resources,ICT Services incl. Design and Print,Supplies and Services,342223,Computers and Communications,17-Oct-2012,2508510-7401968611,"1,494.80",DELL COMPUTER CORPORATION LTD.
Corporate Resources,ICT Services incl. Design and Print,"Vehicles, Equipment, Furniture and Fittings",912701,Computer equipment,17-Oct-2012,2508510-7401969058,"4,625.00",DELL COMPUTER CORPORATION LTD.
Corporate Resources,Human Resources Total,Supplies and Services,338057,Services,17-Oct-2012,2508514-DCC09/12,"3,427.60",DR DANNY WONG.
Corporate Resources,ICT Services incl. Design and Print,Supplies and Services,332029,"Printing, Stationery and Gen Off Exps",17-Oct-2012,2508585-64754,770.09,HILLPRINT MEDIA LTD.
Corporate Resources,ICT Services incl. Design and Print,Supplies and Services,342051,Computers and Communications,17-Oct-2012,2508646-12/013079,"2,716.00",LOGOSOFT LTD.
Corporate Resources,ICT Services incl. Design and Print,Supplies and Services,304252,Equipment and Materials,17-Oct-2012,2508714-10020745,564.00,NORSTEAD.
Corporate Resources,Human Resources Total,Supplies and Services,338091,Services,17-Oct-2012,2508727-91165898,"2,890.00",NORTHUMBRIA UNIVERSITY.
Corporate Resources,Financing- Resources,Supplies and Services,342051,Computers and Communications,17-Oct-2012,2508738-9121070,"28,103.86",PATECH SOLUTIONS LTD.
Corporate Resources,Internal Audit and Insurance,Supplies and Services,308011,Furniture,17-Oct-2012,2508759-INV0042828,774.34,POSTURITE (UK) LTD.
Corporate Resources,Legal & Democratic Services,Premises,125009,Rents,17-Oct-2012,2508782-5031,540.48,RIVERGREEN DEVELOPMENTS PLC.
Corporate Resources,ICT Services incl. Design and Print,Stock,926900,Stock in hand-Inventory system,17-Oct-2012,2508831-5317360,"2,092.23",SUPPLIES TEAM LTD.
Corporate Resources,ICT Services incl. Design and Print,Construction Work,908105,Construction work,17-Oct-2012,2508846-PSI-9048414,"4,272.10",TECHNOLOGY SERVICES GROUP LTD.
Corporate Resources,ICT Services incl. Design and Print,Supplies and Services,304252,Equipment and Materials,17-Oct-2012,2508847-9140008202,875.06,TECHNOTRANS.
Corporate Resources,Human Resources Total,Supplies and Services,304421,Equipment and Materials,17-Oct-2012,2508876-414631,"1,010.33",UNITED CARLTON OFFICE SYSTEMS LTD.
Corporate Resources,Corporate Services Financing,Debtors,930031,Debtor-outstand insur claims,18-Oct-2012,2508997-100122,"2,659.65",CLANCY CONSULTING LTD.
Corporate Resources,Corporate Services Financing,Debtors,930031,Debtor-outstand insur claims,18-Oct-2012,2508997-99940,"1,492.44",CLANCY CONSULTING LTD.
Corporate Resources,ICT Services incl. Design and Print,Debtors,930168,Debtor - Mobile Telephone Holding Account,18-Oct-2012,2509283-00667647622,"2,596.41",ORANGE PERSONAL COMMUNICATIONS.
Corporate Resources,ICT Services incl. Design and Print,Supplies and Services,332029,"Printing, Stationery and Gen Off Exps",18-Oct-2012,2509315-585829,756.00,POTTS PRINTERS LTD.
Corporate Resources,ICT Services incl. Design and Print,Supplies and Services,332029,"Printing, Stationery and Gen Off Exps",18-Oct-2012,2509315-585921,656.00,POTTS PRINTERS LTD.
Corporate Resources,ICT Services incl. Design and Print,Supplies and Services,332029,"Printing, Stationery and Gen Off Exps",18-Oct-2012,2509315-586048,675.00,POTTS PRINTERS LTD.
Corporate Resources,ICT Services incl. Design and Print,Supplies and Services,332029,"Printing, Stationery and Gen Off Exps",18-Oct-2012,2509315-586208,"1,307.00",POTTS PRINTERS LTD.
Corporate Resources,Legal & Democratic Services,Premises,125009,Rents,19-Oct-2012,2509661-1537,672.03,DERWENTSIDE COUNCIL FOR VOL SERVICES & VOL BUREAU.
Corporate Resources,ICT Services incl. Design and Print,Supplies and Services,304303,Equipment and Materials,19-Oct-2012,2509745-INV0145852,751.00,GV MULTI MEDIA LTD.
Corporate Resources,ICT Services incl. Design and Print,Supplies and Services,304303,Equipment and Materials,19-Oct-2012,2509745-INV0145853,663.04,GV MULTI MEDIA LTD.
Corporate Resources,ICT Services incl. Design and Print,Stock,926900,Stock in hand-Inventory system,19-Oct-2012,2509745-INV0145854,596.00,GV MULTI MEDIA LTD.
Corporate Resources,ICT Services incl. Design and Print,Stock,926900,Stock in hand-Inventory system,19-Oct-2012,2509745-INV0146073,515.50,GV MULTI MEDIA LTD.
Corporate Resources,ICT Services incl. Design and Print,Supplies and Services,304303,Equipment and Materials,19-Oct-2012,2509745-INV0146074,"2,681.95",GV MULTI MEDIA LTD.
Corporate Resources,ICT Services incl. Design and Print,Supplies and Services,342033,Computers and Communications,19-Oct-2012,2509763-11876205,"1,640.00",INSIGHT DIRECT (UK) LTD.
Corporate Resources,ICT Services incl. Design and Print,Supplies and Services,342033,Computers and Communications,19-Oct-2012,2509763-11876775,654.75,INSIGHT DIRECT (UK) LTD.
Corporate Resources,Financing- Resources,Supplies and Services,338099,Services,19-Oct-2012,2509850-90114182,"2,496.00",MOUCHEL BUSINESS SERVICES LTD.
Corporate Resources,Financing- Resources,Supplies and Services,338099,Services,19-Oct-2012,2509850-90114183,"3,500.00",MOUCHEL BUSINESS SERVICES LTD.
Corporate Resources,Financing- Resources,Supplies and Services,338099,Services,19-Oct-2012,2509850-90114184,"2,800.00",MOUCHEL BUSINESS SERVICES LTD.
Corporate Resources,Financing- Resources,Supplies and Services,338099,Services,19-Oct-2012,2509850-90114185,"3,500.00",MOUCHEL BUSINESS SERVICES LTD.
Corporate Resources,Financing- Resources,Supplies and Services,338099,Services,19-Oct-2012,2509850-90114186,"2,496.00",MOUCHEL BUSINESS SERVICES LTD.
Corporate Resources,ICT Services incl. Design and Print,Supplies and Services,340001,Postages,19-Oct-2012,2509970-9040194386,"6,617.52",ROYAL MAIL GROUP PLC.
Corporate Resources,Legal & Democratic Services,Supplies and Services,342053,Computers and Communications,19-Oct-2012,2510098-INVEU0000120151,846.00,WINSCRIBE EUROPE LTD.
Corporate Resources,Financing- Resources,Supplies and Services,384199,Miscellaneous Expenses,22-Oct-2012,2510130-1402,900.00,APPSVISION LTD.
Corporate Resources,ICT Services incl. Design and Print,Debtors,930167,Debtor-Telephone Holding Account,22-Oct-2012,2510167-UK10/102012/4720,"2,905.21",CABLE & WIRELESS UK.
Corporate Resources,ICT Services incl. Design and Print,Stock,926900,Stock in hand-Inventory system,22-Oct-2012,2510199-7401969577,"2,233.70",DELL COMPUTER CORPORATION LTD.
Corporate Resources,ICT Services incl. Design and Print,Stock,926900,Stock in hand-Inventory system,22-Oct-2012,2510199-7401970005,918.20,DELL COMPUTER CORPORATION LTD.
Corporate Resources,Human Resources Total,Employees,040040,"Recruitment, Instruction and Training",22-Oct-2012,2510235-119646,"1,975.00",GB GROUP PLC.
Corporate Resources,Human Resources Total,Supplies and Services,342053,Computers and Communications,22-Oct-2012,2510255-12705/05/PB,"73,061.25",HEYWOOD LTD.
Corporate Resources,Internal Audit and Insurance,Supplies and Services,342053,Computers and Communications,22-Oct-2012,2510278-15898,"1,347.50",JC APPLICATIONS DEVELOPMENT LTD.
Corporate Resources,Financing- Resources,Supplies and Services,338099,Services,22-Oct-2012,2510324-90116787,"9,231.00",MOUCHEL BUSINESS SERVICES LTD.
Corporate Resources,ICT Services incl. Design and Print,Supplies and Services,304999,Equipment and Materials,22-Oct-2012,2510347-10020689,696.00,NORSTEAD.
Corporate Resources,Financing- Resources,Supplies and Services,338019,Services,22-Oct-2012,2510368-3427,"2,633.75",PRINT SEARCH CHESTER LTD.
Corporate Resources,ICT Services incl. Design and Print,Supplies and Services,338027,Services,22-Oct-2012,2510380-DC002/12,"7,699.59",REGIONAL NETWORK SOLUTIONS LTD.
Corporate Resources,ICT Services incl. Design and Print,Stock,926900,Stock in hand-Inventory system,22-Oct-2012,2510420-5330652,844.08,SUPPLIES TEAM LTD.
Corporate Resources,ICT Services incl. Design and Print,Supplies and Services,342225,Computers and Communications,22-Oct-2012,2510423-116553,"11,580.00",SWITCHSHOP LTD.
Corporate Resources,ICT Services incl. Design and Print,Supplies and Services,304245,Equipment and Materials,22-Oct-2012,2510469-968313476,828.00,XEROX OFFICE SUPPLIES.
Corporate Resources,ICT Services incl. Design and Print,Supplies and Services,342033,Computers and Communications,23-Oct-2012,2511132-7401970488,527.62,DELL COMPUTER CORPORATION LTD.
Corporate Resources,Human Resources Total,Supplies and Services,338210,Services,23-Oct-2012,2511145-185052,"1,485.00",FIRSTASSIST SERVICES LTD.
Corporate Resources,ICT Services incl. Design and Print,Supplies and Services,304245,Equipment and Materials,23-Oct-2012,2511175-16731648,577.27,HOWARD SMITH PAPER GROUP.
Corporate Resources,ICT Services incl. Design and Print,Supplies and Services,332029,"Printing, Stationery and Gen Off Exps",23-Oct-2012,2511242-45617,621.00,NB GROUP LTD.
Corporate Resources,Human Resources Total,Supplies and Services,338091,Services,23-Oct-2012,2511258-91168408,"2,890.00",NORTHUMBRIA UNIVERSITY.
Corporate Resources,Human Resources Total,Supplies and Services,338091,Services,23-Oct-2012,2511258-91168412,"2,890.00",NORTHUMBRIA UNIVERSITY.
Corporate Resources,ICT Services incl. Design and Print,Supplies and Services,332029,"Printing, Stationery and Gen Off Exps",23-Oct-2012,2511281-9243,670.00,RADECAL SIGNS GRAPHICS & ADVERTISING.
Corporate Resources,ICT Services incl. Design and Print,"Vehicles, Equipment, Furniture and Fittings",912541,Purchase-vehicles,23-Oct-2012,2511289-10011353,"13,557.00",S JENNINGS LTD.
Corporate Resources,Legal & Democratic Services,Premises,125009,Rents,23-Oct-2012,2511324-2012285,"2,237.89",TJD PROPERTIES LTD.
Corporate Resources,Legal & Democratic Services,Premises,125009,Rents,23-Oct-2012,2511324-2012292,"18,534.00",TJD PROPERTIES LTD.
Corporate Resources,Legal & Democratic Services,Premises,125009,Rents,24-Oct-2012,2511381-DL11030,"2,600.63",BRADLEY HALL CHARTERED SURVEYORS CLIENT ACCOUNT.
Corporate Resources,Legal & Democratic Services,Premises,125009,Rents,24-Oct-2012,2511382-D11031,588.56,BRADLEY HALL CHARTERED SURVEYORS.
Corporate Resources,ICT Services incl. Design and Print,Debtors,930167,Debtor-Telephone Holding Account,24-Oct-2012,2511387-VP16860270Q08301,"185,185.04",BRITISH TELECOMMUNICATIONS PLC.
Corporate Resources,ICT Services incl. Design and Print,Supplies and Services,332029,"Printing, Stationery and Gen Off Exps",24-Oct-2012,2511587-586572,639.00,POTTS PRINTERS LTD.
Corporate Resources,Human Resources Total,Supplies and Services,332047,"Printing, Stationery and Gen Off Exps",24-Oct-2012,2511619-5338766,710.00,SUPPLIES TEAM LTD.
Corporate Resources,ICT Services incl. Design and Print,Construction Work,908105,Construction work,24-Oct-2012,2511626-PSI-9048397,"3,990.83",TECHNOLOGY SERVICES GROUP LTD.
Corporate Resources,ICT Services incl. Design and Print,Debtors,930167,Debtor-Telephone Holding Account,25-Oct-2012,2511739-VP71577270Q02301,"7,311.68",BRITISH TELECOMMUNICATIONS PLC.
Corporate Resources,ICT Services incl. Design and Print,Supplies and Services,332029,"Printing, Stationery and Gen Off Exps",25-Oct-2012,2511754-LEI114020,652.10,CELLOGLAS LTD.
Corporate Resources,ICT Services incl. Design and Print,Supplies and Services,304040,Equipment and Materials,25-Oct-2012,2511757-65195,"10,500.00",CENTRAL POWER SERVICES LTD.
Corporate Resources,ICT Services incl. Design and Print,Supplies and Services,304040,Equipment and Materials,25-Oct-2012,2511757-65196,"3,690.00",CENTRAL POWER SERVICES LTD.
Corporate Resources,ICT Services incl. Design and Print,Stock,926900,Stock in hand-Inventory system,25-Oct-2012,2511817-7401971072,"2,358.15",DELL COMPUTER CORPORATION LTD.
Corporate Resources,Financing- Resources,Employees,040149,"Recruitment, Instruction and Training",25-Oct-2012,2512020-50052964,"1,240.00",NEW COLLEGE DURHAM.
Corporate Resources,Financing- Resources,Employees,040149,"Recruitment, Instruction and Training",25-Oct-2012,2512020-50052969,"1,220.00",NEW COLLEGE DURHAM.
Corporate Resources,Human Resources Total,Supplies and Services,338091,Services,25-Oct-2012,2512033-91168270,"2,601.00",NORTHUMBRIA UNIVERSITY.
Corporate Resources,Human Resources Total,Supplies and Services,338091,Services,25-Oct-2012,2512033-91168410,"2,890.00",NORTHUMBRIA UNIVERSITY.
Corporate Resources,Human Resources Total,Supplies and Services,338091,Services,25-Oct-2012,2512033-91168416,"2,890.00",NORTHUMBRIA UNIVERSITY.
Corporate Resources,Human Resources Total,Supplies and Services,338091,Services,25-Oct-2012,2512033-91168418,"2,890.00",NORTHUMBRIA UNIVERSITY.
Corporate Resources,Legal & Democratic Services,Supplies and Services,372009,Subscriptions,25-Oct-2012,2512220-50761022,862.62,WOLTERS KLUWER (UK) LTD.
Corporate Resources,ICT Services incl. Design and Print,Debtors,930167,Debtor-Telephone Holding Account,26-Oct-2012,2512348-201091,"19,424.01",NETWORKS 2 BUSINESS LTD.
Corporate Resources,ICT Services incl. Design and Print,Debtors,930167,Debtor-Telephone Holding Account,26-Oct-2012,2512348-201122,"21,133.13",NETWORKS 2 BUSINESS LTD.
Corporate Resources,Financing- Resources,Supplies and Services,338099,Services,26-Oct-2012,2512361-91231056,"16,535.03",NORTHGATE INFORMATION SOLUTIONS UK LTD.
Corporate Resources,ICT Services incl. Design and Print,Supplies and Services,332029,"Printing, Stationery and Gen Off Exps",26-Oct-2012,2512387-586570,598.00,POTTS PRINTERS LTD.
Corporate Resources,Centrally Administered costs,Supplies and Services,338013,Services,29-Oct-2012,2512476-6186038,"2,080.00",AUDIT COMMISSION.
Corporate Resources,ICT Services incl. Design and Print,Debtors,930167,Debtor-Telephone Holding Account,29-Oct-2012,2512515-11482709,"4,556.30",CABLE & WIRELESS UK.
Corporate Resources,Financing- Resources,Supplies and Services,312009,"Newspapers, Books and Periodicals",29-Oct-2012,2512540-3072435,"1,200.00",CIPFA BUSINESS LTD.
Corporate Resources,Financing- Resources,Supplies and Services,312009,"Newspapers, Books and Periodicals",29-Oct-2012,2512540-3072586,544.00,CIPFA BUSINESS LTD.
Corporate Resources,ICT Services incl. Design and Print,Supplies and Services,342225,Computers and Communications,29-Oct-2012,2512583-400335,"3,254.50",DATACENTRE UK LTD.
Corporate Resources,ICT Services incl. Design and Print,Stock,926900,Stock in hand-Inventory system,29-Oct-2012,2512593-7401971608,"2,233.70",DELL COMPUTER CORPORATION LTD.
Corporate Resources,ICT Services incl. Design and Print,Supplies and Services,342033,Computers and Communications,29-Oct-2012,2512593-7401971801,596.30,DELL COMPUTER CORPORATION LTD.
Corporate Resources,ICT Services incl. Design and Print,Supplies and Services,332029,"Printing, Stationery and Gen Off Exps",29-Oct-2012,2512689-64618,"2,776.00",HILLPRINT MEDIA LTD.
Corporate Resources,Financing- Resources,Supplies and Services,332029,"Printing, Stationery and Gen Off Exps",29-Oct-2012,2512739-7696,"3,240.83",KAIZEN CONSULTANTS.
Corporate Resources,ICT Services incl. Design and Print,Stock,926900,Stock in hand-Inventory system,29-Oct-2012,2512742-35660,"6,034.00",KBR IT & NETWORKING SOLUTIONS.
Corporate Resources,ICT Services incl. Design and Print,Stock,926900,Stock in hand-Inventory system,29-Oct-2012,2512742-35661,"2,568.00",KBR IT & NETWORKING SOLUTIONS.
Corporate Resources,Legal & Democratic Services,Supplies and Services,384199,Miscellaneous Expenses,29-Oct-2012,2512797-69189,"1,600.00",MR TIMOTHY STRAKER.
Corporate Resources,Financing- Resources,Supplies and Services,342051,Computers and Communications,29-Oct-2012,2512835-91164001A,"1,265.00",NORTHGATE INFORMATION SOLUTIONS UK LTD.
Corporate Resources,Financing- Resources,Supplies and Services,342051,Computers and Communications,29-Oct-2012,2512835-91164002A,"4,836.00",NORTHGATE INFORMATION SOLUTIONS UK LTD.
Corporate Resources,Human Resources Total,Supplies and Services,338091,Services,29-Oct-2012,2512837-91172105,"2,890.00",NORTHUMBRIA UNIVERSITY.
Corporate Resources,Human Resources Total,Supplies and Services,338091,Services,29-Oct-2012,2512837-91172108,"2,890.00",NORTHUMBRIA UNIVERSITY.
Corporate Resources,ICT Services incl. Design and Print,"Vehicles, Equipment, Furniture and Fittings",912701,Computer equipment,29-Oct-2012,2512841-14834,"3,845.00",NTA MONITOR LTD.
Corporate Resources,Legal & Democratic Services,Premises,125009,Rents,29-Oct-2012,2512909-5064,551.04,RIVERGREEN DEVELOPMENTS PLC.
Corporate Resources,ICT Services incl. Design and Print,"Vehicles, Equipment, Furniture and Fittings",912541,Purchase-vehicles,29-Oct-2012,2512921-10011448,"11,370.23",S JENNINGS LTD.
Corporate Resources,Financing- Resources,Supplies and Services,332047,"Printing, Stationery and Gen Off Exps",29-Oct-2012,2512982-5340610,994.00,SUPPLIES TEAM LTD.
Corporate Resources,ICT Services incl. Design and Print,Stock,926900,Stock in hand-Inventory system,29-Oct-2012,2512982-5349214,"1,713.30",SUPPLIES TEAM LTD.
Corporate Resources,Legal & Democratic Services,Supplies and Services,372009,Subscriptions,29-Oct-2012,2513013-4500390863,"1,740.03",THOMSON REUTERS.
Corporate Resources,Legal & Democratic Services,Supplies and Services,372009,Subscriptions,29-Oct-2012,2513013-4500390925,643.56,THOMSON REUTERS.
Corporate Resources,Legal & Democratic Services,Supplies and Services,372009,Subscriptions,29-Oct-2012,2513013-4500390927,521.73,THOMSON REUTERS.
Corporate Resources,Legal & Democratic Services,Supplies and Services,372009,Subscriptions,29-Oct-2012,2513013-4500390928,640.77,THOMSON REUTERS.
Corporate Resources,Legal & Democratic Services,Supplies and Services,372009,Subscriptions,29-Oct-2012,2513013-4500390932,552.42,THOMSON REUTERS.
Corporate Resources,Legal & Democratic Services,Supplies and Services,372009,Subscriptions,29-Oct-2012,2513013-4500390933,716.10,THOMSON REUTERS.
Corporate Resources,Legal & Democratic Services,Supplies and Services,372009,Subscriptions,29-Oct-2012,2513013-4500390934,559.86,THOMSON REUTERS.
Corporate Resources,Legal & Democratic Services,Supplies and Services,372009,Subscriptions,29-Oct-2012,2513013-4500390935,"1,106.70",THOMSON REUTERS.
Corporate Resources,Legal & Democratic Services,Supplies and Services,372009,Subscriptions,29-Oct-2012,2513013-4500390936,731.91,THOMSON REUTERS.
Corporate Resources,Legal & Democratic Services,Supplies and Services,372009,Subscriptions,29-Oct-2012,2513013-4500390937,730.98,THOMSON REUTERS.
Corporate Resources,Legal & Democratic Services,Supplies and Services,372009,Subscriptions,29-Oct-2012,2513013-4500390939,716.10,THOMSON REUTERS.
Corporate Resources,ICT Services incl. Design and Print,Supplies and Services,304245,Equipment and Materials,29-Oct-2012,2513086-968318497,"1,440.00",XEROX OFFICE SUPPLIES.
Corporate Resources,Financing- Resources,Supplies and Services,342224,Computers and Communications,29-Oct-2012,2513087-S094496,"1,548.35",XMA LTD.
Corporate Resources,Financing- Resources,Supplies and Services,384199,Miscellaneous Expenses,30-Oct-2012,2513712-C/BC112558,"3,900.00",CIVICA UK LTD.
Corporate Resources,ICT Services incl. Design and Print,Supplies and Services,348037,Subsistence,30-Oct-2012,2513715-292671,"2,222.71",CLICK TRAVEL LTD.
Corporate Resources,ICT Services incl. Design and Print,Stock,926900,Stock in hand-Inventory system,30-Oct-2012,2513757-INV0146075,"2,166.40",GV MULTI MEDIA LTD.
Corporate Resources,ICT Services incl. Design and Print,Supplies and Services,342107,Computers and Communications,30-Oct-2012,2513780-35701,"1,195.00",KBR IT & NETWORKING SOLUTIONS.
Corporate Resources,ICT Services incl. Design and Print,Supplies and Services,342033,Computers and Communications,30-Oct-2012,2513819-3514,"5,207.90",NTS (UK)LTD.
Corporate Resources,ICT Services incl. Design and Print,Supplies and Services,384156,Miscellaneous Expenses,30-Oct-2012,2513868-104250,588.67,TP ELECTRICAL SUPPLIES & FIXINGS LTD.
Corporate Resources,ICT Services incl. Design and Print,Supplies and Services,304252,Equipment and Materials,31-Oct-2012,213329-6033,"1,000.00",ALPHATEC 2000 LTD.
Corporate Resources,Human Resources Total,Supplies and Services,384150,Miscellaneous Expenses,31-Oct-2012,2514057-6798371,"1,589.00",GLAXO SMITHKLINE UK LTD.
Corporate Resources,Legal & Democratic Services,Supplies and Services,340001,Postages,31-Oct-2012,2514240-9040403139,"13,792.80",ROYAL MAIL GROUP PLC.
Adults Wellbeing and Health,Head of Adults,Transfer Payments,515201,Social Services Clients,05-Oct-2012,2502495-6559,738.50,360 HEALTHCARE LTD.
Adults Wellbeing and Health,Head of Adults,Third Party Payments,472101,Purchase of Care,11-Oct-2012,2504415-1273177H,706.87,360 HEALTHCARE LTD.
Adults Wellbeing and Health,Head of Adults,Third Party Payments,472101,Purchase of Care,11-Oct-2012,2504415-1273218H,"1,118.32",360 HEALTHCARE LTD.
Adults Wellbeing and Health,Head of Adults,Third Party Payments,472101,Purchase of Care,11-Oct-2012,2504415-1273672H,"1,146.44",360 HEALTHCARE LTD.
Adults Wellbeing and Health,Head of Adults,Third Party Payments,472101,Purchase of Care,11-Oct-2012,2504415-1273676H,"1,044.46",360 HEALTHCARE LTD.
Adults Wellbeing and Health,Head of Adults,Third Party Payments,472101,Purchase of Care,11-Oct-2012,2504415-1273924H,840.00,360 HEALTHCARE LTD.
Adults Wellbeing and Health,Head of Adults,Third Party Payments,472101,Purchase of Care,11-Oct-2012,2504415-1275096H,516.96,360 HEALTHCARE LTD.
Adults Wellbeing and Health,Head of Adults,Third Party Payments,472101,Purchase of Care,11-Oct-2012,2504415-1275426H,886.20,360 HEALTHCARE LTD.
Adults Wellbeing and Health,Head of Adults,Third Party Payments,472101,Purchase of Care,11-Oct-2012,2504415-1275694H,606.62,360 HEALTHCARE LTD.
Adults Wellbeing and Health,Head of Adults,Third Party Payments,472101,Purchase of Care,11-Oct-2012,2504415-1275771H,664.64,360 HEALTHCARE LTD.
Adults Wellbeing and Health,Head of Adults,Third Party Payments,472101,Purchase of Care,11-Oct-2012,2504415-1275997H,580.24,360 HEALTHCARE LTD.
Adults Wellbeing and Health,Head of Adults,Third Party Payments,472101,Purchase of Care,11-Oct-2012,2504415-1276093H,"1,128.87",360 HEALTHCARE LTD.
Adults Wellbeing and Health,Head of Adults,Third Party Payments,472101,Purchase of Care,11-Oct-2012,2504415-1276114H,516.96,360 HEALTHCARE LTD.
Adults Wellbeing and Health,Head of Adults,Third Party Payments,472101,Purchase of Care,11-Oct-2012,2504415-1276349H,"1,455.92",360 HEALTHCARE LTD.
Adults Wellbeing and Health,Head of Adults,Third Party Payments,472101,Purchase of Care,11-Oct-2012,2504415-1276489H,902.04,360 HEALTHCARE LTD.
Adults Wellbeing and Health,Head of Adults,Third Party Payments,472101,Purchase of Care,11-Oct-2012,2504415-1276615H,506.40,360 HEALTHCARE LTD.
Adults Wellbeing and Health,Head of Adults,Third Party Payments,472101,Purchase of Care,11-Oct-2012,2504415-1276655H,531.00,360 HEALTHCARE LTD.
Adults Wellbeing and Health,Head of Adults,Third Party Payments,472101,Purchase of Care,11-Oct-2012,2504415-1276692H,617.18,360 HEALTHCARE LTD.
Adults Wellbeing and Health,Head of Adults,Third Party Payments,472101,Purchase of Care,11-Oct-2012,2504415-1276882H,717.40,360 HEALTHCARE LTD.
Adults Wellbeing and Health,Head of Adults,Third Party Payments,472101,Purchase of Care,11-Oct-2012,2504415-1277522H,822.92,360 HEALTHCARE LTD.
Adults Wellbeing and Health,Head of Adults,Third Party Payments,472101,Purchase of Care,11-Oct-2012,2504415-1277556H,640.04,360 HEALTHCARE LTD.
Adults Wellbeing and Health,Head of Adults,Third Party Payments,472101,Purchase of Care,11-Oct-2012,2504415-1277922H,"1,350.40",360 HEALTHCARE LTD.
Adults Wellbeing and Health,Head of Adults,Third Party Payments,472101,Purchase of Care,11-Oct-2012,2504415-1278042H,590.80,360 HEALTHCARE LTD.
Adults Wellbeing and Health,Head of Adults,Third Party Payments,472101,Purchase of Care,11-Oct-2012,2504415-1278061H,"1,477.00",360 HEALTHCARE LTD.
Adults Wellbeing and Health,Head of Adults,Third Party Payments,472101,Purchase of Care,11-Oct-2012,2504415-1278444H,"1,149.96",360 HEALTHCARE LTD.
Adults Wellbeing and Health,Head of Adults,Third Party Payments,472101,Purchase of Care,11-Oct-2012,2504415-1278616H,710.36,360 HEALTHCARE LTD.
Adults Wellbeing and Health,Head of Adults,Third Party Payments,472101,Purchase of Care,11-Oct-2012,2504415-1278857H,886.20,360 HEALTHCARE LTD.
Adults Wellbeing and Health,Head of Adults,Third Party Payments,472101,Purchase of Care,11-Oct-2012,2504415-1278938H,548.60,360 HEALTHCARE LTD.
Adults Wellbeing and Health,Head of Adults,Third Party Payments,472101,Purchase of Care,11-Oct-2012,2504415-1278970H,"1,329.32",360 HEALTHCARE LTD.
Adults Wellbeing and Health,Head of Adults,Third Party Payments,472101,Purchase of Care,24-Oct-2012,2511353-AADJ30/9/12,"1,045.46",360 HEALTHCARE LTD.
Adults Wellbeing and Health,Head of Adults,Transport,230005,Contract Hire,05-Oct-2012,2502497-439,560.00,A BARKER.
Adults Wellbeing and Health,Head of Adults,Transport,230005,Contract Hire,25-Oct-2012,2512175-ED78,"1,770.00",TONYS TAXIS (A BIRCH).
Adults Wellbeing and Health,Head of Adults,Third Party Payments,473101,Purchase of Care,11-Oct-2012,2504420-1274693D,810.54,A CHARLES THOMAS (CARE) LTD.
Adults Wellbeing and Health,Head of Adults,Third Party Payments,470101,Purchase of Care,11-Oct-2012,2504420-2055912,"1,757.76",A CHARLES THOMAS (CARE) LTD.
Adults Wellbeing and Health,Head of Adults,Third Party Payments,470101,Purchase of Care,11-Oct-2012,2504420-2055969,"1,757.76",A CHARLES THOMAS (CARE) LTD.
Adults Wellbeing and Health,Head of Adults,Third Party Payments,470101,Purchase of Care,11-Oct-2012,2504420-2055970,"1,757.76",A CHARLES THOMAS (CARE) LTD.
Adults Wellbeing and Health,Head of Adults,Third Party Payments,470101,Purchase of Care,11-Oct-2012,2504420-2055972,"1,757.76",A CHARLES THOMAS (CARE) LTD.
Adults Wellbeing and Health,Head of Adults,Third Party Payments,470101,Purchase of Care,11-Oct-2012,2504420-2055973,"1,757.76",A CHARLES THOMAS (CARE) LTD.
Adults Wellbeing and Health,Head of Adults,Third Party Payments,470101,Purchase of Care,11-Oct-2012,2504420-2055974,"1,757.76",A CHARLES THOMAS (CARE) LTD.
Adults Wellbeing and Health,Head of Adults,Third Party Payments,470101,Purchase of Care,11-Oct-2012,2504420-2056101,"1,757.76",A CHARLES THOMAS (CARE) LTD.
Adults Wellbeing and Health,Head of Adults,Third Party Payments,470101,Purchase of Care,11-Oct-2012,2504420-2056102,"1,569.42",A CHARLES THOMAS (CARE) LTD.
Adults Wellbeing and Health,Head of Adults,Third Party Payments,470101,Purchase of Care,11-Oct-2012,2504420-2056103,"1,757.76",A CHARLES THOMAS (CARE) LTD.
Adults Wellbeing and Health,Head of Adults,Third Party Payments,470101,Purchase of Care,11-Oct-2012,2504420-2056104,"1,757.76",A CHARLES THOMAS (CARE) LTD.
Adults Wellbeing and Health,Head of Adults,Third Party Payments,470101,Purchase of Care,11-Oct-2012,2504420-2056105,"1,757.76",A CHARLES THOMAS (CARE) LTD.
Adults Wellbeing and Health,Head of Adults,Third Party Payments,470101,Purchase of Care,11-Oct-2012,2504420-2056106,"1,757.76",A CHARLES THOMAS (CARE) LTD.
Adults Wellbeing and Health,Head of Adults,Third Party Payments,470101,Purchase of Care,11-Oct-2012,2504420-2056107,"1,757.76",A CHARLES THOMAS (CARE) LTD.
Adults Wellbeing and Health,Head of Adults,Third Party Payments,470101,Purchase of Care,11-Oct-2012,2504420-2056108,"1,757.76",A CHARLES THOMAS (CARE) LTD.
Adults Wellbeing and Health,Head of Adults,Third Party Payments,470101,Purchase of Care,11-Oct-2012,2504420-2056109,"1,757.76",A CHARLES THOMAS (CARE) LTD.
Adults Wellbeing and Health,Head of Adults,Third Party Payments,470101,Purchase of Care,11-Oct-2012,2504420-2056110,"1,261.32",A CHARLES THOMAS (CARE) LTD.
Adults Wellbeing and Health,Head of Adults,Third Party Payments,474101,Purchase of Care,11-Oct-2012,2504420-2056900,"1,845.52",A CHARLES THOMAS (CARE) LTD.
Adults Wellbeing and Health,Head of Adults,Third Party Payments,474101,Purchase of Care,11-Oct-2012,2504420-2056969,"1,845.52",A CHARLES THOMAS (CARE) LTD.
Adults Wellbeing and Health,Head of Adults,Third Party Payments,474101,Purchase of Care,11-Oct-2012,2504420-2056976,"1,845.52",A CHARLES THOMAS (CARE) LTD.
Adults Wellbeing and Health,Head of Adults,Third Party Payments,474101,Purchase of Care,11-Oct-2012,2504420-2057095,"1,845.52",A CHARLES THOMAS (CARE) LTD.
Adults Wellbeing and Health,Head of Adults,Third Party Payments,474101,Purchase of Care,11-Oct-2012,2504420-2057097,922.76,A CHARLES THOMAS (CARE) LTD.
Adults Wellbeing and Health,Head of Adults,Third Party Payments,474101,Purchase of Care,11-Oct-2012,2504420-2057100,"1,845.52",A CHARLES THOMAS (CARE) LTD.
Adults Wellbeing and Health,Head of Adults,Third Party Payments,474101,Purchase of Care,11-Oct-2012,2504420-2057102,"1,845.52",A CHARLES THOMAS (CARE) LTD.
Adults Wellbeing and Health,Head of Adults,Third Party Payments,474101,Purchase of Care,11-Oct-2012,2504420-2057105,"1,845.52",A CHARLES THOMAS (CARE) LTD.
Adults Wellbeing and Health,Head of Adults,Third Party Payments,474101,Purchase of Care,11-Oct-2012,2504420-2057110,"1,845.52",A CHARLES THOMAS (CARE) LTD.
Adults Wellbeing and Health,Head of Adults,Third Party Payments,474101,Purchase of Care,11-Oct-2012,2504420-2057112,"1,845.52",A CHARLES THOMAS (CARE) LTD.
Adults Wellbeing and Health,Head of Adults,Third Party Payments,474101,Purchase of Care,11-Oct-2012,2504420-2057114,"1,845.52",A CHARLES THOMAS (CARE) LTD.
Adults Wellbeing and Health,Head of Adults,Third Party Payments,474101,Purchase of Care,11-Oct-2012,2504420-2057117,"1,845.52",A CHARLES THOMAS (CARE) LTD.
Adults Wellbeing and Health,Head of Adults,Third Party Payments,474101,Purchase of Care,11-Oct-2012,2504420-2057478,"2,012.76",A CHARLES THOMAS (CARE) LTD.
Adults Wellbeing and Health,Head of Adults,Transport,230005,Contract Hire,02-Oct-2012,2501276-AA456.,"1,611.00",AA MINIBUS HIRE.
Adults Wellbeing and Health,Head of Adults,Transport,230005,Contract Hire,02-Oct-2012,2501276-AA701,"1,521.50",AA MINIBUS HIRE.
Adults Wellbeing and Health,Head of Adults,Transport,230005,Contract Hire,09-Oct-2012,2503895-AA706,"1,800.00",AA MINIBUS HIRE.
Adults Wellbeing and Health,Head of Adults,Transport,230005,Contract Hire,09-Oct-2012,2503895-AA707,"1,776.00",AA MINIBUS HIRE.
Adults Wellbeing and Health,Head of Adults,Transport,230005,Contract Hire,09-Oct-2012,2503896-C10/S,661.50,AABAT TAXIS.
Adults Wellbeing and Health,Head of Adults,Third Party Payments,474101,Purchase of Care,11-Oct-2012,2504428-2057452,"2,303.28",ABBEYMOOR CLINIC.
Adults Wellbeing and Health,Head of Adults,Third Party Payments,470101,Purchase of Care,11-Oct-2012,2504429-2055167,"1,857.24",ABBEYVALE.
Adults Wellbeing and Health,Head of Adults,Third Party Payments,470101,Purchase of Care,11-Oct-2012,2504429-2055184,928.64,ABBEYVALE.
Adults Wellbeing and Health,Head of Adults,Third Party Payments,470101,Purchase of Care,11-Oct-2012,2504429-2055186,"1,857.24",ABBEYVALE.
Adults Wellbeing and Health,Head of Adults,Third Party Payments,470101,Purchase of Care,11-Oct-2012,2504429-2055187,663.30,ABBEYVALE.
Adults Wellbeing and Health,Head of Adults,Third Party Payments,470101,Purchase of Care,11-Oct-2012,2504429-2055188,"1,857.24",ABBEYVALE.
Adults Wellbeing and Health,Head of Adults,Third Party Payments,470101,Purchase of Care,11-Oct-2012,2504429-2055189,"1,857.24",ABBEYVALE.
Adults Wellbeing and Health,Head of Adults,Third Party Payments,470101,Purchase of Care,11-Oct-2012,2504429-2055190,"1,857.24",ABBEYVALE.
Adults Wellbeing and Health,Head of Adults,Third Party Payments,470101,Purchase of Care,11-Oct-2012,2504429-2055191,"1,857.24",ABBEYVALE.
Adults Wellbeing and Health,Head of Adults,Third Party Payments,470101,Purchase of Care,11-Oct-2012,2504429-2055192,"1,857.24",ABBEYVALE.
Adults Wellbeing and Health,Head of Adults,Third Party Payments,470101,Purchase of Care,11-Oct-2012,2504429-2055193,"1,857.24",ABBEYVALE.
Adults Wellbeing and Health,Head of Adults,Third Party Payments,470101,Purchase of Care,11-Oct-2012,2504429-2055194,"1,260.27",ABBEYVALE.
Adults Wellbeing and Health,Head of Adults,Third Party Payments,470101,Purchase of Care,11-Oct-2012,2504429-2055195,"1,917.24",ABBEYVALE.
Adults Wellbeing and Health,Head of Adults,Third Party Payments,470101,Purchase of Care,11-Oct-2012,2504429-2055196,"1,857.24",ABBEYVALE.
Adults Wellbeing and Health,Head of Adults,Third Party Payments,470101,Purchase of Care,11-Oct-2012,2504429-2055197,596.97,ABBEYVALE.
Adults Wellbeing and Health,Head of Adults,Third Party Payments,470101,Purchase of Care,11-Oct-2012,2504429-2055198,"1,857.24",ABBEYVALE.
Adults Wellbeing and Health,Head of Adults,Third Party Payments,470101,Purchase of Care,11-Oct-2012,2504429-2055199,"1,857.24",ABBEYVALE.
Adults Wellbeing and Health,Head of Adults,Third Party Payments,470101,Purchase of Care,11-Oct-2012,2504429-2055201,"1,857.24",ABBEYVALE.
Adults Wellbeing and Health,Head of Adults,Third Party Payments,470101,Purchase of Care,11-Oct-2012,2504429-2055202,"1,857.24",ABBEYVALE.
Adults Wellbeing and Health,Head of Adults,Third Party Payments,470101,Purchase of Care,11-Oct-2012,2504429-2055203,"1,857.24",ABBEYVALE.
Adults Wellbeing and Health,Head of Adults,Third Party Payments,470101,Purchase of Care,11-Oct-2012,2504429-2055204,"1,857.24",ABBEYVALE.
Adults Wellbeing and Health,Head of Adults,Third Party Payments,470101,Purchase of Care,11-Oct-2012,2504429-2057366,"1,831.96",ABBEYVALE.
Adults Wellbeing and Health,Head of Adults,Third Party Payments,470101,Purchase of Care,11-Oct-2012,2504429-2057587,"2,500.00",ABBEYVALE.
Adults Wellbeing and Health,Head of Adults,Third Party Payments,470101,Purchase of Care,11-Oct-2012,2504429-2057613,"2,400.00",ABBEYVALE.
Adults Wellbeing and Health,Head of Adults,Third Party Payments,470101,Purchase of Care,11-Oct-2012,2504429-2057614,"2,400.00",ABBEYVALE.
Adults Wellbeing and Health,Head of Adults,Third Party Payments,470101,Purchase of Care,11-Oct-2012,2504429-2057615,"2,400.00",ABBEYVALE.
Adults Wellbeing and Health,Head of Adults,Third Party Payments,470101,Purchase of Care,11-Oct-2012,2504429-2057616,"2,500.00",ABBEYVALE.
Adults Wellbeing and Health,Head of Adults,Third Party Payments,470101,Purchase of Care,11-Oct-2012,2504429-2057617,"2,400.00",ABBEYVALE.
Adults Wellbeing and Health,Head of Adults,Third Party Payments,470101,Purchase of Care,11-Oct-2012,2504429-2057618,"2,400.00",ABBEYVALE.
Adults Wellbeing and Health,Head of Adults,Third Party Payments,470101,Purchase of Care,11-Oct-2012,2504429-2057619,"2,400.00",ABBEYVALE.
Adults Wellbeing and Health,Head of Adults,Third Party Payments,471101,Purchase of Care,11-Oct-2012,2504429-2058533,"1,925.76",ABBEYVALE.
Adults Wellbeing and Health,Head of Adults,Third Party Payments,471101,Purchase of Care,11-Oct-2012,2504429-2058534,"1,925.76",ABBEYVALE.
Adults Wellbeing and Health,Head of Adults,Third Party Payments,471101,Purchase of Care,11-Oct-2012,2504429-2058554,"1,925.76",ABBEYVALE.
Adults Wellbeing and Health,Head of Adults,Third Party Payments,471101,Purchase of Care,11-Oct-2012,2504429-2058555,"1,925.76",ABBEYVALE.
Adults Wellbeing and Health,Head of Adults,Third Party Payments,471101,Purchase of Care,11-Oct-2012,2504429-2058556,"1,925.76",ABBEYVALE.
Adults Wellbeing and Health,Head of Adults,Third Party Payments,471101,Purchase of Care,11-Oct-2012,2504429-2058557,"1,925.76",ABBEYVALE.
Adults Wellbeing and Health,Head of Adults,Third Party Payments,471101,Purchase of Care,11-Oct-2012,2504429-2058558,"1,925.76",ABBEYVALE.
Adults Wellbeing and Health,Head of Adults,Third Party Payments,471101,Purchase of Care,11-Oct-2012,2504429-2058559,"1,925.76",ABBEYVALE.
Adults Wellbeing and Health,Head of Adults,Third Party Payments,471101,Purchase of Care,11-Oct-2012,2504429-2058560,"1,925.76",ABBEYVALE.
Adults Wellbeing and Health,Head of Adults,Third Party Payments,471101,Purchase of Care,11-Oct-2012,2504429-2058561,"1,925.76",ABBEYVALE.
Adults Wellbeing and Health,Head of Adults,Third Party Payments,470101,Purchase of Care,11-Oct-2012,2504429-2059399,729.63,ABBEYVALE.
Adults Wellbeing and Health,Head of Adults,Third Party Payments,470101,Purchase of Care,11-Oct-2012,2504434-1272482H,"2,933.48",ACCEPT CARE LTD.
Adults Wellbeing and Health,Head of Adults,Third Party Payments,478101,Purchase of Care,11-Oct-2012,2504434-1272597H,"3,614.60",ACCEPT CARE LTD.
Adults Wellbeing and Health,Head of Adults,Third Party Payments,478101,Purchase of Care,11-Oct-2012,2504434-1272658H,"5,140.08",ACCEPT CARE LTD.
Adults Wellbeing and Health,Head of Adults,Third Party Payments,478101,Purchase of Care,11-Oct-2012,2504434-1272795H,"2,920.52",ACCEPT CARE LTD.
Adults Wellbeing and Health,Head of Adults,Third Party Payments,478101,Purchase of Care,11-Oct-2012,2504434-1272857H,"1,440.80",ACCEPT CARE LTD.
Adults Wellbeing and Health,Head of Adults,Third Party Payments,478101,Purchase of Care,11-Oct-2012,2504434-1273138H,"5,088.16",ACCEPT CARE LTD.
Adults Wellbeing and Health,Head of Adults,Third Party Payments,478101,Purchase of Care,11-Oct-2012,2504434-1273179H,"1,232.00",ACCEPT CARE LTD.
Adults Wellbeing and Health,Head of Adults,Third Party Payments,478101,Purchase of Care,11-Oct-2012,2504434-1273301H,"5,503.52",ACCEPT CARE LTD.
Adults Wellbeing and Health,Head of Adults,Third Party Payments,478101,Purchase of Care,11-Oct-2012,2504434-1273316H,"3,634.40",ACCEPT CARE LTD.
Adults Wellbeing and Health,Head of Adults,Third Party Payments,472101,Purchase of Care,11-Oct-2012,2504434-1273417H,672.00,ACCEPT CARE LTD.
Adults Wellbeing and Health,Head of Adults,Third Party Payments,478101,Purchase of Care,11-Oct-2012,2504434-1273623H,"5,866.96",ACCEPT CARE LTD.
Adults Wellbeing and Health,Head of Adults,Third Party Payments,478101,Purchase of Care,11-Oct-2012,2504434-1273834H,"1,232.00",ACCEPT CARE LTD.
Adults Wellbeing and Health,Head of Adults,Third Party Payments,478101,Purchase of Care,11-Oct-2012,2504434-1273838H,"7,891.84",ACCEPT CARE LTD.
Adults Wellbeing and Health,Head of Adults,Third Party Payments,478101,Purchase of Care,11-Oct-2012,2504434-1273863H,"2,673.88",ACCEPT CARE LTD.
Adults Wellbeing and Health,Head of Adults,Third Party Payments,478101,Purchase of Care,11-Oct-2012,2504434-1273939H,"4,776.64",ACCEPT CARE LTD.
Adults Wellbeing and Health,Head of Adults,Third Party Payments,478101,Purchase of Care,11-Oct-2012,2504434-1274046H,"5,477.56",ACCEPT CARE LTD.
Adults Wellbeing and Health,Head of Adults,Third Party Payments,478101,Purchase of Care,11-Oct-2012,2504434-1274072H,"4,580.52",ACCEPT CARE LTD.
Adults Wellbeing and Health,Head of Adults,Third Party Payments,478101,Purchase of Care,11-Oct-2012,2504434-1274088H,"3,582.48",ACCEPT CARE LTD.
Adults Wellbeing and Health,Head of Adults,Third Party Payments,478101,Purchase of Care,11-Oct-2012,2504434-1274149H,"3,997.84",ACCEPT CARE LTD.
Adults Wellbeing and Health,Head of Adults,Third Party Payments,478101,Purchase of Care,11-Oct-2012,2504434-1274263H,"7,969.72",ACCEPT CARE LTD.
Adults Wellbeing and Health,Head of Adults,Third Party Payments,478101,Purchase of Care,11-Oct-2012,2504434-1274268H,"11,889.68",ACCEPT CARE LTD.
Adults Wellbeing and Health,Head of Adults,Third Party Payments,478101,Purchase of Care,11-Oct-2012,2504434-1274282H,"3,011.36",ACCEPT CARE LTD.
Adults Wellbeing and Health,Head of Adults,Third Party Payments,478101,Purchase of Care,11-Oct-2012,2504434-1274394H,"5,224.00",ACCEPT CARE LTD.
Adults Wellbeing and Health,Head of Adults,Third Party Payments,478101,Purchase of Care,11-Oct-2012,2504434-1274402H,"6,541.92",ACCEPT CARE LTD.
Adults Wellbeing and Health,Head of Adults,Third Party Payments,472101,Purchase of Care,11-Oct-2012,2504434-1274941H,672.00,ACCEPT CARE LTD.
Adults Wellbeing and Health,Head of Adults,Third Party Payments,478101,Purchase of Care,11-Oct-2012,2504434-1274955H,"1,600.50",ACCEPT CARE LTD.
Adults Wellbeing and Health,Head of Adults,Third Party Payments,478101,Purchase of Care,11-Oct-2012,2504434-1275087H,"6,384.00",ACCEPT CARE LTD.
Adults Wellbeing and Health,Head of Adults,Third Party Payments,478101,Purchase of Care,11-Oct-2012,2504434-1275127H,"4,620.88",ACCEPT CARE LTD.
Adults Wellbeing and Health,Head of Adults,Third Party Payments,478101,Purchase of Care,11-Oct-2012,2504434-1275357H,"1,232.00",ACCEPT CARE LTD.
Adults Wellbeing and Health,Head of Adults,Third Party Payments,478101,Purchase of Care,11-Oct-2012,2504434-1275668H,"6,905.36",ACCEPT CARE LTD.
Adults Wellbeing and Health,Head of Adults,Third Party Payments,478101,Purchase of Care,11-Oct-2012,2504434-1275785H,"4,413.20",ACCEPT CARE LTD.
Adults Wellbeing and Health,Head of Adults,Third Party Payments,478101,Purchase of Care,11-Oct-2012,2504434-1275855H,"4,698.76",ACCEPT CARE LTD.
Adults Wellbeing and Health,Head of Adults,Third Party Payments,478101,Purchase of Care,11-Oct-2012,2504434-1275934H,990.00,ACCEPT CARE LTD.
Adults Wellbeing and Health,Head of Adults,Third Party Payments,478101,Purchase of Care,11-Oct-2012,2504434-1275960H,"4,984.00",ACCEPT CARE LTD.
Adults Wellbeing and Health,Head of Adults,Third Party Payments,478101,Purchase of Care,11-Oct-2012,2504434-1276398H,"3,816.12",ACCEPT CARE LTD.
Adults Wellbeing and Health,Head of Adults,Third Party Payments,478101,Purchase of Care,11-Oct-2012,2504434-1277333H,"7,268.80",ACCEPT CARE LTD.
Adults Wellbeing and Health,Head of Adults,Third Party Payments,478101,Purchase of Care,11-Oct-2012,2504434-1277419H,"1,320.00",ACCEPT CARE LTD.
Adults Wellbeing and Health,Head of Adults,Third Party Payments,478101,Purchase of Care,11-Oct-2012,2504434-1277548H,"5,996.76",ACCEPT CARE LTD.
Adults Wellbeing and Health,Head of Adults,Third Party Payments,478101,Purchase of Care,11-Oct-2012,2504434-1278033H,"1,056.00",ACCEPT CARE LTD.
Adults Wellbeing and Health,Head of Adults,Third Party Payments,478101,Purchase of Care,11-Oct-2012,2504434-1278498H,528.00,ACCEPT CARE LTD.
Adults Wellbeing and Health,Head of Adults,Third Party Payments,473101,Purchase of Care,11-Oct-2012,2504799-1273267D,507.42,ACORN GRANGE NURSING HOME.
Adults Wellbeing and Health,Head of Adults,Third Party Payments,473101,Purchase of Care,11-Oct-2012,2504799-1274948D,608.25,ACORN GRANGE NURSING HOME.
Adults Wellbeing and Health,Head of Adults,Third Party Payments,473101,Purchase of Care,11-Oct-2012,2504799-1277288D,507.42,ACORN GRANGE NURSING HOME.
Adults Wellbeing and Health,Head of Adults,Third Party Payments,473101,Purchase of Care,11-Oct-2012,2504799-1277480D,546.78,ACORN GRANGE NURSING HOME.
Adults Wellbeing and Health,Head of Adults,Third Party Payments,473101,Purchase of Care,11-Oct-2012,2504799-1278161D,862.58,ACORN GRANGE NURSING HOME.
Adults Wellbeing and Health,Head of Adults,Third Party Payments,473101,Purchase of Care,11-Oct-2012,2504799-1278224D,552.18,ACORN GRANGE NURSING HOME.
Adults Wellbeing and Health,Head of Adults,Third Party Payments,473101,Purchase of Care,11-Oct-2012,2504799-1278385D,841.20,ACORN GRANGE NURSING HOME.
Adults Wellbeing and Health,Head of Adults,Third Party Payments,473101,Purchase of Care,11-Oct-2012,2504799-1278650D,857.40,ACORN GRANGE NURSING HOME.
Adults Wellbeing and Health,Head of Adults,Third Party Payments,473101,Purchase of Care,11-Oct-2012,2504799-1278739D,507.42,ACORN GRANGE NURSING HOME.
Adults Wellbeing and Health,Head of Adults,Third Party Payments,473101,Purchase of Care,11-Oct-2012,2504799-1278806D,515.30,ACORN GRANGE NURSING HOME.
Adults Wellbeing and Health,Head of Adults,Third Party Payments,470101,Purchase of Care,11-Oct-2012,2504799-2055913,"1,757.76",ACORN GRANGE NURSING HOME.
Adults Wellbeing and Health,Head of Adults,Third Party Payments,470101,Purchase of Care,11-Oct-2012,2504799-2055914,"1,757.76",ACORN GRANGE NURSING HOME.
Adults Wellbeing and Health,Head of Adults,Third Party Payments,470101,Purchase of Care,11-Oct-2012,2504799-2055915,"1,757.76",ACORN GRANGE NURSING HOME.
Adults Wellbeing and Health,Head of Adults,Third Party Payments,470101,Purchase of Care,11-Oct-2012,2504799-2055916,"1,757.76",ACORN GRANGE NURSING HOME.
Adults Wellbeing and Health,Head of Adults,Third Party Payments,470101,Purchase of Care,11-Oct-2012,2504799-2055917,"1,757.76",ACORN GRANGE NURSING HOME.
Adults Wellbeing and Health,Head of Adults,Third Party Payments,470101,Purchase of Care,11-Oct-2012,2504799-2055918,"1,757.76",ACORN GRANGE NURSING HOME.
Adults Wellbeing and Health,Head of Adults,Third Party Payments,470101,Purchase of Care,11-Oct-2012,2504799-2055948,"1,757.76",ACORN GRANGE NURSING HOME.
Adults Wellbeing and Health,Head of Adults,Third Party Payments,470101,Purchase of Care,11-Oct-2012,2504799-2055999,"1,757.76",ACORN GRANGE NURSING HOME.
Adults Wellbeing and Health,Head of Adults,Third Party Payments,470101,Purchase of Care,11-Oct-2012,2504799-2056000,"1,757.76",ACORN GRANGE NURSING HOME.
Adults Wellbeing and Health,Head of Adults,Third Party Payments,470101,Purchase of Care,11-Oct-2012,2504799-2056001,"1,757.76",ACORN GRANGE NURSING HOME.
Adults Wellbeing and Health,Head of Adults,Third Party Payments,470101,Purchase of Care,11-Oct-2012,2504799-2056002,"1,757.76",ACORN GRANGE NURSING HOME.
Adults Wellbeing and Health,Head of Adults,Third Party Payments,470101,Purchase of Care,11-Oct-2012,2504799-2056003,"1,757.76",ACORN GRANGE NURSING HOME.
Adults Wellbeing and Health,Head of Adults,Third Party Payments,470101,Purchase of Care,11-Oct-2012,2504799-2056005,"1,757.76",ACORN GRANGE NURSING HOME.
Adults Wellbeing and Health,Head of Adults,Third Party Payments,470101,Purchase of Care,11-Oct-2012,2504799-2056006,941.65,ACORN GRANGE NURSING HOME.
Adults Wellbeing and Health,Head of Adults,Third Party Payments,470101,Purchase of Care,11-Oct-2012,2504799-2056008,"1,757.76",ACORN GRANGE NURSING HOME.
Adults Wellbeing and Health,Head of Adults,Third Party Payments,471101,Purchase of Care,11-Oct-2012,2504799-2059013,"1,827.24",ACORN GRANGE NURSING HOME.
Adults Wellbeing and Health,Head of Adults,Third Party Payments,471101,Purchase of Care,11-Oct-2012,2504799-2059014,"1,827.24",ACORN GRANGE NURSING HOME.
Adults Wellbeing and Health,Head of Adults,Third Party Payments,471101,Purchase of Care,11-Oct-2012,2504799-2059015,"1,827.24",ACORN GRANGE NURSING HOME.
Adults Wellbeing and Health,Head of Adults,Third Party Payments,471101,Purchase of Care,11-Oct-2012,2504799-2059016,"1,827.24",ACORN GRANGE NURSING HOME.
Adults Wellbeing and Health,Head of Adults,Third Party Payments,471101,Purchase of Care,11-Oct-2012,2504799-2059018,"1,827.24",ACORN GRANGE NURSING HOME.
Adults Wellbeing and Health,Head of Adults,Third Party Payments,471101,Purchase of Care,11-Oct-2012,2504799-2059019,"1,827.24",ACORN GRANGE NURSING HOME.
Adults Wellbeing and Health,Head of Adults,Third Party Payments,471101,Purchase of Care,11-Oct-2012,2504799-2059026,"1,827.24",ACORN GRANGE NURSING HOME.
Adults Wellbeing and Health,Head of Adults,Third Party Payments,471101,Purchase of Care,11-Oct-2012,2504799-2059035,"1,827.24",ACORN GRANGE NURSING HOME.
Adults Wellbeing and Health,Head of Adults,Third Party Payments,471101,Purchase of Care,11-Oct-2012,2504799-2059042,"1,827.24",ACORN GRANGE NURSING HOME.
Adults Wellbeing and Health,Head of Adults,Third Party Payments,471101,Purchase of Care,11-Oct-2012,2504799-2059053,"1,827.24",ACORN GRANGE NURSING HOME.
Adults Wellbeing and Health,Head of Adults,Third Party Payments,471101,Purchase of Care,11-Oct-2012,2504799-2059054,"1,827.24",ACORN GRANGE NURSING HOME.
Adults Wellbeing and Health,Head of Adults,Third Party Payments,471101,Purchase of Care,11-Oct-2012,2504799-2059055,"1,827.24",ACORN GRANGE NURSING HOME.
Adults Wellbeing and Health,Head of Adults,Third Party Payments,471101,Purchase of Care,11-Oct-2012,2504799-2059057,"1,827.24",ACORN GRANGE NURSING HOME.
Adults Wellbeing and Health,Head of Adults,Third Party Payments,471101,Purchase of Care,11-Oct-2012,2504799-2059058,"1,827.24",ACORN GRANGE NURSING HOME.
Adults Wellbeing and Health,Head of Adults,Third Party Payments,471101,Purchase of Care,11-Oct-2012,2504799-2059060,"1,827.24",ACORN GRANGE NURSING HOME.
Adults Wellbeing and Health,Head of Adults,Third Party Payments,471101,Purchase of Care,11-Oct-2012,2504799-2059061,"1,827.24",ACORN GRANGE NURSING HOME.
Adults Wellbeing and Health,Head of Adults,Third Party Payments,471101,Purchase of Care,11-Oct-2012,2504799-2059462,"1,044.13",ACORN GRANGE NURSING HOME.
Adults Wellbeing and Health,Head of Adults,Third Party Payments,471101,Purchase of Care,11-Oct-2012,2504799-2059463,587.32,ACORN GRANGE NURSING HOME.
Adults Wellbeing and Health,Head of Adults,Third Party Payments,471101,Purchase of Care,11-Oct-2012,2504799-2059464,524.97,ACORN GRANGE NURSING HOME.
Adults Wellbeing and Health,Head of Adults,Third Party Payments,470101,Purchase of Care,11-Oct-2012,2504799-2059466,"1,569.42",ACORN GRANGE NURSING HOME.
Adults Wellbeing and Health,Head of Adults,Third Party Payments,470101,Purchase of Care,11-Oct-2012,2504799-2059469,"1,004.43",ACORN GRANGE NURSING HOME.
Adults Wellbeing and Health,Head of Adults,Third Party Payments,470101,Purchase of Care,11-Oct-2012,2504799-2059470,753.32,ACORN GRANGE NURSING HOME.
Adults Wellbeing and Health,Head of Adults,Transfer Payments,515201,Social Services Clients,11-Oct-2012,2504801-1272443H,772.84,REDACTED - PAYMENT TO INDIVIDUAL
Adults Wellbeing and Health,Head of Adults,Transfer Payments,515201,Social Services Clients,11-Oct-2012,2504801-1276555H,"1,547.40",REDACTED - PAYMENT TO INDIVIDUAL
Adults Wellbeing and Health,Head of Adults,Transport,230007,Contract Hire,23-Oct-2012,2511067-302,576.00,ADAMSONS TAXIS.
Adults Wellbeing and Health,Head of Adults,Third Party Payments,474101,Purchase of Care,11-Oct-2012,2504812-2058176,"1,195.20",ADMIRAL COURT.
Adults Wellbeing and Health,Head of Adults,Third Party Payments,474101,Purchase of Care,11-Oct-2012,2504812-2058177,"1,672.00",ADMIRAL COURT.
Adults Wellbeing and Health,Commissioning inc Supporting People,Supplies and Services,304259,Equipment and Materials,17-Oct-2012,2508395-22193134-61,860.08,ADT FIRE & SECURITY PLC.
Adults Wellbeing and Health,Head of Adults,Transfer Payments,515209,Social Services Clients,11-Oct-2012,2504831-1273515D,533.20,REDACTED - PAYMENT TO INDIVIDUAL
Adults Wellbeing and Health,Head of Adults,Transfer Payments,515201,Social Services Clients,11-Oct-2012,2504837-1274139H,"1,112.32",REDACTED - PAYMENT TO INDIVIDUAL
Adults Wellbeing and Health,Head of Adults,Third Party Payments,470101,Purchase of Care,11-Oct-2012,2504858-2055684,"2,785.86",ALLIANCE CARE.
Adults Wellbeing and Health,Head of Adults,Third Party Payments,470101,Purchase of Care,11-Oct-2012,2504858-2055685,"1,340.72",ALLIANCE CARE.
Adults Wellbeing and Health,Head of Adults,Third Party Payments,470101,Purchase of Care,11-Oct-2012,2504858-2055686,"1,259.56",ALLIANCE CARE.
Adults Wellbeing and Health,Head of Adults,Third Party Payments,470101,Purchase of Care,11-Oct-2012,2504858-2055687,"1,380.44",ALLIANCE CARE.
Adults Wellbeing and Health,Head of Adults,Third Party Payments,470101,Purchase of Care,11-Oct-2012,2504858-2055703,"1,380.44",ALLIANCE CARE.
Adults Wellbeing and Health,Head of Adults,Third Party Payments,470101,Purchase of Care,11-Oct-2012,2504858-2055704,"1,329.76",ALLIANCE CARE.
Adults Wellbeing and Health,Head of Adults,Third Party Payments,470101,Purchase of Care,11-Oct-2012,2504858-2055705,"1,857.24",ALLIANCE CARE.
Adults Wellbeing and Health,Head of Adults,Third Party Payments,470101,Purchase of Care,11-Oct-2012,2504858-2055706,973.64,ALLIANCE CARE.
Adults Wellbeing and Health,Head of Adults,Third Party Payments,470101,Purchase of Care,11-Oct-2012,2504858-2055707,530.64,ALLIANCE CARE.
Adults Wellbeing and Health,Head of Adults,Third Party Payments,470101,Purchase of Care,11-Oct-2012,2504858-2055708,"1,857.24",ALLIANCE CARE.
Adults Wellbeing and Health,Head of Adults,Third Party Payments,470101,Purchase of Care,11-Oct-2012,2504858-2055710,"1,857.24",ALLIANCE CARE.
Adults Wellbeing and Health,Head of Adults,Third Party Payments,470101,Purchase of Care,11-Oct-2012,2504858-2055711,"1,380.44",ALLIANCE CARE.
Adults Wellbeing and Health,Head of Adults,Third Party Payments,470101,Purchase of Care,11-Oct-2012,2504858-2055712,"1,320.16",ALLIANCE CARE.
Adults Wellbeing and Health,Head of Adults,Third Party Payments,470101,Purchase of Care,11-Oct-2012,2504858-2055713,"1,104.40",ALLIANCE CARE.
Adults Wellbeing and Health,Head of Adults,Third Party Payments,470101,Purchase of Care,11-Oct-2012,2504858-2055714,"1,857.24",ALLIANCE CARE.
Adults Wellbeing and Health,Head of Adults,Third Party Payments,470101,Purchase of Care,11-Oct-2012,2504858-2055715,"1,974.24",ALLIANCE CARE.
Adults Wellbeing and Health,Head of Adults,Third Party Payments,470101,Purchase of Care,11-Oct-2012,2504858-2055716,"1,380.44",ALLIANCE CARE.
Adults Wellbeing and Health,Head of Adults,Third Party Payments,470101,Purchase of Care,11-Oct-2012,2504858-2055717,"1,380.44",ALLIANCE CARE.
Adults Wellbeing and Health,Head of Adults,Third Party Payments,474101,Purchase of Care,11-Oct-2012,2504858-2056758,"1,348.96",ALLIANCE CARE.
Adults Wellbeing and Health,Head of Adults,Third Party Payments,474101,Purchase of Care,11-Oct-2012,2504858-2056760,"1,448.52",ALLIANCE CARE.
Adults Wellbeing and Health,Head of Adults,Third Party Payments,474101,Purchase of Care,11-Oct-2012,2504858-2056762,"1,327.58",ALLIANCE CARE.
Adults Wellbeing and Health,Financing-Adult Services,Debtors,930024,Debtor-free nursing care,11-Oct-2012,2504858-2056764,"1,133.58",ALLIANCE CARE.
Adults Wellbeing and Health,Head of Adults,Third Party Payments,474101,Purchase of Care,11-Oct-2012,2504858-2056765,"1,536.28",ALLIANCE CARE.
Adults Wellbeing and Health,Head of Adults,Third Party Payments,474101,Purchase of Care,11-Oct-2012,2504858-2056767,"1,468.20",ALLIANCE CARE.
Adults Wellbeing and Health,Head of Adults,Third Party Payments,474101,Purchase of Care,11-Oct-2012,2504858-2056769,"1,405.40",ALLIANCE CARE.
Adults Wellbeing and Health,Head of Adults,Third Party Payments,474101,Purchase of Care,11-Oct-2012,2504858-2056771,"1,261.23",ALLIANCE CARE.
Adults Wellbeing and Health,Head of Adults,Third Party Payments,470101,Purchase of Care,11-Oct-2012,2504858-2057403,"1,621.96",ALLIANCE CARE.
Adults Wellbeing and Health,Head of Adults,Third Party Payments,471101,Purchase of Care,11-Oct-2012,2504858-2058906,"1,333.68",ALLIANCE CARE.
Adults Wellbeing and Health,Head of Adults,Third Party Payments,471101,Purchase of Care,11-Oct-2012,2504858-2058907,"1,110.56",ALLIANCE CARE.
Adults Wellbeing and Health,Head of Adults,Third Party Payments,471101,Purchase of Care,11-Oct-2012,2504858-2058909,"1,333.24",ALLIANCE CARE.
Adults Wellbeing and Health,Head of Adults,Third Party Payments,471101,Purchase of Care,11-Oct-2012,2504858-2058910,"1,048.08",ALLIANCE CARE.
Adults Wellbeing and Health,Head of Adults,Third Party Payments,471101,Purchase of Care,11-Oct-2012,2504858-2058911,"1,368.20",ALLIANCE CARE.
Adults Wellbeing and Health,Head of Adults,Third Party Payments,471101,Purchase of Care,11-Oct-2012,2504858-2058912,"1,262.76",ALLIANCE CARE.
Adults Wellbeing and Health,Head of Adults,Third Party Payments,471101,Purchase of Care,11-Oct-2012,2504858-2058913,"1,925.76",ALLIANCE CARE.
Adults Wellbeing and Health,Head of Adults,Third Party Payments,471101,Purchase of Care,11-Oct-2012,2504858-2058914,997.04,ALLIANCE CARE.
Adults Wellbeing and Health,Head of Adults,Third Party Payments,470101,Purchase of Care,11-Oct-2012,2504858-2059227,"2,056.23",ALLIANCE CARE.
Adults Wellbeing and Health,Head of Adults,Third Party Payments,471101,Purchase of Care,11-Oct-2012,2504858-2059349,550.21,ALLIANCE CARE.
Adults Wellbeing and Health,Head of Adults,Third Party Payments,470101,Purchase of Care,11-Oct-2012,2504858-2059626,"1,183.23",ALLIANCE CARE.
Adults Wellbeing and Health,Head of Adults,Third Party Payments,470101,Purchase of Care,11-Oct-2012,2504859-2057414,"1,612.28",ALLIANCE CARE.
Adults Wellbeing and Health,Head of Adults,Third Party Payments,470101,Purchase of Care,11-Oct-2012,2504859-2057415,"1,961.68",ALLIANCE CARE.
Adults Wellbeing and Health,Head of Adults,Third Party Payments,470101,Purchase of Care,11-Oct-2012,2504859-2057422,"1,961.68",ALLIANCE CARE.
Adults Wellbeing and Health,Head of Adults,Third Party Payments,470101,Purchase of Care,11-Oct-2012,2504859-2057423,926.56,ALLIANCE CARE.
Adults Wellbeing and Health,Head of Adults,Third Party Payments,470101,Purchase of Care,11-Oct-2012,2504859-2057424,"1,650.28",ALLIANCE CARE.
Adults Wellbeing and Health,Head of Adults,Third Party Payments,474101,Purchase of Care,11-Oct-2012,2504859-2057488,"2,424.73",ALLIANCE CARE.
Adults Wellbeing and Health,Financing-Adult Services,Debtors,930024,Debtor-free nursing care,11-Oct-2012,2504859-2057489,527.97,ALLIANCE CARE.
Adults Wellbeing and Health,Head of Adults,Third Party Payments,474101,Purchase of Care,11-Oct-2012,2504859-2057490,"1,694.24",ALLIANCE CARE.
Adults Wellbeing and Health,Head of Adults,Third Party Payments,472101,Purchase of Care,11-Oct-2012,2504860-1273640H,758.00,ALLIED HEALTHCARE GROUP LTD.
Adults Wellbeing and Health,Head of Adults,Third Party Payments,472101,Purchase of Care,16-Oct-2012,2508120-G2632964,527.04,ALLIED HEALTHCARE GROUP LTD.
Adults Wellbeing and Health,Head of Adults,Transfer Payments,515209,Social Services Clients,11-Oct-2012,2504876-1273251D,"1,327.72",REDACTED - PAYMENT TO INDIVIDUAL
Adults Wellbeing and Health,Head of Adults,Transfer Payments,515209,Social Services Clients,11-Oct-2012,2504882-1274503D,528.96,REDACTED - PAYMENT TO INDIVIDUAL
Adults Wellbeing and Health,Head of Adults,Transfer Payments,515201,Social Services Clients,11-Oct-2012,2504883-1276528H,"1,180.96",REDACTED - PAYMENT TO INDIVIDUAL
Adults Wellbeing and Health,Head of Adults,Transfer Payments,515201,Social Services Clients,11-Oct-2012,2504903-1274124H,737.76,REDACTED - PAYMENT TO INDIVIDUAL
Adults Wellbeing and Health,Head of Adults,Transfer Payments,515209,Social Services Clients,11-Oct-2012,2504904-1274461D,785.00,REDACTED - PAYMENT TO INDIVIDUAL
Adults Wellbeing and Health,Head of Adults,Transfer Payments,515201,Social Services Clients,11-Oct-2012,2504904-1274461H,"1,135.00",REDACTED - PAYMENT TO INDIVIDUAL
Adults Wellbeing and Health,Head of Adults,Third Party Payments,472101,Purchase of Care,11-Oct-2012,2504911-1272484H,527.52,APPLEJACK HOME CARE LTD.
Adults Wellbeing and Health,Head of Adults,Third Party Payments,472101,Purchase of Care,11-Oct-2012,2504911-1272907H,"1,075.22",APPLEJACK HOME CARE LTD.
Adults Wellbeing and Health,Head of Adults,Third Party Payments,472101,Purchase of Care,11-Oct-2012,2504911-1273026H,"1,276.56",APPLEJACK HOME CARE LTD.
Adults Wellbeing and Health,Head of Adults,Third Party Payments,472101,Purchase of Care,11-Oct-2012,2504911-1274474H,651.46,APPLEJACK HOME CARE LTD.
Adults Wellbeing and Health,Head of Adults,Third Party Payments,472101,Purchase of Care,11-Oct-2012,2504911-1275026H,822.92,APPLEJACK HOME CARE LTD.
Adults Wellbeing and Health,Head of Adults,Third Party Payments,472101,Purchase of Care,11-Oct-2012,2504911-1275036H,525.54,APPLEJACK HOME CARE LTD.
Adults Wellbeing and Health,Head of Adults,Third Party Payments,472101,Purchase of Care,11-Oct-2012,2504911-1275146H,749.04,APPLEJACK HOME CARE LTD.
Adults Wellbeing and Health,Head of Adults,Third Party Payments,472101,Purchase of Care,11-Oct-2012,2504911-1275313H,759.60,APPLEJACK HOME CARE LTD.
Adults Wellbeing and Health,Head of Adults,Third Party Payments,472101,Purchase of Care,11-Oct-2012,2504911-1275628H,606.38,APPLEJACK HOME CARE LTD.
Adults Wellbeing and Health,Head of Adults,Third Party Payments,472101,Purchase of Care,11-Oct-2012,2504911-1275639H,538.04,APPLEJACK HOME CARE LTD.
Adults Wellbeing and Health,Head of Adults,Third Party Payments,472101,Purchase of Care,11-Oct-2012,2504911-1275640H,738.52,APPLEJACK HOME CARE LTD.
Adults Wellbeing and Health,Head of Adults,Third Party Payments,472101,Purchase of Care,11-Oct-2012,2504911-1276130H,"1,082.83",APPLEJACK HOME CARE LTD.
Adults Wellbeing and Health,Head of Adults,Third Party Payments,472101,Purchase of Care,11-Oct-2012,2504911-1276363H,622.44,APPLEJACK HOME CARE LTD.
Adults Wellbeing and Health,Head of Adults,Third Party Payments,472101,Purchase of Care,11-Oct-2012,2504911-1276401H,636.52,APPLEJACK HOME CARE LTD.
Adults Wellbeing and Health,Head of Adults,Third Party Payments,472101,Purchase of Care,11-Oct-2012,2504911-1276424H,738.49,APPLEJACK HOME CARE LTD.
Adults Wellbeing and Health,Head of Adults,Third Party Payments,472101,Purchase of Care,11-Oct-2012,2504911-1276496H,706.84,APPLEJACK HOME CARE LTD.
Adults Wellbeing and Health,Head of Adults,Third Party Payments,472101,Purchase of Care,11-Oct-2012,2504911-1276551H,519.75,APPLEJACK HOME CARE LTD.
Adults Wellbeing and Health,Head of Adults,Third Party Payments,472101,Purchase of Care,11-Oct-2012,2504911-1276689H,559.15,APPLEJACK HOME CARE LTD.
Adults Wellbeing and Health,Head of Adults,Third Party Payments,472101,Purchase of Care,11-Oct-2012,2504911-1276878H,513.44,APPLEJACK HOME CARE LTD.
Adults Wellbeing and Health,Head of Adults,Third Party Payments,472101,Purchase of Care,11-Oct-2012,2504911-1276992H,633.00,APPLEJACK HOME CARE LTD.
Adults Wellbeing and Health,Head of Adults,Third Party Payments,472101,Purchase of Care,11-Oct-2012,2504911-1277004H,696.32,APPLEJACK HOME CARE LTD.
Adults Wellbeing and Health,Head of Adults,Third Party Payments,472101,Purchase of Care,11-Oct-2012,2504911-1277325H,652.34,APPLEJACK HOME CARE LTD.
Adults Wellbeing and Health,Head of Adults,Third Party Payments,472101,Purchase of Care,11-Oct-2012,2504911-1277381H,678.72,APPLEJACK HOME CARE LTD.
Adults Wellbeing and Health,Head of Adults,Third Party Payments,472101,Purchase of Care,11-Oct-2012,2504911-1277524H,646.80,APPLEJACK HOME CARE LTD.
Adults Wellbeing and Health,Head of Adults,Third Party Payments,472101,Purchase of Care,11-Oct-2012,2504911-1277597H,717.40,APPLEJACK HOME CARE LTD.
Adults Wellbeing and Health,Head of Adults,Third Party Payments,472101,Purchase of Care,11-Oct-2012,2504911-1277600H,566.20,APPLEJACK HOME CARE LTD.
Adults Wellbeing and Health,Head of Adults,Third Party Payments,472101,Purchase of Care,11-Oct-2012,2504911-1277639H,633.00,APPLEJACK HOME CARE LTD.
Adults Wellbeing and Health,Head of Adults,Third Party Payments,472101,Purchase of Care,11-Oct-2012,2504911-1277831H,513.98,APPLEJACK HOME CARE LTD.
Adults Wellbeing and Health,Head of Adults,Third Party Payments,472101,Purchase of Care,11-Oct-2012,2504911-1277839H,548.60,APPLEJACK HOME CARE LTD.
Adults Wellbeing and Health,Head of Adults,Third Party Payments,472101,Purchase of Care,11-Oct-2012,2504911-1277913H,524.00,APPLEJACK HOME CARE LTD.
Adults Wellbeing and Health,Head of Adults,Third Party Payments,472101,Purchase of Care,11-Oct-2012,2504911-1277967H,513.44,APPLEJACK HOME CARE LTD.
Adults Wellbeing and Health,Head of Adults,Third Party Payments,472101,Purchase of Care,11-Oct-2012,2504911-1278120H,522.24,APPLEJACK HOME CARE LTD.
Adults Wellbeing and Health,Head of Adults,Third Party Payments,472101,Purchase of Care,11-Oct-2012,2504911-1278129H,675.20,APPLEJACK HOME CARE LTD.
Adults Wellbeing and Health,Head of Adults,Third Party Payments,472101,Purchase of Care,11-Oct-2012,2504911-1278157H,654.12,APPLEJACK HOME CARE LTD.
Adults Wellbeing and Health,Head of Adults,Third Party Payments,472101,Purchase of Care,11-Oct-2012,2504911-1278637H,516.95,APPLEJACK HOME CARE LTD.
Adults Wellbeing and Health,Head of Adults,Third Party Payments,472101,Purchase of Care,11-Oct-2012,2504911-1278643H,"1,392.60",APPLEJACK HOME CARE LTD.
Adults Wellbeing and Health,Head of Adults,Third Party Payments,472101,Purchase of Care,11-Oct-2012,2504911-1278799H,841.36,APPLEJACK HOME CARE LTD.
Adults Wellbeing and Health,Head of Adults,Third Party Payments,472101,Purchase of Care,11-Oct-2012,2504911-1278861H,685.76,APPLEJACK HOME CARE LTD.
Adults Wellbeing and Health,Head of Adults,Third Party Payments,472101,Purchase of Care,11-Oct-2012,2504911-1278884H,"1,498.12",APPLEJACK HOME CARE LTD.
Adults Wellbeing and Health,Head of Adults,Third Party Payments,472101,Purchase of Care,11-Oct-2012,2504911-1278925H,970.61,APPLEJACK HOME CARE LTD.
Adults Wellbeing and Health,Head of Adults,Third Party Payments,472101,Purchase of Care,11-Oct-2012,2504911-1279034H,523.99,APPLEJACK HOME CARE LTD.
Adults Wellbeing and Health,Head of Adults,Third Party Payments,472101,Purchase of Care,11-Oct-2012,2504911-1279054H,"1,174.57",APPLEJACK HOME CARE LTD.
Adults Wellbeing and Health,Head of Adults,Third Party Payments,472101,Purchase of Care,11-Oct-2012,2504911-1279196H,986.42,APPLEJACK HOME CARE LTD.
Adults Wellbeing and Health,Head of Adults,Third Party Payments,472101,Purchase of Care,24-Oct-2012,2511364-AADJ30/9/12,"1,201.05",APPLEJACK HOME CARE LTD.
Adults Wellbeing and Health,Social Inclusion,Third Party Payments,470101,Purchase of Care,11-Oct-2012,2504918-2059205,"1,608.60",ARK HOUSE.
Adults Wellbeing and Health,Head of Adults,Supplies and Services,324117,Provisions,23-Oct-2012,2511075-85,"1,432.00",ASHBARTON CATERING.
Adults Wellbeing and Health,Head of Adults,Third Party Payments,471101,Purchase of Care,11-Oct-2012,2504932-2058688,"1,720.00",ASHLEA PARK.
Adults Wellbeing and Health,Head of Adults,Third Party Payments,471101,Purchase of Care,11-Oct-2012,2504932-2058689,921.42,ASHLEA PARK.
Adults Wellbeing and Health,Head of Adults,Third Party Payments,470101,Purchase of Care,11-Oct-2012,2504933-2057621,950.00,ASHLEIGH HOUSE CARE HOME.
Adults Wellbeing and Health,Head of Adults,Third Party Payments,470101,Purchase of Care,11-Oct-2012,2504933-2057624,"1,900.00",ASHLEIGH HOUSE CARE HOME.
Adults Wellbeing and Health,Head of Adults,Third Party Payments,470101,Purchase of Care,11-Oct-2012,2504933-2057625,"1,102.00",ASHLEIGH HOUSE CARE HOME.
Adults Wellbeing and Health,Head of Adults,Third Party Payments,470101,Purchase of Care,11-Oct-2012,2504933-2057628,"1,660.20",ASHLEIGH HOUSE CARE HOME.
Adults Wellbeing and Health,Head of Adults,Third Party Payments,470101,Purchase of Care,11-Oct-2012,2504933-2059551,"2,171.43",ASHLEIGH HOUSE CARE HOME.
Adults Wellbeing and Health,Head of Adults,Third Party Payments,470101,Purchase of Care,11-Oct-2012,2504933-2059976,678.57,ASHLEIGH HOUSE CARE HOME.
Adults Wellbeing and Health,Head of Adults,Third Party Payments,470101,Purchase of Care,11-Oct-2012,2504933-2059977,576.78,ASHLEIGH HOUSE CARE HOME.
Adults Wellbeing and Health,Head of Adults,Third Party Payments,470101,Purchase of Care,11-Oct-2012,2504933-2059978,712.50,ASHLEIGH HOUSE CARE HOME.
Adults Wellbeing and Health,Social Inclusion,Supplies and Services,312013,"Newspapers, Books and Periodicals",02-Oct-2012,2501297-3631058,549.43,ASKEWS & HOLTS LIBRARY SERVICES LTD.
Adults Wellbeing and Health,Social Inclusion,Supplies and Services,312013,"Newspapers, Books and Periodicals",02-Oct-2012,2501297-3631307,522.46,ASKEWS & HOLTS LIBRARY SERVICES LTD.
Adults Wellbeing and Health,Social Inclusion,Supplies and Services,312013,"Newspapers, Books and Periodicals",04-Oct-2012,2501763-3635906,660.31,ASKEWS & HOLTS LIBRARY SERVICES LTD.
Adults Wellbeing and Health,Social Inclusion,Supplies and Services,312013,"Newspapers, Books and Periodicals",08-Oct-2012,2503019-3640376,555.29,ASKEWS & HOLTS LIBRARY SERVICES LTD.
Adults Wellbeing and Health,Social Inclusion,Supplies and Services,312013,"Newspapers, Books and Periodicals",19-Oct-2012,2509553-3642715,756.01,ASKEWS & HOLTS LIBRARY SERVICES LTD.
Adults Wellbeing and Health,Social Inclusion,Supplies and Services,312013,"Newspapers, Books and Periodicals",19-Oct-2012,2509553-3642716,527.64,ASKEWS & HOLTS LIBRARY SERVICES LTD.
Adults Wellbeing and Health,Social Inclusion,Supplies and Services,312013,"Newspapers, Books and Periodicals",19-Oct-2012,2509553-3642848,527.03,ASKEWS & HOLTS LIBRARY SERVICES LTD.
Adults Wellbeing and Health,Social Inclusion,Supplies and Services,312013,"Newspapers, Books and Periodicals",19-Oct-2012,2509553-3647516,974.96,ASKEWS & HOLTS LIBRARY SERVICES LTD.
Adults Wellbeing and Health,Social Inclusion,Supplies and Services,312013,"Newspapers, Books and Periodicals",19-Oct-2012,2509553-3651351,660.55,ASKEWS & HOLTS LIBRARY SERVICES LTD.
Adults Wellbeing and Health,Social Inclusion,Third Party Payments,470101,Purchase of Care,11-Oct-2012,2504937-2059202,"1,710.72",ATLAS HEALTHCARE LTD.
Adults Wellbeing and Health,Social Inclusion,Third Party Payments,470101,Purchase of Care,11-Oct-2012,2504937-2060042,"1,262.64",ATLAS HEALTHCARE LTD.
Adults Wellbeing and Health,Head of Adults,Transfer Payments,515201,Social Services Clients,11-Oct-2012,2504941-1274305H,777.20,REDACTED - PAYMENT TO INDIVIDUAL
Adults Wellbeing and Health,Head of Adults,Third Party Payments,470101,Purchase of Care,11-Oct-2012,2505269-2056365,"1,280.96",DOSON LTD (DENEHURST).
Adults Wellbeing and Health,Head of Adults,Third Party Payments,470101,Purchase of Care,11-Oct-2012,2505269-2056366,502.21,DOSON LTD (DENEHURST).
Adults Wellbeing and Health,Head of Adults,Third Party Payments,470101,Purchase of Care,11-Oct-2012,2505269-2056368,"1,757.76",DOSON LTD (DENEHURST).
Adults Wellbeing and Health,Head of Adults,Third Party Payments,470101,Purchase of Care,11-Oct-2012,2505269-2056369,"1,757.76",DOSON LTD (DENEHURST).
Adults Wellbeing and Health,Head of Adults,Third Party Payments,470101,Purchase of Care,11-Oct-2012,2505269-2056370,"1,757.76",DOSON LTD (DENEHURST).
Adults Wellbeing and Health,Head of Adults,Third Party Payments,470101,Purchase of Care,11-Oct-2012,2505269-2056372,"1,757.76",DOSON LTD (DENEHURST).
Adults Wellbeing and Health,Head of Adults,Third Party Payments,470101,Purchase of Care,11-Oct-2012,2505269-2056373,"1,081.36",DOSON LTD (DENEHURST).
Adults Wellbeing and Health,Head of Adults,Third Party Payments,470101,Purchase of Care,11-Oct-2012,2505269-2056374,"1,168.00",DOSON LTD (DENEHURST).
Adults Wellbeing and Health,Head of Adults,Third Party Payments,470101,Purchase of Care,11-Oct-2012,2505269-2056376,"1,266.88",DOSON LTD (DENEHURST).
Adults Wellbeing and Health,Head of Adults,Third Party Payments,470101,Purchase of Care,11-Oct-2012,2505269-2056413,"1,740.36",DOSON LTD (DENEHURST).
Adults Wellbeing and Health,Head of Adults,Third Party Payments,470101,Purchase of Care,11-Oct-2012,2505269-2056414,"1,228.92",DOSON LTD (DENEHURST).
Adults Wellbeing and Health,Head of Adults,Third Party Payments,470101,Purchase of Care,11-Oct-2012,2505269-2056415,"1,266.44",DOSON LTD (DENEHURST).
Adults Wellbeing and Health,Head of Adults,Third Party Payments,474101,Purchase of Care,11-Oct-2012,2505269-2057271,"1,090.56",DOSON LTD (DENEHURST).
Adults Wellbeing and Health,Head of Adults,Third Party Payments,474101,Purchase of Care,11-Oct-2012,2505269-2057275,"1,368.72",DOSON LTD (DENEHURST).
Adults Wellbeing and Health,Head of Adults,Third Party Payments,474101,Purchase of Care,11-Oct-2012,2505269-2057277,"1,268.56",DOSON LTD (DENEHURST).
Adults Wellbeing and Health,Head of Adults,Third Party Payments,474101,Purchase of Care,11-Oct-2012,2505269-2057340,"1,578.76",DOSON LTD (DENEHURST).
Adults Wellbeing and Health,Head of Adults,Third Party Payments,474101,Purchase of Care,11-Oct-2012,2505269-2057341,"1,845.52",DOSON LTD (DENEHURST).
Adults Wellbeing and Health,Head of Adults,Third Party Payments,470101,Purchase of Care,11-Oct-2012,2504950-2055166,"1,757.76",AYCLIFFE CARE HOME.
Adults Wellbeing and Health,Head of Adults,Third Party Payments,470101,Purchase of Care,11-Oct-2012,2504950-2055172,"1,757.76",AYCLIFFE CARE HOME.
Adults Wellbeing and Health,Head of Adults,Third Party Payments,470101,Purchase of Care,11-Oct-2012,2504950-2055173,"1,757.76",AYCLIFFE CARE HOME.
Adults Wellbeing and Health,Head of Adults,Third Party Payments,470101,Purchase of Care,11-Oct-2012,2504950-2055175,"1,757.76",AYCLIFFE CARE HOME.
Adults Wellbeing and Health,Head of Adults,Third Party Payments,470101,Purchase of Care,11-Oct-2012,2504950-2055176,"1,318.32",AYCLIFFE CARE HOME.
Adults Wellbeing and Health,Head of Adults,Third Party Payments,470101,Purchase of Care,11-Oct-2012,2504950-2055177,"1,757.76",AYCLIFFE CARE HOME.
Adults Wellbeing and Health,Head of Adults,Third Party Payments,470101,Purchase of Care,11-Oct-2012,2504950-2055178,"1,757.76",AYCLIFFE CARE HOME.
Adults Wellbeing and Health,Head of Adults,Third Party Payments,470101,Purchase of Care,11-Oct-2012,2504950-2055179,"1,757.76",AYCLIFFE CARE HOME.
Adults Wellbeing and Health,Head of Adults,Third Party Payments,470101,Purchase of Care,11-Oct-2012,2504950-2055180,"1,757.76",AYCLIFFE CARE HOME.
Adults Wellbeing and Health,Head of Adults,Third Party Payments,474101,Purchase of Care,11-Oct-2012,2504950-2057974,"1,845.52",AYCLIFFE CARE HOME.
Adults Wellbeing and Health,Head of Adults,Third Party Payments,474101,Purchase of Care,11-Oct-2012,2504950-2057976,"1,845.52",AYCLIFFE CARE HOME.
Adults Wellbeing and Health,Head of Adults,Third Party Payments,474101,Purchase of Care,11-Oct-2012,2504950-2057978,"1,845.52",AYCLIFFE CARE HOME.
Adults Wellbeing and Health,Head of Adults,Third Party Payments,474101,Purchase of Care,11-Oct-2012,2504950-2057983,"1,845.52",AYCLIFFE CARE HOME.
Adults Wellbeing and Health,Head of Adults,Third Party Payments,474101,Purchase of Care,11-Oct-2012,2504950-2057985,"1,845.52",AYCLIFFE CARE HOME.
Adults Wellbeing and Health,Head of Adults,Third Party Payments,474101,Purchase of Care,11-Oct-2012,2504950-2057987,"1,845.52",AYCLIFFE CARE HOME.
Adults Wellbeing and Health,Head of Adults,Third Party Payments,474101,Purchase of Care,11-Oct-2012,2504950-2057989,"1,845.52",AYCLIFFE CARE HOME.
Adults Wellbeing and Health,Head of Adults,Third Party Payments,474101,Purchase of Care,11-Oct-2012,2504950-2057991,"1,845.52",AYCLIFFE CARE HOME.
Adults Wellbeing and Health,Head of Adults,Third Party Payments,474101,Purchase of Care,11-Oct-2012,2504950-2057993,"1,845.52",AYCLIFFE CARE HOME.
Adults Wellbeing and Health,Head of Adults,Third Party Payments,471101,Purchase of Care,11-Oct-2012,2504950-2058529,"1,827.24",AYCLIFFE CARE HOME.
Adults Wellbeing and Health,Head of Adults,Third Party Payments,471101,Purchase of Care,11-Oct-2012,2504950-2058530,"1,827.24",AYCLIFFE CARE HOME.
Adults Wellbeing and Health,Head of Adults,Third Party Payments,471101,Purchase of Care,11-Oct-2012,2504950-2058531,"1,827.24",AYCLIFFE CARE HOME.
Adults Wellbeing and Health,Head of Adults,Third Party Payments,471101,Purchase of Care,11-Oct-2012,2504950-2058535,"1,827.24",AYCLIFFE CARE HOME.
Adults Wellbeing and Health,Head of Adults,Third Party Payments,471101,Purchase of Care,11-Oct-2012,2504950-2058536,"1,827.24",AYCLIFFE CARE HOME.
Adults Wellbeing and Health,Head of Adults,Third Party Payments,471101,Purchase of Care,11-Oct-2012,2504950-2058537,"1,827.24",AYCLIFFE CARE HOME.
Adults Wellbeing and Health,Head of Adults,Third Party Payments,471101,Purchase of Care,11-Oct-2012,2504950-2058538,"1,827.24",AYCLIFFE CARE HOME.
Adults Wellbeing and Health,Head of Adults,Third Party Payments,471101,Purchase of Care,11-Oct-2012,2504950-2058539,"1,827.24",AYCLIFFE CARE HOME.
Adults Wellbeing and Health,Head of Adults,Third Party Payments,471101,Purchase of Care,11-Oct-2012,2504950-2058540,"1,827.24",AYCLIFFE CARE HOME.
Adults Wellbeing and Health,Head of Adults,Third Party Payments,471101,Purchase of Care,11-Oct-2012,2504950-2058542,"1,827.24",AYCLIFFE CARE HOME.
Adults Wellbeing and Health,Head of Adults,Third Party Payments,471101,Purchase of Care,11-Oct-2012,2504950-2058543,"1,827.24",AYCLIFFE CARE HOME.
Adults Wellbeing and Health,Head of Adults,Third Party Payments,471101,Purchase of Care,11-Oct-2012,2504950-2058544,"1,827.24",AYCLIFFE CARE HOME.
Adults Wellbeing and Health,Head of Adults,Third Party Payments,471101,Purchase of Care,11-Oct-2012,2504950-2058545,"1,827.24",AYCLIFFE CARE HOME.
Adults Wellbeing and Health,Head of Adults,Third Party Payments,471101,Purchase of Care,11-Oct-2012,2504950-2058546,"1,827.24",AYCLIFFE CARE HOME.
Adults Wellbeing and Health,Head of Adults,Third Party Payments,471101,Purchase of Care,11-Oct-2012,2504950-2058547,"1,827.24",AYCLIFFE CARE HOME.
Adults Wellbeing and Health,Head of Adults,Third Party Payments,471101,Purchase of Care,11-Oct-2012,2504950-2058548,"1,827.24",AYCLIFFE CARE HOME.
Adults Wellbeing and Health,Head of Adults,Third Party Payments,471101,Purchase of Care,11-Oct-2012,2504950-2058549,"1,827.24",AYCLIFFE CARE HOME.
Adults Wellbeing and Health,Head of Adults,Third Party Payments,474101,Purchase of Care,11-Oct-2012,2504950-2059206,"1,647.78",AYCLIFFE CARE HOME.
Adults Wellbeing and Health,Head of Adults,Third Party Payments,470101,Purchase of Care,11-Oct-2012,2504950-2059980,"1,694.98",AYCLIFFE CARE HOME.
Adults Wellbeing and Health,Head of Adults,Third Party Payments,470101,Purchase of Care,11-Oct-2012,2504950-2059984,878.88,AYCLIFFE CARE HOME.
Adults Wellbeing and Health,Financing-Adult Services,Creditors,952035,Creditor-housing benefit-eqpt,04-Oct-2012,2501773-46842,667.18,BAILEYS BLINDS CO LTD.
Adults Wellbeing and Health,Head of Adults,Third Party Payments,471101,Purchase of Care,11-Oct-2012,2504957-2058841,560.57,BARCHESTER HEALTHCARE HOMES LTD.
Adults Wellbeing and Health,Head of Adults,Third Party Payments,474101,Purchase of Care,11-Oct-2012,2504958-2056825,"1,468.20",BARCHESTER HEALTHCARE HOMES LTD.
Adults Wellbeing and Health,Head of Adults,Third Party Payments,474101,Purchase of Care,11-Oct-2012,2504958-2056831,"1,945.00",BARCHESTER HEALTHCARE HOMES LTD.
Adults Wellbeing and Health,Head of Adults,Third Party Payments,474101,Purchase of Care,11-Oct-2012,2504958-2056851,"1,945.00",BARCHESTER HEALTHCARE HOMES LTD.
Adults Wellbeing and Health,Head of Adults,Third Party Payments,474101,Purchase of Care,11-Oct-2012,2504958-2056857,"1,945.00",BARCHESTER HEALTHCARE HOMES LTD.
Adults Wellbeing and Health,Head of Adults,Third Party Payments,474101,Purchase of Care,11-Oct-2012,2504958-2056860,"1,945.00",BARCHESTER HEALTHCARE HOMES LTD.
Adults Wellbeing and Health,Head of Adults,Third Party Payments,474101,Purchase of Care,11-Oct-2012,2504958-2056863,"1,945.00",BARCHESTER HEALTHCARE HOMES LTD.
Adults Wellbeing and Health,Head of Adults,Third Party Payments,474101,Purchase of Care,11-Oct-2012,2504958-2056868,"1,945.00",BARCHESTER HEALTHCARE HOMES LTD.
Adults Wellbeing and Health,Head of Adults,Third Party Payments,474101,Purchase of Care,11-Oct-2012,2504958-2057467,"2,112.28",BARCHESTER HEALTHCARE HOMES LTD.
Adults Wellbeing and Health,Head of Adults,Third Party Payments,474101,Purchase of Care,11-Oct-2012,2504958-2057523,"2,112.28",BARCHESTER HEALTHCARE HOMES LTD.
Adults Wellbeing and Health,Head of Adults,Third Party Payments,474101,Purchase of Care,11-Oct-2012,2504958-2058302,"1,945.00",BARCHESTER HEALTHCARE HOMES LTD.
Adults Wellbeing and Health,Head of Adults,Third Party Payments,474101,Purchase of Care,11-Oct-2012,2504958-2058305,"1,945.00",BARCHESTER HEALTHCARE HOMES LTD.
Adults Wellbeing and Health,Head of Adults,Third Party Payments,474101,Purchase of Care,11-Oct-2012,2504958-2058307,"1,945.00",BARCHESTER HEALTHCARE HOMES LTD.
Adults Wellbeing and Health,Head of Adults,Third Party Payments,474101,Purchase of Care,11-Oct-2012,2504958-2058310,"1,945.00",BARCHESTER HEALTHCARE HOMES LTD.
Adults Wellbeing and Health,Financing-Adult Services,Debtors,930024,Debtor-free nursing care,11-Oct-2012,2504958-2058315,"1,458.75",BARCHESTER HEALTHCARE HOMES LTD.
Adults Wellbeing and Health,Head of Adults,Third Party Payments,474101,Purchase of Care,11-Oct-2012,2504958-2058318,"1,945.00",BARCHESTER HEALTHCARE HOMES LTD.
Adults Wellbeing and Health,Head of Adults,Third Party Payments,474101,Purchase of Care,11-Oct-2012,2504958-2060025,"3,621.05",BARCHESTER HEALTHCARE HOMES LTD.
Adults Wellbeing and Health,Financing-Adult Services,Debtors,930024,Debtor-free nursing care,11-Oct-2012,2504958-2060026,745.37,BARCHESTER HEALTHCARE HOMES LTD.
Adults Wellbeing and Health,Head of Adults,Third Party Payments,474101,Purchase of Care,11-Oct-2012,2504958-2060028,764.10,BARCHESTER HEALTHCARE HOMES LTD.
Adults Wellbeing and Health,Head of Adults,Third Party Payments,474101,Purchase of Care,11-Oct-2012,2504958-2060033,"2,570.17",BARCHESTER HEALTHCARE HOMES LTD.
Adults Wellbeing and Health,Financing-Adult Services,Debtors,930024,Debtor-free nursing care,11-Oct-2012,2504958-2060034,574.56,BARCHESTER HEALTHCARE HOMES LTD.
Adults Wellbeing and Health,Head of Adults,Third Party Payments,474101,Purchase of Care,11-Oct-2012,2504958-2060036,"1,041.96",BARCHESTER HEALTHCARE HOMES LTD.
Adults Wellbeing and Health,Head of Adults,Third Party Payments,471101,Purchase of Care,11-Oct-2012,2504959-2058422,"1,753.56",BARCHESTER HEALTHCARE HOMES LTD.
Adults Wellbeing and Health,Head of Adults,Third Party Payments,471101,Purchase of Care,11-Oct-2012,2504960-2058423,"1,642.20",BARCHESTER HEALTHCARE HOMES LTD.
Adults Wellbeing and Health,Head of Adults,Third Party Payments,470101,Purchase of Care,11-Oct-2012,2504961-2055557,"1,752.00",BARCHESTER HEALTHCARE HOMES LTD.
Adults Wellbeing and Health,Head of Adults,Transfer Payments,515201,Social Services Clients,11-Oct-2012,2504963-1273203H,"2,616.00",REDACTED - PAYMENT TO INDIVIDUAL
Adults Wellbeing and Health,Head of Adults,Transfer Payments,515201,Social Services Clients,11-Oct-2012,2504964-1276147H,726.40,REDACTED - PAYMENT TO INDIVIDUAL
Adults Wellbeing and Health,Head of Adults,Third Party Payments,470101,Purchase of Care,11-Oct-2012,2504968-2055170,"1,082.84",BEAMISH RESIDENTIAL HOME.
Adults Wellbeing and Health,Head of Adults,Third Party Payments,470101,Purchase of Care,11-Oct-2012,2504968-2055219,"1,757.76",BEAMISH RESIDENTIAL HOME.
Adults Wellbeing and Health,Head of Adults,Third Party Payments,470101,Purchase of Care,11-Oct-2012,2504968-2055220,"3,207.65",BEAMISH RESIDENTIAL HOME.
Adults Wellbeing and Health,Head of Adults,Third Party Payments,470101,Purchase of Care,11-Oct-2012,2504968-2055221,"1,757.76",BEAMISH RESIDENTIAL HOME.
Adults Wellbeing and Health,Head of Adults,Third Party Payments,470101,Purchase of Care,11-Oct-2012,2504968-2055223,"1,757.76",BEAMISH RESIDENTIAL HOME.
Adults Wellbeing and Health,Head of Adults,Third Party Payments,470101,Purchase of Care,11-Oct-2012,2504968-2055224,878.88,BEAMISH RESIDENTIAL HOME.
Adults Wellbeing and Health,Head of Adults,Third Party Payments,470101,Purchase of Care,11-Oct-2012,2504968-2055225,"1,117.56",BEAMISH RESIDENTIAL HOME.
Adults Wellbeing and Health,Head of Adults,Third Party Payments,470101,Purchase of Care,11-Oct-2012,2504968-2055226,"1,757.76",BEAMISH RESIDENTIAL HOME.
Adults Wellbeing and Health,Head of Adults,Third Party Payments,470101,Purchase of Care,11-Oct-2012,2504968-2055228,627.77,BEAMISH RESIDENTIAL HOME.
Adults Wellbeing and Health,Head of Adults,Third Party Payments,470101,Purchase of Care,11-Oct-2012,2504968-2055229,"1,134.96",BEAMISH RESIDENTIAL HOME.
Adults Wellbeing and Health,Head of Adults,Third Party Payments,470101,Purchase of Care,11-Oct-2012,2504968-2055230,"1,280.96",BEAMISH RESIDENTIAL HOME.
Adults Wellbeing and Health,Head of Adults,Third Party Payments,470101,Purchase of Care,11-Oct-2012,2504968-2055231,932.68,BEAMISH RESIDENTIAL HOME.
Adults Wellbeing and Health,Head of Adults,Third Party Payments,470101,Purchase of Care,11-Oct-2012,2504968-2055232,"1,233.00",BEAMISH RESIDENTIAL HOME.
Adults Wellbeing and Health,Head of Adults,Third Party Payments,470101,Purchase of Care,11-Oct-2012,2504968-2055233,"1,213.56",BEAMISH RESIDENTIAL HOME.
Adults Wellbeing and Health,Head of Adults,Third Party Payments,470101,Purchase of Care,11-Oct-2012,2504968-2055234,"1,280.96",BEAMISH RESIDENTIAL HOME.
Adults Wellbeing and Health,Head of Adults,Third Party Payments,470101,Purchase of Care,11-Oct-2012,2504968-2055235,"1,232.52",BEAMISH RESIDENTIAL HOME.
Adults Wellbeing and Health,Head of Adults,Third Party Payments,470101,Purchase of Care,11-Oct-2012,2504968-2055236,"1,757.76",BEAMISH RESIDENTIAL HOME.
Adults Wellbeing and Health,Head of Adults,Third Party Payments,470101,Purchase of Care,11-Oct-2012,2504968-2059240,878.88,BEAMISH RESIDENTIAL HOME.
Adults Wellbeing and Health,Head of Adults,Third Party Payments,470101,Purchase of Care,11-Oct-2012,2504972-2055789,"1,757.76",BEDDELL HOUSE.
Adults Wellbeing and Health,Head of Adults,Third Party Payments,470101,Purchase of Care,11-Oct-2012,2504972-2055790,"1,757.76",BEDDELL HOUSE.
Adults Wellbeing and Health,Head of Adults,Third Party Payments,470101,Purchase of Care,11-Oct-2012,2504972-2055792,"1,757.76",BEDDELL HOUSE.
Adults Wellbeing and Health,Head of Adults,Third Party Payments,470101,Purchase of Care,11-Oct-2012,2504972-2055816,878.88,BEDDELL HOUSE.
Adults Wellbeing and Health,Head of Adults,Third Party Payments,470101,Purchase of Care,11-Oct-2012,2504972-2055818,"1,757.76",BEDDELL HOUSE.
Adults Wellbeing and Health,Head of Adults,Third Party Payments,470101,Purchase of Care,11-Oct-2012,2504972-2055819,"1,757.76",BEDDELL HOUSE.
Adults Wellbeing and Health,Head of Adults,Third Party Payments,470101,Purchase of Care,11-Oct-2012,2504972-2055820,"1,757.76",BEDDELL HOUSE.
Adults Wellbeing and Health,Head of Adults,Third Party Payments,470101,Purchase of Care,11-Oct-2012,2504972-2055821,"1,757.76",BEDDELL HOUSE.
Adults Wellbeing and Health,Head of Adults,Third Party Payments,470101,Purchase of Care,11-Oct-2012,2504972-2055822,"1,757.76",BEDDELL HOUSE.
Adults Wellbeing and Health,Head of Adults,Third Party Payments,470101,Purchase of Care,11-Oct-2012,2504972-2055823,"1,757.76",BEDDELL HOUSE.
Adults Wellbeing and Health,Head of Adults,Third Party Payments,470101,Purchase of Care,11-Oct-2012,2504972-2055824,"1,757.76",BEDDELL HOUSE.
Adults Wellbeing and Health,Head of Adults,Third Party Payments,470101,Purchase of Care,11-Oct-2012,2504973-2057759,"2,145.00",BEECHWOOD RESIDENTIAL CARE SERVICES.
Adults Wellbeing and Health,Head of Adults,Third Party Payments,470101,Purchase of Care,11-Oct-2012,2504973-2057760,"2,145.00",BEECHWOOD RESIDENTIAL CARE SERVICES.
Adults Wellbeing and Health,Head of Adults,Third Party Payments,470101,Purchase of Care,11-Oct-2012,2504973-2057761,"2,145.00",BEECHWOOD RESIDENTIAL CARE SERVICES.
Adults Wellbeing and Health,Head of Adults,Third Party Payments,470101,Purchase of Care,11-Oct-2012,2504977-2055907,"1,563.84",BELMONT NURSING HOME.
Adults Wellbeing and Health,Head of Adults,Third Party Payments,470101,Purchase of Care,11-Oct-2012,2504977-2055911,713.04,BELMONT NURSING HOME.
Adults Wellbeing and Health,Head of Adults,Third Party Payments,470101,Purchase of Care,11-Oct-2012,2504977-2055960,"1,001.36",BELMONT NURSING HOME.
Adults Wellbeing and Health,Head of Adults,Third Party Payments,470101,Purchase of Care,11-Oct-2012,2504977-2056080,"1,396.28",BELMONT NURSING HOME.
Adults Wellbeing and Health,Head of Adults,Third Party Payments,470101,Purchase of Care,11-Oct-2012,2504977-2056081,852.68,BELMONT NURSING HOME.
Adults Wellbeing and Health,Head of Adults,Third Party Payments,470101,Purchase of Care,11-Oct-2012,2504977-2056082,588.80,BELMONT NURSING HOME.
Adults Wellbeing and Health,Head of Adults,Third Party Payments,470101,Purchase of Care,11-Oct-2012,2504977-2056083,"1,563.84",BELMONT NURSING HOME.
Adults Wellbeing and Health,Head of Adults,Third Party Payments,470101,Purchase of Care,11-Oct-2012,2504977-2056084,"1,563.84",BELMONT NURSING HOME.
Adults Wellbeing and Health,Head of Adults,Third Party Payments,474101,Purchase of Care,11-Oct-2012,2504977-2056950,"1,172.76",BELMONT NURSING HOME.
Adults Wellbeing and Health,Head of Adults,Third Party Payments,474101,Purchase of Care,11-Oct-2012,2504977-2056954,"1,172.76",BELMONT NURSING HOME.
Adults Wellbeing and Health,Head of Adults,Third Party Payments,474101,Purchase of Care,11-Oct-2012,2504977-2057068,"1,100.48",BELMONT NURSING HOME.
Adults Wellbeing and Health,Head of Adults,Third Party Payments,474101,Purchase of Care,11-Oct-2012,2504977-2057070,"1,098.28",BELMONT NURSING HOME.
Adults Wellbeing and Health,Head of Adults,Third Party Payments,474101,Purchase of Care,11-Oct-2012,2504977-2057072,"1,649.56",BELMONT NURSING HOME.
Adults Wellbeing and Health,Head of Adults,Third Party Payments,474101,Purchase of Care,11-Oct-2012,2504977-2059631,"1,237.17",BELMONT NURSING HOME.
Adults Wellbeing and Health,Head of Adults,Third Party Payments,470101,Purchase of Care,11-Oct-2012,2504979-2057745,"1,451.04",BENAMY HOUSE.
Adults Wellbeing and Health,Head of Adults,Third Party Payments,470101,Purchase of Care,11-Oct-2012,2504979-2057746,"1,285.64",BENAMY HOUSE.
Adults Wellbeing and Health,Head of Adults,Third Party Payments,470101,Purchase of Care,11-Oct-2012,2504979-2057775,"1,451.04",BENAMY HOUSE.
Adults Wellbeing and Health,Head of Adults,Third Party Payments,470101,Purchase of Care,11-Oct-2012,2504979-2057776,"1,451.04",BENAMY HOUSE.
Adults Wellbeing and Health,Head of Adults,Third Party Payments,470101,Purchase of Care,11-Oct-2012,2504979-2057777,"1,451.04",BENAMY HOUSE.
Adults Wellbeing and Health,Head of Adults,Third Party Payments,474101,Purchase of Care,11-Oct-2012,2504980-2057543,885.96,BENFIELD HALL.
Adults Wellbeing and Health,Head of Adults,Third Party Payments,474101,Purchase of Care,11-Oct-2012,2504980-2057545,"1,789.64",BENFIELD HALL.
Adults Wellbeing and Health,Financing-Adult Services,Debtors,930024,Debtor-free nursing care,11-Oct-2012,2504980-2057547,598.40,BENFIELD HALL.
Adults Wellbeing and Health,Head of Adults,Third Party Payments,474101,Purchase of Care,11-Oct-2012,2504980-2057548,"1,789.64",BENFIELD HALL.
Adults Wellbeing and Health,Head of Adults,Third Party Payments,474101,Purchase of Care,11-Oct-2012,2504980-2057554,"1,244.88",BENFIELD HALL.
Adults Wellbeing and Health,Head of Adults,Third Party Payments,474101,Purchase of Care,11-Oct-2012,2504980-2057556,668.56,BENFIELD HALL.
Adults Wellbeing and Health,Head of Adults,Third Party Payments,474101,Purchase of Care,11-Oct-2012,2504980-2057558,885.96,BENFIELD HALL.
Adults Wellbeing and Health,Head of Adults,Third Party Payments,474101,Purchase of Care,11-Oct-2012,2504980-2057560,"1,478.24",BENFIELD HALL.
Adults Wellbeing and Health,Head of Adults,Third Party Payments,474101,Purchase of Care,11-Oct-2012,2504980-2057562,"1,789.64",BENFIELD HALL.
Adults Wellbeing and Health,Head of Adults,Third Party Payments,474101,Purchase of Care,11-Oct-2012,2504980-2059816,633.45,BENFIELD HALL.
Adults Wellbeing and Health,Head of Adults,Third Party Payments,470101,Purchase of Care,11-Oct-2012,2504980-2059836,"1,643.07",BENFIELD HALL.
Adults Wellbeing and Health,Head of Adults,Third Party Payments,478101,Purchase of Care,11-Oct-2012,2504990-2058411,"1,216.20",REDACTED - PAYMENT TO INDIVIDUAL
Adults Wellbeing and Health,Commissioning inc Supporting People,Third Party Payments,478111,Purchase of Care,25-Oct-2012,2511720-NOV2012,"1,110.55",REDACTED - PAYMENT TO INDIVIDUAL
Adults Wellbeing and Health,Head of Adults,Third Party Payments,470101,Purchase of Care,11-Oct-2012,2504994-2055847,"1,563.84",BHACHU CARE LTD.
Adults Wellbeing and Health,Head of Adults,Third Party Payments,471101,Purchase of Care,11-Oct-2012,2504994-2058985,"1,633.24",BHACHU CARE LTD.
Adults Wellbeing and Health,Head of Adults,Third Party Payments,470101,Purchase of Care,11-Oct-2012,2504994-2058986,"1,633.24",BHACHU CARE LTD.
Adults Wellbeing and Health,Head of Adults,Third Party Payments,471101,Purchase of Care,11-Oct-2012,2504994-2058990,874.95,BHACHU CARE LTD.
Adults Wellbeing and Health,Head of Adults,Third Party Payments,471101,Purchase of Care,11-Oct-2012,2504994-2058991,"1,633.24",BHACHU CARE LTD.
Adults Wellbeing and Health,Head of Adults,Third Party Payments,471101,Purchase of Care,11-Oct-2012,2504994-2058992,"1,633.24",BHACHU CARE LTD.
Adults Wellbeing and Health,Head of Adults,Third Party Payments,471101,Purchase of Care,11-Oct-2012,2504994-2058993,"1,633.24",BHACHU CARE LTD.
Adults Wellbeing and Health,Head of Adults,Third Party Payments,471101,Purchase of Care,11-Oct-2012,2504994-2059443,524.97,BHACHU CARE LTD.
Adults Wellbeing and Health,Head of Adults,Transport,230005,Contract Hire,22-Oct-2012,2510151-06257,"2,400.00",BIRDS TAXIS.
Adults Wellbeing and Health,Head of Adults,Transport,230005,Contract Hire,25-Oct-2012,2511722-06258,"2,260.00",BIRDS TAXIS.
Adults Wellbeing and Health,Planning and Performance,Supplies and Services,338091,Services,24-Oct-2012,2511377-SINV21879,840.00,BISHOP AUCKLAND COLLEGE.
Adults Wellbeing and Health,Social Inclusion,Supplies and Services,384999,Miscellaneous Expenses,04-Oct-2012,2501789-00012,"14,776.60",BISHOP CATERING LTD.
Adults Wellbeing and Health,Head of Adults,Transport,230005,Contract Hire,05-Oct-2012,2502533-0019/1,"1,200.00",BOBBY DOVE.
Adults Wellbeing and Health,Head of Adults,Transport,230005,Contract Hire,09-Oct-2012,2503916-8,500.00,BOBS TAXIS.
Adults Wellbeing and Health,Head of Adults,Third Party Payments,470101,Purchase of Care,11-Oct-2012,2505019-2057791,"2,185.76",BRIDGEWOOD TRUST LTD.
Adults Wellbeing and Health,Commissioning inc Supporting People,Third Party Payments,479101,Purchase of Care,17-Oct-2012,2508452-650028971,"3,703.00",BRITISH RED CROSS SOCIETY.
Adults Wellbeing and Health,Commissioning inc Supporting People,Third Party Payments,479101,Purchase of Care,24-Oct-2012,2511386-650030114,"3,703.00",BRITISH RED CROSS SOCIETY.
Adults Wellbeing and Health,Head of Adults,Third Party Payments,478101,Purchase of Care,11-Oct-2012,2505026-1273324H,"2,919.08",BROTHERS OF CHARITY.
Adults Wellbeing and Health,Head of Adults,Third Party Payments,474101,Purchase of Care,11-Oct-2012,2505029-2057906,"1,639.12",BUPA CARE SERVICES.
Adults Wellbeing and Health,Head of Adults,Third Party Payments,474101,Purchase of Care,11-Oct-2012,2505029-2057907,"1,950.52",BUPA CARE SERVICES.
Adults Wellbeing and Health,Head of Adults,Third Party Payments,474101,Purchase of Care,11-Oct-2012,2505030-2058247,"1,620.00",BUPA CARE SERVICES.
Adults Wellbeing and Health,Head of Adults,Transfer Payments,515209,Social Services Clients,11-Oct-2012,2505036-1272921D,742.32,REDACTED - PAYMENT TO INDIVIDUAL
Adults Wellbeing and Health,Head of Adults,Supplies and Services,338366,Services,02-Oct-2012,2501320-1658,"2,026.43",CARE ABILITY.
Adults Wellbeing and Health,Head of Adults,Supplies and Services,338366,Services,02-Oct-2012,2501320-2279,"1,150.00",CARE ABILITY.
Adults Wellbeing and Health,Head of Adults,Supplies and Services,338366,Services,25-Oct-2012,2511747-2152,"5,025.00",CARE ABILITY.
Adults Wellbeing and Health,Head of Adults,Supplies and Services,338366,Services,25-Oct-2012,2511747-2597,500.00,CARE ABILITY.
Adults Wellbeing and Health,Head of Adults,Supplies and Services,338366,Services,25-Oct-2012,2511747-2966,"4,500.00",CARE ABILITY.
Adults Wellbeing and Health,Head of Adults,Third Party Payments,472101,Purchase of Care,11-Oct-2012,2505044-1274932H,822.91,CARE CONCERN (DURHAM) LTD.
Adults Wellbeing and Health,Head of Adults,Third Party Payments,472101,Purchase of Care,11-Oct-2012,2505044-1275978H,532.77,CARE CONCERN (DURHAM) LTD.
Adults Wellbeing and Health,Head of Adults,Third Party Payments,472101,Purchase of Care,11-Oct-2012,2505044-1277739H,796.53,CARE CONCERN (DURHAM) LTD.
Adults Wellbeing and Health,Head of Adults,Third Party Payments,472101,Purchase of Care,11-Oct-2012,2505044-1278244H,"1,118.32",CARE CONCERN (DURHAM) LTD.
Adults Wellbeing and Health,Head of Adults,Third Party Payments,478101,Purchase of Care,11-Oct-2012,2505048-1272513H,"1,056.00",CAREWATCH (DURHAM & EASINGTON) FASTFLOW ACC.
Adults Wellbeing and Health,Head of Adults,Third Party Payments,478101,Purchase of Care,11-Oct-2012,2505048-1272767H,"2,460.76",CAREWATCH (DURHAM & EASINGTON) FASTFLOW ACC.
Adults Wellbeing and Health,Head of Adults,Third Party Payments,478101,Purchase of Care,11-Oct-2012,2505048-1272785H,902.00,CAREWATCH (DURHAM & EASINGTON) FASTFLOW ACC.
Adults Wellbeing and Health,Head of Adults,Third Party Payments,478101,Purchase of Care,11-Oct-2012,2505048-1272823H,"1,320.00",CAREWATCH (DURHAM & EASINGTON) FASTFLOW ACC.
Adults Wellbeing and Health,Head of Adults,Third Party Payments,478101,Purchase of Care,11-Oct-2012,2505048-1272828H,"2,461.04",CAREWATCH (DURHAM & EASINGTON) FASTFLOW ACC.
Adults Wellbeing and Health,Head of Adults,Third Party Payments,478101,Purchase of Care,11-Oct-2012,2505048-1272870H,924.00,CAREWATCH (DURHAM & EASINGTON) FASTFLOW ACC.
Adults Wellbeing and Health,Head of Adults,Third Party Payments,478101,Purchase of Care,11-Oct-2012,2505048-1272891H,"1,452.00",CAREWATCH (DURHAM & EASINGTON) FASTFLOW ACC.
Adults Wellbeing and Health,Head of Adults,Third Party Payments,478101,Purchase of Care,11-Oct-2012,2505048-1272910H,528.00,CAREWATCH (DURHAM & EASINGTON) FASTFLOW ACC.
Adults Wellbeing and Health,Head of Adults,Third Party Payments,478101,Purchase of Care,11-Oct-2012,2505048-1272925H,880.00,CAREWATCH (DURHAM & EASINGTON) FASTFLOW ACC.
Adults Wellbeing and Health,Head of Adults,Third Party Payments,478101,Purchase of Care,11-Oct-2012,2505048-1272931H,748.00,CAREWATCH (DURHAM & EASINGTON) FASTFLOW ACC.
Adults Wellbeing and Health,Head of Adults,Third Party Payments,478101,Purchase of Care,11-Oct-2012,2505048-1273044H,"1,188.00",CAREWATCH (DURHAM & EASINGTON) FASTFLOW ACC.
Adults Wellbeing and Health,Head of Adults,Third Party Payments,472101,Purchase of Care,11-Oct-2012,2505048-1273104H,"1,434.80",CAREWATCH (DURHAM & EASINGTON) FASTFLOW ACC.
Adults Wellbeing and Health,Head of Adults,Third Party Payments,472101,Purchase of Care,11-Oct-2012,2505048-1273118H,516.96,CAREWATCH (DURHAM & EASINGTON) FASTFLOW ACC.
Adults Wellbeing and Health,Head of Adults,Third Party Payments,472101,Purchase of Care,11-Oct-2012,2505048-1273141H,"1,424.24",CAREWATCH (DURHAM & EASINGTON) FASTFLOW ACC.
Adults Wellbeing and Health,Head of Adults,Third Party Payments,472101,Purchase of Care,11-Oct-2012,2505048-1273144H,767.52,CAREWATCH (DURHAM & EASINGTON) FASTFLOW ACC.
Adults Wellbeing and Health,Head of Adults,Third Party Payments,472101,Purchase of Care,11-Oct-2012,2505048-1273149H,"1,125.32",CAREWATCH (DURHAM & EASINGTON) FASTFLOW ACC.
Adults Wellbeing and Health,Head of Adults,Third Party Payments,472101,Purchase of Care,11-Oct-2012,2505048-1273152H,569.72,CAREWATCH (DURHAM & EASINGTON) FASTFLOW ACC.
Adults Wellbeing and Health,Head of Adults,Third Party Payments,472101,Purchase of Care,11-Oct-2012,2505048-1273158H,611.92,CAREWATCH (DURHAM & EASINGTON) FASTFLOW ACC.
Adults Wellbeing and Health,Head of Adults,Third Party Payments,472101,Purchase of Care,11-Oct-2012,2505048-1273199H,844.00,CAREWATCH (DURHAM & EASINGTON) FASTFLOW ACC.
Adults Wellbeing and Health,Head of Adults,Third Party Payments,472101,Purchase of Care,11-Oct-2012,2505048-1273256H,569.70,CAREWATCH (DURHAM & EASINGTON) FASTFLOW ACC.
Adults Wellbeing and Health,Head of Adults,Third Party Payments,478101,Purchase of Care,11-Oct-2012,2505048-1273434H,"1,089.00",CAREWATCH (DURHAM & EASINGTON) FASTFLOW ACC.
Adults Wellbeing and Health,Head of Adults,Third Party Payments,472101,Purchase of Care,11-Oct-2012,2505048-1273656H,572.35,CAREWATCH (DURHAM & EASINGTON) FASTFLOW ACC.
Adults Wellbeing and Health,Head of Adults,Third Party Payments,478101,Purchase of Care,11-Oct-2012,2505048-1273664H,"1,801.04",CAREWATCH (DURHAM & EASINGTON) FASTFLOW ACC.
Adults Wellbeing and Health,Head of Adults,Third Party Payments,472101,Purchase of Care,11-Oct-2012,2505048-1273678H,654.12,CAREWATCH (DURHAM & EASINGTON) FASTFLOW ACC.
Adults Wellbeing and Health,Head of Adults,Third Party Payments,478101,Purchase of Care,11-Oct-2012,2505048-1273800H,682.00,CAREWATCH (DURHAM & EASINGTON) FASTFLOW ACC.
Adults Wellbeing and Health,Head of Adults,Third Party Payments,478101,Purchase of Care,11-Oct-2012,2505048-1273866H,"1,672.00",CAREWATCH (DURHAM & EASINGTON) FASTFLOW ACC.
Adults Wellbeing and Health,Head of Adults,Third Party Payments,472101,Purchase of Care,11-Oct-2012,2505048-1274183H,"2,764.12",CAREWATCH (DURHAM & EASINGTON) FASTFLOW ACC.
Adults Wellbeing and Health,Head of Adults,Third Party Payments,472101,Purchase of Care,11-Oct-2012,2505048-1274213H,"2,827.40",CAREWATCH (DURHAM & EASINGTON) FASTFLOW ACC.
Adults Wellbeing and Health,Head of Adults,Third Party Payments,478101,Purchase of Care,11-Oct-2012,2505048-1274220H,924.00,CAREWATCH (DURHAM & EASINGTON) FASTFLOW ACC.
Adults Wellbeing and Health,Head of Adults,Third Party Payments,472101,Purchase of Care,11-Oct-2012,2505048-1274262H,506.40,CAREWATCH (DURHAM & EASINGTON) FASTFLOW ACC.
Adults Wellbeing and Health,Head of Adults,Third Party Payments,472101,Purchase of Care,11-Oct-2012,2505048-1274528H,569.72,CAREWATCH (DURHAM & EASINGTON) FASTFLOW ACC.
Adults Wellbeing and Health,Head of Adults,Third Party Payments,472101,Purchase of Care,11-Oct-2012,2505048-1274532H,"4,106.20",CAREWATCH (DURHAM & EASINGTON) FASTFLOW ACC.
Adults Wellbeing and Health,Head of Adults,Third Party Payments,472101,Purchase of Care,11-Oct-2012,2505048-1274547H,"1,076.12",CAREWATCH (DURHAM & EASINGTON) FASTFLOW ACC.
Adults Wellbeing and Health,Head of Adults,Third Party Payments,472101,Purchase of Care,11-Oct-2012,2505048-1274555H,590.80,CAREWATCH (DURHAM & EASINGTON) FASTFLOW ACC.
Adults Wellbeing and Health,Head of Adults,Third Party Payments,472101,Purchase of Care,11-Oct-2012,2505048-1274565H,738.52,CAREWATCH (DURHAM & EASINGTON) FASTFLOW ACC.
Adults Wellbeing and Health,Head of Adults,Third Party Payments,472101,Purchase of Care,11-Oct-2012,2505048-1274573H,"1,624.72",CAREWATCH (DURHAM & EASINGTON) FASTFLOW ACC.
Adults Wellbeing and Health,Head of Adults,Third Party Payments,472101,Purchase of Care,11-Oct-2012,2505048-1274582H,633.00,CAREWATCH (DURHAM & EASINGTON) FASTFLOW ACC.
Adults Wellbeing and Health,Head of Adults,Third Party Payments,472101,Purchase of Care,11-Oct-2012,2505048-1274590H,"1,519.20",CAREWATCH (DURHAM & EASINGTON) FASTFLOW ACC.
Adults Wellbeing and Health,Head of Adults,Third Party Payments,472101,Purchase of Care,11-Oct-2012,2505048-1274591H,607.50,CAREWATCH (DURHAM & EASINGTON) FASTFLOW ACC.
Adults Wellbeing and Health,Head of Adults,Third Party Payments,472101,Purchase of Care,11-Oct-2012,2505048-1274612H,506.40,CAREWATCH (DURHAM & EASINGTON) FASTFLOW ACC.
Adults Wellbeing and Health,Head of Adults,Third Party Payments,472101,Purchase of Care,11-Oct-2012,2505048-1274627H,738.52,CAREWATCH (DURHAM & EASINGTON) FASTFLOW ACC.
Adults Wellbeing and Health,Head of Adults,Third Party Payments,472101,Purchase of Care,11-Oct-2012,2505048-1274630H,514.31,CAREWATCH (DURHAM & EASINGTON) FASTFLOW ACC.
Adults Wellbeing and Health,Head of Adults,Third Party Payments,472101,Purchase of Care,11-Oct-2012,2505048-1274650H,609.26,CAREWATCH (DURHAM & EASINGTON) FASTFLOW ACC.
Adults Wellbeing and Health,Head of Adults,Third Party Payments,472101,Purchase of Care,11-Oct-2012,2505048-1274653H,963.56,CAREWATCH (DURHAM & EASINGTON) FASTFLOW ACC.
Adults Wellbeing and Health,Head of Adults,Third Party Payments,472101,Purchase of Care,11-Oct-2012,2505048-1274661H,654.12,CAREWATCH (DURHAM & EASINGTON) FASTFLOW ACC.
Adults Wellbeing and Health,Head of Adults,Third Party Payments,472101,Purchase of Care,11-Oct-2012,2505048-1274886H,812.36,CAREWATCH (DURHAM & EASINGTON) FASTFLOW ACC.
Adults Wellbeing and Health,Head of Adults,Third Party Payments,472101,Purchase of Care,11-Oct-2012,2505048-1274893H,701.59,CAREWATCH (DURHAM & EASINGTON) FASTFLOW ACC.
Adults Wellbeing and Health,Head of Adults,Third Party Payments,472101,Purchase of Care,11-Oct-2012,2505048-1274899H,833.44,CAREWATCH (DURHAM & EASINGTON) FASTFLOW ACC.
Adults Wellbeing and Health,Head of Adults,Third Party Payments,472101,Purchase of Care,11-Oct-2012,2505048-1274924H,907.32,CAREWATCH (DURHAM & EASINGTON) FASTFLOW ACC.
Adults Wellbeing and Health,Head of Adults,Third Party Payments,472101,Purchase of Care,11-Oct-2012,2505048-1274974H,977.64,CAREWATCH (DURHAM & EASINGTON) FASTFLOW ACC.
Adults Wellbeing and Health,Head of Adults,Third Party Payments,478101,Purchase of Care,11-Oct-2012,2505048-1275038H,"1,576.68",CAREWATCH (DURHAM & EASINGTON) FASTFLOW ACC.
Adults Wellbeing and Health,Head of Adults,Third Party Payments,472101,Purchase of Care,11-Oct-2012,2505048-1275075H,"2,219.00",CAREWATCH (DURHAM & EASINGTON) FASTFLOW ACC.
Adults Wellbeing and Health,Head of Adults,Third Party Payments,472101,Purchase of Care,11-Oct-2012,2505048-1275117H,596.09,CAREWATCH (DURHAM & EASINGTON) FASTFLOW ACC.
Adults Wellbeing and Health,Head of Adults,Third Party Payments,478101,Purchase of Care,11-Oct-2012,2505048-1275143H,"1,800.76",CAREWATCH (DURHAM & EASINGTON) FASTFLOW ACC.
Adults Wellbeing and Health,Head of Adults,Third Party Payments,478101,Purchase of Care,11-Oct-2012,2505048-1275182H,924.00,CAREWATCH (DURHAM & EASINGTON) FASTFLOW ACC.
Adults Wellbeing and Health,Head of Adults,Third Party Payments,472101,Purchase of Care,11-Oct-2012,2505048-1275245H,553.89,CAREWATCH (DURHAM & EASINGTON) FASTFLOW ACC.
Adults Wellbeing and Health,Head of Adults,Third Party Payments,478101,Purchase of Care,11-Oct-2012,2505048-1275261H,"1,298.00",CAREWATCH (DURHAM & EASINGTON) FASTFLOW ACC.
Adults Wellbeing and Health,Head of Adults,Third Party Payments,472101,Purchase of Care,11-Oct-2012,2505048-1275298H,"1,329.32",CAREWATCH (DURHAM & EASINGTON) FASTFLOW ACC.
Adults Wellbeing and Health,Head of Adults,Third Party Payments,472101,Purchase of Care,11-Oct-2012,2505048-1275321H,636.52,CAREWATCH (DURHAM & EASINGTON) FASTFLOW ACC.
Adults Wellbeing and Health,Head of Adults,Third Party Payments,472101,Purchase of Care,11-Oct-2012,2505048-1275445H,559.15,CAREWATCH (DURHAM & EASINGTON) FASTFLOW ACC.
Adults Wellbeing and Health,Head of Adults,Third Party Payments,472101,Purchase of Care,11-Oct-2012,2505048-1275528H,"1,128.85",CAREWATCH (DURHAM & EASINGTON) FASTFLOW ACC.
Adults Wellbeing and Health,Head of Adults,Third Party Payments,472101,Purchase of Care,11-Oct-2012,2505048-1275538H,"1,020.00",CAREWATCH (DURHAM & EASINGTON) FASTFLOW ACC.
Adults Wellbeing and Health,Head of Adults,Third Party Payments,472101,Purchase of Care,11-Oct-2012,2505048-1275566H,601.36,CAREWATCH (DURHAM & EASINGTON) FASTFLOW ACC.
Adults Wellbeing and Health,Head of Adults,Third Party Payments,472101,Purchase of Care,11-Oct-2012,2505048-1275626H,"1,002.26",CAREWATCH (DURHAM & EASINGTON) FASTFLOW ACC.
Adults Wellbeing and Health,Head of Adults,Third Party Payments,472101,Purchase of Care,11-Oct-2012,2505048-1275715H,590.80,CAREWATCH (DURHAM & EASINGTON) FASTFLOW ACC.
Adults Wellbeing and Health,Head of Adults,Third Party Payments,472101,Purchase of Care,11-Oct-2012,2505048-1275901H,"1,467.84",CAREWATCH (DURHAM & EASINGTON) FASTFLOW ACC.
Adults Wellbeing and Health,Head of Adults,Third Party Payments,472101,Purchase of Care,11-Oct-2012,2505048-1275980H,"1,603.60",CAREWATCH (DURHAM & EASINGTON) FASTFLOW ACC.
Adults Wellbeing and Health,Head of Adults,Third Party Payments,472101,Purchase of Care,11-Oct-2012,2505048-1276014H,675.20,CAREWATCH (DURHAM & EASINGTON) FASTFLOW ACC.
Adults Wellbeing and Health,Head of Adults,Third Party Payments,478101,Purchase of Care,11-Oct-2012,2505048-1276037H,"1,980.00",CAREWATCH (DURHAM & EASINGTON) FASTFLOW ACC.
Adults Wellbeing and Health,Head of Adults,Third Party Payments,472101,Purchase of Care,11-Oct-2012,2505048-1276090H,590.80,CAREWATCH (DURHAM & EASINGTON) FASTFLOW ACC.
Adults Wellbeing and Health,Head of Adults,Third Party Payments,472101,Purchase of Care,11-Oct-2012,2505048-1276092H,516.96,CAREWATCH (DURHAM & EASINGTON) FASTFLOW ACC.
Adults Wellbeing and Health,Head of Adults,Third Party Payments,472101,Purchase of Care,11-Oct-2012,2505048-1276504H,590.80,CAREWATCH (DURHAM & EASINGTON) FASTFLOW ACC.
Adults Wellbeing and Health,Head of Adults,Third Party Payments,472101,Purchase of Care,11-Oct-2012,2505048-1276542H,527.50,CAREWATCH (DURHAM & EASINGTON) FASTFLOW ACC.
Adults Wellbeing and Health,Head of Adults,Third Party Payments,472101,Purchase of Care,11-Oct-2012,2505048-1276604H,562.68,CAREWATCH (DURHAM & EASINGTON) FASTFLOW ACC.
Adults Wellbeing and Health,Head of Adults,Third Party Payments,472101,Purchase of Care,11-Oct-2012,2505048-1276613H,"1,698.56",CAREWATCH (DURHAM & EASINGTON) FASTFLOW ACC.
Adults Wellbeing and Health,Head of Adults,Third Party Payments,472101,Purchase of Care,11-Oct-2012,2505048-1276625H,538.04,CAREWATCH (DURHAM & EASINGTON) FASTFLOW ACC.
Adults Wellbeing and Health,Head of Adults,Third Party Payments,472101,Purchase of Care,11-Oct-2012,2505048-1276662H,"1,371.50",CAREWATCH (DURHAM & EASINGTON) FASTFLOW ACC.
Adults Wellbeing and Health,Head of Adults,Third Party Payments,472101,Purchase of Care,11-Oct-2012,2505048-1276781H,"1,477.00",CAREWATCH (DURHAM & EASINGTON) FASTFLOW ACC.
Adults Wellbeing and Health,Head of Adults,Third Party Payments,472101,Purchase of Care,11-Oct-2012,2505048-1276814H,"1,329.32",CAREWATCH (DURHAM & EASINGTON) FASTFLOW ACC.
Adults Wellbeing and Health,Head of Adults,Third Party Payments,472101,Purchase of Care,11-Oct-2012,2505048-1276998H,738.52,CAREWATCH (DURHAM & EASINGTON) FASTFLOW ACC.
Adults Wellbeing and Health,Head of Adults,Third Party Payments,472101,Purchase of Care,11-Oct-2012,2505048-1277023H,516.95,CAREWATCH (DURHAM & EASINGTON) FASTFLOW ACC.
Adults Wellbeing and Health,Head of Adults,Third Party Payments,472101,Purchase of Care,11-Oct-2012,2505048-1277124H,569.72,CAREWATCH (DURHAM & EASINGTON) FASTFLOW ACC.
Adults Wellbeing and Health,Head of Adults,Third Party Payments,472101,Purchase of Care,11-Oct-2012,2505048-1277171H,590.80,CAREWATCH (DURHAM & EASINGTON) FASTFLOW ACC.
Adults Wellbeing and Health,Head of Adults,Third Party Payments,472101,Purchase of Care,11-Oct-2012,2505048-1277189H,664.64,CAREWATCH (DURHAM & EASINGTON) FASTFLOW ACC.
Adults Wellbeing and Health,Head of Adults,Third Party Payments,472101,Purchase of Care,11-Oct-2012,2505048-1277222H,559.16,CAREWATCH (DURHAM & EASINGTON) FASTFLOW ACC.
Adults Wellbeing and Health,Head of Adults,Third Party Payments,472101,Purchase of Care,11-Oct-2012,2505048-1277592H,738.52,CAREWATCH (DURHAM & EASINGTON) FASTFLOW ACC.
Adults Wellbeing and Health,Head of Adults,Third Party Payments,472101,Purchase of Care,11-Oct-2012,2505048-1277797H,657.60,CAREWATCH (DURHAM & EASINGTON) FASTFLOW ACC.
Adults Wellbeing and Health,Head of Adults,Third Party Payments,478101,Purchase of Care,11-Oct-2012,2505048-1277824H,"1,540.00",CAREWATCH (DURHAM & EASINGTON) FASTFLOW ACC.
Adults Wellbeing and Health,Head of Adults,Third Party Payments,472101,Purchase of Care,11-Oct-2012,2505048-1277826H,807.08,CAREWATCH (DURHAM & EASINGTON) FASTFLOW ACC.
Adults Wellbeing and Health,Head of Adults,Third Party Payments,472101,Purchase of Care,11-Oct-2012,2505048-1277883H,527.52,CAREWATCH (DURHAM & EASINGTON) FASTFLOW ACC.
Adults Wellbeing and Health,Head of Adults,Third Party Payments,472101,Purchase of Care,11-Oct-2012,2505048-1278016H,654.12,CAREWATCH (DURHAM & EASINGTON) FASTFLOW ACC.
Adults Wellbeing and Health,Head of Adults,Third Party Payments,472101,Purchase of Care,11-Oct-2012,2505048-1278053H,580.24,CAREWATCH (DURHAM & EASINGTON) FASTFLOW ACC.
Adults Wellbeing and Health,Head of Adults,Third Party Payments,472101,Purchase of Care,11-Oct-2012,2505048-1278160H,"1,076.12",CAREWATCH (DURHAM & EASINGTON) FASTFLOW ACC.
Adults Wellbeing and Health,Head of Adults,Third Party Payments,472101,Purchase of Care,11-Oct-2012,2505048-1278186H,590.80,CAREWATCH (DURHAM & EASINGTON) FASTFLOW ACC.
Adults Wellbeing and Health,Head of Adults,Third Party Payments,472101,Purchase of Care,11-Oct-2012,2505048-1278198H,668.16,CAREWATCH (DURHAM & EASINGTON) FASTFLOW ACC.
Adults Wellbeing and Health,Head of Adults,Third Party Payments,472101,Purchase of Care,11-Oct-2012,2505048-1278260H,801.80,CAREWATCH (DURHAM & EASINGTON) FASTFLOW ACC.
Adults Wellbeing and Health,Head of Adults,Third Party Payments,472101,Purchase of Care,11-Oct-2012,2505048-1278535H,527.50,CAREWATCH (DURHAM & EASINGTON) FASTFLOW ACC.
Adults Wellbeing and Health,Head of Adults,Third Party Payments,472101,Purchase of Care,11-Oct-2012,2505048-1278736H,"1,181.60",CAREWATCH (DURHAM & EASINGTON) FASTFLOW ACC.
Adults Wellbeing and Health,Head of Adults,Third Party Payments,472101,Purchase of Care,11-Oct-2012,2505048-1278935H,675.20,CAREWATCH (DURHAM & EASINGTON) FASTFLOW ACC.
Adults Wellbeing and Health,Head of Adults,Third Party Payments,472101,Purchase of Care,11-Oct-2012,2505048-1279037H,590.80,CAREWATCH (DURHAM & EASINGTON) FASTFLOW ACC.
Adults Wellbeing and Health,Head of Adults,Third Party Payments,472101,Purchase of Care,24-Oct-2012,2511396-AADJ30/9/12,"2,839.21",CAREWATCH (DURHAM & EASINGTON) FASTFLOW ACC.
Adults Wellbeing and Health,Head of Adults,Transfer Payments,515201,Social Services Clients,11-Oct-2012,2505053-1275682H,"1,532.24",REDACTED - PAYMENT TO INDIVIDUAL
Adults Wellbeing and Health,Head of Adults,Transfer Payments,515201,Social Services Clients,11-Oct-2012,2505054-1273968H,"3,632.00",REDACTED - PAYMENT TO INDIVIDUAL
Adults Wellbeing and Health,Head of Adults,Transfer Payments,515201,Social Services Clients,11-Oct-2012,2505054-1273969H,"1,680.00",REDACTED - PAYMENT TO INDIVIDUAL
Adults Wellbeing and Health,Head of Adults,Transfer Payments,515201,Social Services Clients,11-Oct-2012,2505056-1276584H,635.60,REDACTED - PAYMENT TO INDIVIDUAL
Adults Wellbeing and Health,Head of Adults,Third Party Payments,472101,Purchase of Care,11-Oct-2012,2505066-1274425H,654.12,CASTLE CARE TEESDALE LTD.
Adults Wellbeing and Health,Head of Adults,Third Party Payments,472101,Purchase of Care,11-Oct-2012,2505066-1277032H,896.76,CASTLE CARE TEESDALE LTD.
Adults Wellbeing and Health,Head of Adults,Third Party Payments,472101,Purchase of Care,11-Oct-2012,2505066-1277073H,"1,329.32",CASTLE CARE TEESDALE LTD.
Adults Wellbeing and Health,Head of Adults,Third Party Payments,472101,Purchase of Care,11-Oct-2012,2505066-1279188H,830.80,CASTLE CARE TEESDALE LTD.
Adults Wellbeing and Health,Head of Adults,Transfer Payments,515201,Social Services Clients,11-Oct-2012,2505073-1276357H,794.52,REDACTED - PAYMENT TO INDIVIDUAL
Adults Wellbeing and Health,Planning and Performance,Supplies and Services,338089,Services,10-Oct-2012,2504153-95,500.00,CELIA HARBOTTLE.
Adults Wellbeing and Health,Head of Adults,Transfer Payments,515201,Social Services Clients,11-Oct-2012,2505086-1274981H,"1,867.08",REDACTED - PAYMENT TO INDIVIDUAL
Adults Wellbeing and Health,Head of Adults,Transport,230005,Contract Hire,12-Oct-2012,2506754-NCL013SEP12,"1,360.00",CHESTER CABS.
Adults Wellbeing and Health,Head of Adults,Supplies and Services,338094,Services,02-Oct-2012,2501329-12-279A,765.00,CHESTER LE STREET & DISTRICT CVS.
Adults Wellbeing and Health,Head of Adults,Supplies and Services,338094,Services,16-Oct-2012,2508147-2229,800.00,CHESTER LE STREET & DISTRICT CVS.
Adults Wellbeing and Health,Social Inclusion,Supplies and Services,312009,"Newspapers, Books and Periodicals",19-Oct-2012,2509605-143394,"1,960.00",CHILD POVERTY ACTION GROUP.
Adults Wellbeing and Health,Head of Adults,Third Party Payments,470101,Purchase of Care,11-Oct-2012,2505094-2055335,530.64,CHILTON CARE CENTRE.
Adults Wellbeing and Health,Head of Adults,Third Party Payments,470101,Purchase of Care,11-Oct-2012,2505094-2055336,"1,163.20",CHILTON CARE CENTRE.
Adults Wellbeing and Health,Head of Adults,Third Party Payments,470101,Purchase of Care,11-Oct-2012,2505094-2055343,"1,067.44",CHILTON CARE CENTRE.
Adults Wellbeing and Health,Head of Adults,Third Party Payments,470101,Purchase of Care,11-Oct-2012,2505094-2055344,"1,380.44",CHILTON CARE CENTRE.
Adults Wellbeing and Health,Head of Adults,Third Party Payments,470101,Purchase of Care,11-Oct-2012,2505094-2055345,"1,344.12",CHILTON CARE CENTRE.
Adults Wellbeing and Health,Head of Adults,Third Party Payments,470101,Purchase of Care,11-Oct-2012,2505094-2055346,"1,857.24",CHILTON CARE CENTRE.
Adults Wellbeing and Health,Head of Adults,Third Party Payments,470101,Purchase of Care,11-Oct-2012,2505094-2055347,"1,244.72",CHILTON CARE CENTRE.
Adults Wellbeing and Health,Head of Adults,Third Party Payments,470101,Purchase of Care,11-Oct-2012,2505094-2055348,"1,857.24",CHILTON CARE CENTRE.
Adults Wellbeing and Health,Head of Adults,Third Party Payments,470101,Purchase of Care,11-Oct-2012,2505094-2055349,"6,910.07",CHILTON CARE CENTRE.
Adults Wellbeing and Health,Head of Adults,Third Party Payments,470101,Purchase of Care,11-Oct-2012,2505094-2055350,"1,380.44",CHILTON CARE CENTRE.
Adults Wellbeing and Health,Head of Adults,Third Party Payments,470101,Purchase of Care,11-Oct-2012,2505094-2055351,"1,857.24",CHILTON CARE CENTRE.
Adults Wellbeing and Health,Head of Adults,Third Party Payments,470101,Purchase of Care,11-Oct-2012,2505094-2055352,"1,857.24",CHILTON CARE CENTRE.
Adults Wellbeing and Health,Head of Adults,Third Party Payments,470101,Purchase of Care,11-Oct-2012,2505094-2055353,"4,731.90",CHILTON CARE CENTRE.
Adults Wellbeing and Health,Head of Adults,Third Party Payments,470101,Purchase of Care,11-Oct-2012,2505094-2055354,"1,857.24",CHILTON CARE CENTRE.
Adults Wellbeing and Health,Head of Adults,Third Party Payments,470101,Purchase of Care,11-Oct-2012,2505094-2055355,"1,226.24",CHILTON CARE CENTRE.
Adults Wellbeing and Health,Head of Adults,Third Party Payments,470101,Purchase of Care,11-Oct-2012,2505094-2055356,768.32,CHILTON CARE CENTRE.
Adults Wellbeing and Health,Head of Adults,Third Party Payments,471101,Purchase of Care,11-Oct-2012,2505094-2058659,"1,448.96",CHILTON CARE CENTRE.
Adults Wellbeing and Health,Head of Adults,Third Party Payments,471101,Purchase of Care,11-Oct-2012,2505094-2058669,"1,328.44",CHILTON CARE CENTRE.
Adults Wellbeing and Health,Head of Adults,Third Party Payments,471101,Purchase of Care,11-Oct-2012,2505094-2058670,"1,925.76",CHILTON CARE CENTRE.
Adults Wellbeing and Health,Head of Adults,Third Party Payments,471101,Purchase of Care,11-Oct-2012,2505094-2058671,"1,925.76",CHILTON CARE CENTRE.
Adults Wellbeing and Health,Head of Adults,Third Party Payments,471101,Purchase of Care,11-Oct-2012,2505094-2058672,"1,261.72",CHILTON CARE CENTRE.
Adults Wellbeing and Health,Head of Adults,Third Party Payments,471101,Purchase of Care,11-Oct-2012,2505094-2058673,"1,448.96",CHILTON CARE CENTRE.
Adults Wellbeing and Health,Head of Adults,Third Party Payments,471101,Purchase of Care,11-Oct-2012,2505094-2058674,"1,403.44",CHILTON CARE CENTRE.
Adults Wellbeing and Health,Head of Adults,Third Party Payments,471101,Purchase of Care,11-Oct-2012,2505094-2058675,"1,058.00",CHILTON CARE CENTRE.
Adults Wellbeing and Health,Head of Adults,Third Party Payments,471101,Purchase of Care,11-Oct-2012,2505094-2058676,"1,925.76",CHILTON CARE CENTRE.
Adults Wellbeing and Health,Head of Adults,Third Party Payments,471101,Purchase of Care,11-Oct-2012,2505094-2058677,"1,251.56",CHILTON CARE CENTRE.
Adults Wellbeing and Health,Head of Adults,Third Party Payments,471101,Purchase of Care,11-Oct-2012,2505094-2058678,"1,448.96",CHILTON CARE CENTRE.
Adults Wellbeing and Health,Head of Adults,Third Party Payments,471101,Purchase of Care,11-Oct-2012,2505094-2058679,"1,136.72",CHILTON CARE CENTRE.
Adults Wellbeing and Health,Head of Adults,Third Party Payments,470101,Purchase of Care,11-Oct-2012,2505094-2058680,"1,925.76",CHILTON CARE CENTRE.
Adults Wellbeing and Health,Head of Adults,Third Party Payments,471101,Purchase of Care,11-Oct-2012,2505094-2058681,"1,448.96",CHILTON CARE CENTRE.
Adults Wellbeing and Health,Head of Adults,Third Party Payments,471101,Purchase of Care,11-Oct-2012,2505094-2058682,"1,176.60",CHILTON CARE CENTRE.
Adults Wellbeing and Health,Head of Adults,Third Party Payments,471101,Purchase of Care,11-Oct-2012,2505094-2058683,"1,448.96",CHILTON CARE CENTRE.
Adults Wellbeing and Health,Head of Adults,Third Party Payments,471101,Purchase of Care,11-Oct-2012,2505094-2058684,"1,448.96",CHILTON CARE CENTRE.
Adults Wellbeing and Health,Head of Adults,Third Party Payments,471101,Purchase of Care,11-Oct-2012,2505094-2058685,"1,448.96",CHILTON CARE CENTRE.
Adults Wellbeing and Health,Head of Adults,Third Party Payments,470101,Purchase of Care,11-Oct-2012,2505094-2058686,"1,337.56",CHILTON CARE CENTRE.
Adults Wellbeing and Health,Head of Adults,Third Party Payments,471101,Purchase of Care,11-Oct-2012,2505094-2058687,"1,925.76",CHILTON CARE CENTRE.
Adults Wellbeing and Health,Head of Adults,Third Party Payments,478101,Purchase of Care,11-Oct-2012,2505097-1273220H,"3,804.64",CHOICES COMMUNITY CARE SERVICES LTD.
Adults Wellbeing and Health,Head of Adults,Third Party Payments,478101,Purchase of Care,11-Oct-2012,2505097-1274020H,"5,528.60",CHOICES COMMUNITY CARE SERVICES LTD.
Adults Wellbeing and Health,Head of Adults,Third Party Payments,478101,Purchase of Care,11-Oct-2012,2505097-1274177H,"2,220.40",CHOICES COMMUNITY CARE SERVICES LTD.
Adults Wellbeing and Health,Head of Adults,Third Party Payments,478101,Purchase of Care,11-Oct-2012,2505097-1274353H,614.60,CHOICES COMMUNITY CARE SERVICES LTD.
Adults Wellbeing and Health,Head of Adults,Third Party Payments,478101,Purchase of Care,11-Oct-2012,2505097-1274354H,"1,605.80",CHOICES COMMUNITY CARE SERVICES LTD.
Adults Wellbeing and Health,Head of Adults,Third Party Payments,478101,Purchase of Care,11-Oct-2012,2505097-1274479H,567.14,CHOICES COMMUNITY CARE SERVICES LTD.
Adults Wellbeing and Health,Head of Adults,Third Party Payments,478101,Purchase of Care,11-Oct-2012,2505097-1274509H,"3,826.64",CHOICES COMMUNITY CARE SERVICES LTD.
Adults Wellbeing and Health,Head of Adults,Third Party Payments,478101,Purchase of Care,11-Oct-2012,2505097-1275083H,"3,149.14",CHOICES COMMUNITY CARE SERVICES LTD.
Adults Wellbeing and Health,Head of Adults,Transfer Payments,515201,Social Services Clients,11-Oct-2012,2506002-1276755H,741.68,REDACTED - PAYMENT TO INDIVIDUAL
Adults Wellbeing and Health,Head of Adults,Third Party Payments,470101,Purchase of Care,11-Oct-2012,2505105-2055133,"1,757.76",CHURCH VIEW RESIDENTIAL CARE HOME.
Adults Wellbeing and Health,Head of Adults,Third Party Payments,470101,Purchase of Care,11-Oct-2012,2505105-2055134,"1,757.76",CHURCH VIEW RESIDENTIAL CARE HOME.
Adults Wellbeing and Health,Head of Adults,Third Party Payments,470101,Purchase of Care,11-Oct-2012,2505105-2055135,"1,757.76",CHURCH VIEW RESIDENTIAL CARE HOME.
Adults Wellbeing and Health,Head of Adults,Third Party Payments,470101,Purchase of Care,11-Oct-2012,2505105-2055136,"1,757.76",CHURCH VIEW RESIDENTIAL CARE HOME.
Adults Wellbeing and Health,Head of Adults,Third Party Payments,470101,Purchase of Care,11-Oct-2012,2505105-2055137,"1,757.76",CHURCH VIEW RESIDENTIAL CARE HOME.
Adults Wellbeing and Health,Head of Adults,Third Party Payments,470101,Purchase of Care,11-Oct-2012,2505105-2055138,"1,757.76",CHURCH VIEW RESIDENTIAL CARE HOME.
Adults Wellbeing and Health,Head of Adults,Third Party Payments,470101,Purchase of Care,11-Oct-2012,2505105-2055139,"1,757.76",CHURCH VIEW RESIDENTIAL CARE HOME.
Adults Wellbeing and Health,Head of Adults,Third Party Payments,470101,Purchase of Care,11-Oct-2012,2505105-2055141,"1,757.76",CHURCH VIEW RESIDENTIAL CARE HOME.
Adults Wellbeing and Health,Head of Adults,Third Party Payments,470101,Purchase of Care,11-Oct-2012,2505105-2055143,"1,757.76",CHURCH VIEW RESIDENTIAL CARE HOME.
Adults Wellbeing and Health,Head of Adults,Third Party Payments,470101,Purchase of Care,11-Oct-2012,2505105-2055144,"1,757.76",CHURCH VIEW RESIDENTIAL CARE HOME.
Adults Wellbeing and Health,Head of Adults,Third Party Payments,470101,Purchase of Care,11-Oct-2012,2505105-2055145,"1,757.76",CHURCH VIEW RESIDENTIAL CARE HOME.
Adults Wellbeing and Health,Head of Adults,Third Party Payments,470101,Purchase of Care,11-Oct-2012,2505105-2055146,"1,757.76",CHURCH VIEW RESIDENTIAL CARE HOME.
Adults Wellbeing and Health,Head of Adults,Third Party Payments,470101,Purchase of Care,11-Oct-2012,2505105-2055147,"1,757.76",CHURCH VIEW RESIDENTIAL CARE HOME.
Adults Wellbeing and Health,Head of Adults,Third Party Payments,470101,Purchase of Care,11-Oct-2012,2505105-2055148,"1,757.76",CHURCH VIEW RESIDENTIAL CARE HOME.
Adults Wellbeing and Health,Head of Adults,Third Party Payments,470101,Purchase of Care,11-Oct-2012,2505105-2055149,"1,757.76",CHURCH VIEW RESIDENTIAL CARE HOME.
Adults Wellbeing and Health,Head of Adults,Third Party Payments,470101,Purchase of Care,11-Oct-2012,2505105-2055150,"1,757.76",CHURCH VIEW RESIDENTIAL CARE HOME.
Adults Wellbeing and Health,Head of Adults,Third Party Payments,471101,Purchase of Care,11-Oct-2012,2505105-2058501,"1,827.24",CHURCH VIEW RESIDENTIAL CARE HOME.
Adults Wellbeing and Health,Head of Adults,Third Party Payments,471101,Purchase of Care,11-Oct-2012,2505105-2058502,"1,827.24",CHURCH VIEW RESIDENTIAL CARE HOME.
Adults Wellbeing and Health,Head of Adults,Third Party Payments,471101,Purchase of Care,11-Oct-2012,2505105-2058506,"1,827.24",CHURCH VIEW RESIDENTIAL CARE HOME.
Adults Wellbeing and Health,Head of Adults,Third Party Payments,471101,Purchase of Care,11-Oct-2012,2505105-2058507,"1,827.24",CHURCH VIEW RESIDENTIAL CARE HOME.
Adults Wellbeing and Health,Head of Adults,Third Party Payments,471101,Purchase of Care,11-Oct-2012,2505105-2058508,"1,827.24",CHURCH VIEW RESIDENTIAL CARE HOME.
Adults Wellbeing and Health,Head of Adults,Third Party Payments,471101,Purchase of Care,11-Oct-2012,2505105-2058509,"1,827.24",CHURCH VIEW RESIDENTIAL CARE HOME.
Adults Wellbeing and Health,Head of Adults,Third Party Payments,471101,Purchase of Care,11-Oct-2012,2505105-2058510,"1,827.24",CHURCH VIEW RESIDENTIAL CARE HOME.
Adults Wellbeing and Health,Head of Adults,Third Party Payments,471101,Purchase of Care,11-Oct-2012,2505105-2058511,"1,827.24",CHURCH VIEW RESIDENTIAL CARE HOME.
Adults Wellbeing and Health,Head of Adults,Third Party Payments,471101,Purchase of Care,11-Oct-2012,2505105-2058512,"1,827.24",CHURCH VIEW RESIDENTIAL CARE HOME.
Adults Wellbeing and Health,Head of Adults,Third Party Payments,471101,Purchase of Care,11-Oct-2012,2505105-2058513,"1,827.24",CHURCH VIEW RESIDENTIAL CARE HOME.
Adults Wellbeing and Health,Head of Adults,Third Party Payments,471101,Purchase of Care,11-Oct-2012,2505105-2058514,"1,827.24",CHURCH VIEW RESIDENTIAL CARE HOME.
Adults Wellbeing and Health,Head of Adults,Third Party Payments,471101,Purchase of Care,11-Oct-2012,2505105-2058515,"1,827.24",CHURCH VIEW RESIDENTIAL CARE HOME.
Adults Wellbeing and Health,Head of Adults,Third Party Payments,471101,Purchase of Care,11-Oct-2012,2505105-2058516,"1,827.24",CHURCH VIEW RESIDENTIAL CARE HOME.
Adults Wellbeing and Health,Head of Adults,Third Party Payments,471101,Purchase of Care,11-Oct-2012,2505105-2058517,"1,827.24",CHURCH VIEW RESIDENTIAL CARE HOME.
Adults Wellbeing and Health,Head of Adults,Third Party Payments,471101,Purchase of Care,11-Oct-2012,2505105-2058518,"1,827.24",CHURCH VIEW RESIDENTIAL CARE HOME.
Adults Wellbeing and Health,Head of Adults,Third Party Payments,471101,Purchase of Care,11-Oct-2012,2505105-2058519,"1,827.24",CHURCH VIEW RESIDENTIAL CARE HOME.
Adults Wellbeing and Health,Head of Adults,Third Party Payments,471101,Purchase of Care,11-Oct-2012,2505105-2058520,"1,827.24",CHURCH VIEW RESIDENTIAL CARE HOME.
Adults Wellbeing and Health,Head of Adults,Third Party Payments,470101,Purchase of Care,11-Oct-2012,2505105-2060080,627.77,CHURCH VIEW RESIDENTIAL CARE HOME.
Adults Wellbeing and Health,Social Inclusion,Supplies and Services,338035,Services,22-Oct-2012,2510176-802551483,567.00,CITY & GUILDS OF LONDON INSTITUTE.
Adults Wellbeing and Health,Head of Adults,Transfer Payments,515209,Social Services Clients,11-Oct-2012,2505111-1272500D,"1,622.40",REDACTED - PAYMENT TO INDIVIDUAL
Adults Wellbeing and Health,Social Inclusion,Premises,106099,Centrally Controlled Rep and Maint,29-Oct-2012,2512546-448855,"23,627.42",CLEARWATER TECHNOLOGY LTD.
Adults Wellbeing and Health,Head of Adults,Third Party Payments,479102,Purchase of Care,22-Oct-2012,2510182-3946266,"5,838.00",CO DURHAM & DARLINGTON NHS FOUNDATION TRUST.
Adults Wellbeing and Health,Head of Adults,Third Party Payments,479102,Purchase of Care,22-Oct-2012,2510182-3946267,"8,752.75",CO DURHAM & DARLINGTON NHS FOUNDATION TRUST.
Adults Wellbeing and Health,Head of Adults,Third Party Payments,479102,Purchase of Care,22-Oct-2012,2510182-3946268,"14,048.50",CO DURHAM & DARLINGTON NHS FOUNDATION TRUST.
Adults Wellbeing and Health,Head of Adults,Supplies and Services,338370,Services,23-Oct-2012,2511122-3946275,"47,783.32",CO DURHAM & DARLINGTON NHS FOUNDATION TRUST.
Adults Wellbeing and Health,Head of Adults,Supplies and Services,384619,Miscellaneous Expenses,29-Oct-2012,2512550-3138168,"28,606.50",CO DURHAM & DARLINGTON NHS FOUNDATION TRUST.
Adults Wellbeing and Health,Head of Adults,Third Party Payments,474101,Purchase of Care,11-Oct-2012,2505125-2056656,"1,149.68",COBLE HOUSE.
Adults Wellbeing and Health,Commissioning inc Supporting People,Third Party Payments,443001,Supporting People,05-Oct-2012,2502577-1944180,"1,600.00",COMMUNITY INTEGRATED CARE LTD.
Adults Wellbeing and Health,Commissioning inc Supporting People,Third Party Payments,443001,Supporting People,05-Oct-2012,2502577-1944187,"1,200.00",COMMUNITY INTEGRATED CARE LTD.
Adults Wellbeing and Health,Commissioning inc Supporting People,Third Party Payments,443001,Supporting People,05-Oct-2012,2502577-1944194,"2,800.00",COMMUNITY INTEGRATED CARE LTD.
Adults Wellbeing and Health,Commissioning inc Supporting People,Third Party Payments,443001,Supporting People,05-Oct-2012,2502577-1944236,"3,200.00",COMMUNITY INTEGRATED CARE LTD.
Adults Wellbeing and Health,Head of Adults,Third Party Payments,478101,Purchase of Care,11-Oct-2012,2505136-1273081H,"4,537.16",COMMUNITY INTEGRATED CARE LTD.
Adults Wellbeing and Health,Head of Adults,Third Party Payments,478101,Purchase of Care,11-Oct-2012,2505136-1273137H,"3,822.28",COMMUNITY INTEGRATED CARE LTD.
Adults Wellbeing and Health,Head of Adults,Third Party Payments,478101,Purchase of Care,11-Oct-2012,2505136-1273191H,"3,434.64",COMMUNITY INTEGRATED CARE LTD.
Adults Wellbeing and Health,Head of Adults,Third Party Payments,478101,Purchase of Care,11-Oct-2012,2505136-1273228H,"3,822.28",COMMUNITY INTEGRATED CARE LTD.
Adults Wellbeing and Health,Head of Adults,Third Party Payments,478101,Purchase of Care,11-Oct-2012,2505136-1273335H,"4,537.16",COMMUNITY INTEGRATED CARE LTD.
Adults Wellbeing and Health,Head of Adults,Third Party Payments,478101,Purchase of Care,11-Oct-2012,2505136-1273338H,"4,574.36",COMMUNITY INTEGRATED CARE LTD.
Adults Wellbeing and Health,Head of Adults,Third Party Payments,478101,Purchase of Care,11-Oct-2012,2505136-1273339H,"4,797.76",COMMUNITY INTEGRATED CARE LTD.
Adults Wellbeing and Health,Head of Adults,Third Party Payments,478101,Purchase of Care,11-Oct-2012,2505136-1273340H,"4,537.16",COMMUNITY INTEGRATED CARE LTD.
Adults Wellbeing and Health,Head of Adults,Third Party Payments,478101,Purchase of Care,11-Oct-2012,2505136-1273341H,"3,230.28",COMMUNITY INTEGRATED CARE LTD.
Adults Wellbeing and Health,Head of Adults,Third Party Payments,478101,Purchase of Care,11-Oct-2012,2505136-1273344H,"3,230.28",COMMUNITY INTEGRATED CARE LTD.
Adults Wellbeing and Health,Head of Adults,Third Party Payments,478101,Purchase of Care,11-Oct-2012,2505136-1273420H,"5,763.76",COMMUNITY INTEGRATED CARE LTD.
Adults Wellbeing and Health,Head of Adults,Third Party Payments,478101,Purchase of Care,11-Oct-2012,2505136-1273439H,"3,434.64",COMMUNITY INTEGRATED CARE LTD.
Adults Wellbeing and Health,Head of Adults,Third Party Payments,478101,Purchase of Care,11-Oct-2012,2505136-1273441H,"4,082.88",COMMUNITY INTEGRATED CARE LTD.
Adults Wellbeing and Health,Head of Adults,Third Party Payments,478101,Purchase of Care,11-Oct-2012,2505136-1273443H,"4,574.36",COMMUNITY INTEGRATED CARE LTD.
Adults Wellbeing and Health,Head of Adults,Third Party Payments,478101,Purchase of Care,11-Oct-2012,2505136-1273484H,"6,031.84",COMMUNITY INTEGRATED CARE LTD.
Adults Wellbeing and Health,Head of Adults,Third Party Payments,478101,Purchase of Care,11-Oct-2012,2505136-1273491H,"6,272.20",COMMUNITY INTEGRATED CARE LTD.
Adults Wellbeing and Health,Head of Adults,Third Party Payments,478101,Purchase of Care,11-Oct-2012,2505136-1273547H,"6,456.28",COMMUNITY INTEGRATED CARE LTD.
Adults Wellbeing and Health,Head of Adults,Third Party Payments,478101,Purchase of Care,11-Oct-2012,2505136-1273563H,"4,604.16",COMMUNITY INTEGRATED CARE LTD.
Adults Wellbeing and Health,Head of Adults,Third Party Payments,478101,Purchase of Care,11-Oct-2012,2505136-1273631H,"3,230.28",COMMUNITY INTEGRATED CARE LTD.
Adults Wellbeing and Health,Head of Adults,Third Party Payments,478101,Purchase of Care,11-Oct-2012,2505136-1273646H,"3,434.64",COMMUNITY INTEGRATED CARE LTD.
Adults Wellbeing and Health,Head of Adults,Third Party Payments,478101,Purchase of Care,11-Oct-2012,2505136-1273700H,"4,604.16",COMMUNITY INTEGRATED CARE LTD.
Adults Wellbeing and Health,Head of Adults,Third Party Payments,478101,Purchase of Care,11-Oct-2012,2505136-1273756H,"4,574.36",COMMUNITY INTEGRATED CARE LTD.
Adults Wellbeing and Health,Head of Adults,Third Party Payments,478101,Purchase of Care,11-Oct-2012,2505136-1273981H,"3,434.64",COMMUNITY INTEGRATED CARE LTD.
Adults Wellbeing and Health,Head of Adults,Third Party Payments,478101,Purchase of Care,11-Oct-2012,2505136-1273986H,"3,822.28",COMMUNITY INTEGRATED CARE LTD.
Adults Wellbeing and Health,Head of Adults,Third Party Payments,478101,Purchase of Care,11-Oct-2012,2505136-1274303H,"5,640.76",COMMUNITY INTEGRATED CARE LTD.
Adults Wellbeing and Health,Head of Adults,Third Party Payments,478101,Purchase of Care,11-Oct-2012,2505136-1274326H,"3,822.28",COMMUNITY INTEGRATED CARE LTD.
Adults Wellbeing and Health,Head of Adults,Third Party Payments,470101,Purchase of Care,11-Oct-2012,2505141-2057738,"2,003.08",COTTAGE & RURAL ENTERPRISES LTD.
Adults Wellbeing and Health,Head of Adults,Third Party Payments,472101,Purchase of Care,02-Oct-2012,2501341-511412,"1,505.72",COUNTY DURHAM PCT .
Adults Wellbeing and Health,Commissioning inc Supporting People,Third Party Payments,479111,Purchase of Care,17-Oct-2012,2508487-511B74,"40,955.50",COUNTY DURHAM PCT .
Adults Wellbeing and Health,Social Inclusion,Premises,125009,Rents,31-Oct-2012,2513983-511462,"4,840.25",COUNTY DURHAM PCT .
Adults Wellbeing and Health,Head of Adults,Transfer Payments,515209,Social Services Clients,11-Oct-2012,2505147-1272883D,601.48,REDACTED - PAYMENT TO INDIVIDUAL
Adults Wellbeing and Health,Head of Adults,Third Party Payments,478101,Purchase of Care,11-Oct-2012,2505150-1272829H,"2,594.24",CRAIGMORE / TAYLOURMADE DAY SERVICES.
Adults Wellbeing and Health,Head of Adults,Third Party Payments,478101,Purchase of Care,11-Oct-2012,2505150-1273783H,"1,686.04",CRAIGMORE / TAYLOURMADE DAY SERVICES.
Adults Wellbeing and Health,Head of Adults,Third Party Payments,478101,Purchase of Care,11-Oct-2012,2505150-1274446H,"1,686.04",CRAIGMORE / TAYLOURMADE DAY SERVICES.
Adults Wellbeing and Health,Head of Adults,Third Party Payments,478101,Purchase of Care,11-Oct-2012,2505150-1274465H,"3,311.24",CRAIGMORE / TAYLOURMADE DAY SERVICES.
Adults Wellbeing and Health,Head of Adults,Third Party Payments,478101,Purchase of Care,11-Oct-2012,2505150-1274950H,"1,686.04",CRAIGMORE / TAYLOURMADE DAY SERVICES.
Adults Wellbeing and Health,Head of Adults,Third Party Payments,478101,Purchase of Care,11-Oct-2012,2505150-1275504H,"2,164.04",CRAIGMORE / TAYLOURMADE DAY SERVICES.
Adults Wellbeing and Health,Head of Adults,Third Party Payments,478101,Purchase of Care,11-Oct-2012,2505150-1277921H,"1,686.04",CRAIGMORE / TAYLOURMADE DAY SERVICES.
Adults Wellbeing and Health,Head of Adults,Third Party Payments,478101,Purchase of Care,11-Oct-2012,2505150-1277962H,"2,983.24",CRAIGMORE / TAYLOURMADE DAY SERVICES.
Adults Wellbeing and Health,Head of Adults,Third Party Payments,472101,Purchase of Care,11-Oct-2012,2505156-1278077H,"1,687.36",CRESCENT HOMECARE LTD.
Adults Wellbeing and Health,Head of Adults,Third Party Payments,472101,Purchase of Care,11-Oct-2012,2505156-1278577H,635.60,CRESCENT HOMECARE LTD.
Adults Wellbeing and Health,Head of Adults,Third Party Payments,470101,Purchase of Care,11-Oct-2012,2505157-2055168,"1,380.44",CROFT HOUSE RESIDENTIAL HOME.
Adults Wellbeing and Health,Head of Adults,Third Party Payments,470101,Purchase of Care,11-Oct-2012,2505157-2055205,"1,320.28",CROFT HOUSE RESIDENTIAL HOME.
Adults Wellbeing and Health,Head of Adults,Third Party Payments,470101,Purchase of Care,11-Oct-2012,2505157-2055206,"1,857.24",CROFT HOUSE RESIDENTIAL HOME.
Adults Wellbeing and Health,Head of Adults,Third Party Payments,470101,Purchase of Care,11-Oct-2012,2505157-2055207,957.84,CROFT HOUSE RESIDENTIAL HOME.
Adults Wellbeing and Health,Head of Adults,Third Party Payments,470101,Purchase of Care,11-Oct-2012,2505157-2055210,"1,857.24",CROFT HOUSE RESIDENTIAL HOME.
Adults Wellbeing and Health,Head of Adults,Third Party Payments,470101,Purchase of Care,11-Oct-2012,2505157-2055211,"1,413.89",CROFT HOUSE RESIDENTIAL HOME.
Adults Wellbeing and Health,Head of Adults,Third Party Payments,470101,Purchase of Care,11-Oct-2012,2505157-2055213,"1,857.24",CROFT HOUSE RESIDENTIAL HOME.
Adults Wellbeing and Health,Head of Adults,Third Party Payments,470101,Purchase of Care,11-Oct-2012,2505157-2055214,"1,380.44",CROFT HOUSE RESIDENTIAL HOME.
Adults Wellbeing and Health,Head of Adults,Third Party Payments,470101,Purchase of Care,11-Oct-2012,2505157-2055215,501.60,CROFT HOUSE RESIDENTIAL HOME.
Adults Wellbeing and Health,Head of Adults,Third Party Payments,470101,Purchase of Care,11-Oct-2012,2505157-2055216,"1,380.44",CROFT HOUSE RESIDENTIAL HOME.
Adults Wellbeing and Health,Head of Adults,Third Party Payments,470101,Purchase of Care,11-Oct-2012,2505157-2055217,"1,219.88",CROFT HOUSE RESIDENTIAL HOME.
Adults Wellbeing and Health,Head of Adults,Third Party Payments,474101,Purchase of Care,11-Oct-2012,2505157-2058013,"1,218.74",CROFT HOUSE RESIDENTIAL HOME.
Adults Wellbeing and Health,Head of Adults,Third Party Payments,474101,Purchase of Care,11-Oct-2012,2505157-2058015,"1,951.87",CROFT HOUSE RESIDENTIAL HOME.
Adults Wellbeing and Health,Financing-Adult Services,Debtors,930024,Debtor-free nursing care,11-Oct-2012,2505157-2058016,590.09,CROFT HOUSE RESIDENTIAL HOME.
Adults Wellbeing and Health,Head of Adults,Third Party Payments,471101,Purchase of Care,11-Oct-2012,2505157-2058562,"1,083.28",CROFT HOUSE RESIDENTIAL HOME.
Adults Wellbeing and Health,Head of Adults,Third Party Payments,471101,Purchase of Care,11-Oct-2012,2505157-2058563,"4,125.76",CROFT HOUSE RESIDENTIAL HOME.
Adults Wellbeing and Health,Head of Adults,Third Party Payments,471101,Purchase of Care,11-Oct-2012,2505157-2058564,"1,365.64",CROFT HOUSE RESIDENTIAL HOME.
Adults Wellbeing and Health,Head of Adults,Third Party Payments,471101,Purchase of Care,11-Oct-2012,2505157-2058565,"1,925.76",CROFT HOUSE RESIDENTIAL HOME.
Adults Wellbeing and Health,Head of Adults,Third Party Payments,471101,Purchase of Care,11-Oct-2012,2505157-2058566,"1,397.80",CROFT HOUSE RESIDENTIAL HOME.
Adults Wellbeing and Health,Head of Adults,Third Party Payments,471101,Purchase of Care,11-Oct-2012,2505157-2058567,"1,406.64",CROFT HOUSE RESIDENTIAL HOME.
Adults Wellbeing and Health,Head of Adults,Third Party Payments,470101,Purchase of Care,11-Oct-2012,2505157-2059372,"1,073.93",CROFT HOUSE RESIDENTIAL HOME.
Adults Wellbeing and Health,Head of Adults,Third Party Payments,470101,Purchase of Care,11-Oct-2012,2505157-2059381,"1,367.17",CROFT HOUSE RESIDENTIAL HOME.
Adults Wellbeing and Health,Head of Adults,Third Party Payments,470101,Purchase of Care,11-Oct-2012,2505157-2059552,"1,857.24",CROFT HOUSE RESIDENTIAL HOME.
Adults Wellbeing and Health,Head of Adults,Third Party Payments,471101,Purchase of Care,11-Oct-2012,2505157-2059555,"1,925.76",CROFT HOUSE RESIDENTIAL HOME.
Adults Wellbeing and Health,Head of Adults,Third Party Payments,471101,Purchase of Care,11-Oct-2012,2505157-2059556,"1,925.76",CROFT HOUSE RESIDENTIAL HOME.
Adults Wellbeing and Health,Head of Adults,Third Party Payments,474101,Purchase of Care,11-Oct-2012,2505157-2059557,948.56,CROFT HOUSE RESIDENTIAL HOME.
Adults Wellbeing and Health,Financing-Adult Services,Debtors,930024,Debtor-free nursing care,11-Oct-2012,2505157-2059558,512.44,CROFT HOUSE RESIDENTIAL HOME.
Adults Wellbeing and Health,Head of Adults,Third Party Payments,470101,Purchase of Care,11-Oct-2012,2505158-2056011,"1,227.12",CROFT UNIT.
Adults Wellbeing and Health,Head of Adults,Third Party Payments,470101,Purchase of Care,11-Oct-2012,2505158-2057645,"1,703.92",CROFT UNIT.
Adults Wellbeing and Health,Head of Adults,Third Party Payments,470101,Purchase of Care,11-Oct-2012,2505158-2057646,"1,703.92",CROFT UNIT.
Adults Wellbeing and Health,Head of Adults,Third Party Payments,470101,Purchase of Care,11-Oct-2012,2505158-2057647,"1,214.00",CROFT UNIT.
Adults Wellbeing and Health,Head of Adults,Third Party Payments,470101,Purchase of Care,11-Oct-2012,2505158-2057648,"1,474.14",CROFT UNIT.
Adults Wellbeing and Health,Head of Adults,Third Party Payments,470101,Purchase of Care,11-Oct-2012,2505158-2057649,"1,026.00",CROFT UNIT.
Adults Wellbeing and Health,Head of Adults,Third Party Payments,470101,Purchase of Care,11-Oct-2012,2505158-2057650,"1,703.92",CROFT UNIT.
Adults Wellbeing and Health,Head of Adults,Third Party Payments,470101,Purchase of Care,11-Oct-2012,2505158-2057651,"1,227.12",CROFT UNIT.
Adults Wellbeing and Health,Head of Adults,Third Party Payments,470101,Purchase of Care,11-Oct-2012,2505158-2057652,"1,392.52",CROFT UNIT.
Adults Wellbeing and Health,Head of Adults,Third Party Payments,470101,Purchase of Care,11-Oct-2012,2505158-2057653,500.00,CROFT UNIT.
Adults Wellbeing and Health,Head of Adults,Third Party Payments,470101,Purchase of Care,11-Oct-2012,2505158-2057654,"1,703.92",CROFT UNIT.
Adults Wellbeing and Health,Head of Adults,Third Party Payments,472101,Purchase of Care,11-Oct-2012,2505167-1272378H,917.84,DALE CARE LTD.
Adults Wellbeing and Health,Head of Adults,Third Party Payments,472101,Purchase of Care,11-Oct-2012,2505167-1272411H,"1,033.92",DALE CARE LTD.
Adults Wellbeing and Health,Head of Adults,Third Party Payments,472101,Purchase of Care,11-Oct-2012,2505167-1272450H,"1,223.80",DALE CARE LTD.
Adults Wellbeing and Health,Head of Adults,Third Party Payments,472101,Purchase of Care,11-Oct-2012,2505167-1272470H,"1,315.25",DALE CARE LTD.
Adults Wellbeing and Health,Head of Adults,Third Party Payments,472101,Purchase of Care,11-Oct-2012,2505167-1272471H,534.52,DALE CARE LTD.
Adults Wellbeing and Health,Head of Adults,Third Party Payments,472101,Purchase of Care,11-Oct-2012,2505167-1272487H,534.52,DALE CARE LTD.
Adults Wellbeing and Health,Head of Adults,Third Party Payments,472101,Purchase of Care,11-Oct-2012,2505167-1272510H,601.36,DALE CARE LTD.
Adults Wellbeing and Health,Head of Adults,Third Party Payments,472101,Purchase of Care,11-Oct-2012,2505167-1272552H,"1,012.80",DALE CARE LTD.
Adults Wellbeing and Health,Head of Adults,Third Party Payments,472101,Purchase of Care,11-Oct-2012,2505167-1272565H,"1,213.26",DALE CARE LTD.
Adults Wellbeing and Health,Head of Adults,Third Party Payments,472101,Purchase of Care,11-Oct-2012,2505167-1272572H,664.64,DALE CARE LTD.
Adults Wellbeing and Health,Head of Adults,Third Party Payments,472101,Purchase of Care,11-Oct-2012,2505167-1272594H,946.87,DALE CARE LTD.
Adults Wellbeing and Health,Head of Adults,Third Party Payments,472101,Purchase of Care,11-Oct-2012,2505167-1272619H,506.40,DALE CARE LTD.
Adults Wellbeing and Health,Head of Adults,Third Party Payments,472101,Purchase of Care,11-Oct-2012,2505167-1272624H,527.50,DALE CARE LTD.
Adults Wellbeing and Health,Head of Adults,Third Party Payments,472101,Purchase of Care,11-Oct-2012,2505167-1272627H,685.76,DALE CARE LTD.
Adults Wellbeing and Health,Head of Adults,Third Party Payments,472101,Purchase of Care,11-Oct-2012,2505167-1272666H,720.92,DALE CARE LTD.
Adults Wellbeing and Health,Head of Adults,Third Party Payments,472113,Purchase of Care,11-Oct-2012,2505167-1272678H,928.44,DALE CARE LTD.
Adults Wellbeing and Health,Head of Adults,Third Party Payments,472113,Purchase of Care,11-Oct-2012,2505167-1272727H,991.72,DALE CARE LTD.
Adults Wellbeing and Health,Head of Adults,Third Party Payments,472101,Purchase of Care,11-Oct-2012,2505167-1272754H,738.52,DALE CARE LTD.
Adults Wellbeing and Health,Head of Adults,Third Party Payments,472101,Purchase of Care,11-Oct-2012,2505167-1272757H,"1,181.60",DALE CARE LTD.
Adults Wellbeing and Health,Head of Adults,Third Party Payments,472101,Purchase of Care,11-Oct-2012,2505167-1272768H,643.56,DALE CARE LTD.
Adults Wellbeing and Health,Head of Adults,Third Party Payments,472101,Purchase of Care,11-Oct-2012,2505167-1272800H,516.96,DALE CARE LTD.
Adults Wellbeing and Health,Head of Adults,Third Party Payments,472101,Purchase of Care,11-Oct-2012,2505167-1272820H,555.64,DALE CARE LTD.
Adults Wellbeing and Health,Head of Adults,Third Party Payments,472101,Purchase of Care,11-Oct-2012,2505167-1272827H,611.90,DALE CARE LTD.
Adults Wellbeing and Health,Head of Adults,Third Party Payments,472101,Purchase of Care,11-Oct-2012,2505167-1272846H,"2,268.24",DALE CARE LTD.
Adults Wellbeing and Health,Head of Adults,Third Party Payments,472101,Purchase of Care,11-Oct-2012,2505167-1272851H,541.56,DALE CARE LTD.
Adults Wellbeing and Health,Head of Adults,Third Party Payments,472101,Purchase of Care,11-Oct-2012,2505167-1272854H,580.24,DALE CARE LTD.
Adults Wellbeing and Health,Head of Adults,Third Party Payments,472101,Purchase of Care,11-Oct-2012,2505167-1272855H,622.44,DALE CARE LTD.
Adults Wellbeing and Health,Head of Adults,Third Party Payments,472101,Purchase of Care,11-Oct-2012,2505167-1272859H,"1,181.60",DALE CARE LTD.
Adults Wellbeing and Health,Head of Adults,Third Party Payments,472101,Purchase of Care,11-Oct-2012,2505167-1272862H,553.89,DALE CARE LTD.
Adults Wellbeing and Health,Head of Adults,Third Party Payments,472101,Purchase of Care,11-Oct-2012,2505167-1272865H,654.12,DALE CARE LTD.
Adults Wellbeing and Health,Head of Adults,Third Party Payments,472101,Purchase of Care,11-Oct-2012,2505167-1272871H,648.82,DALE CARE LTD.
Adults Wellbeing and Health,Head of Adults,Third Party Payments,472101,Purchase of Care,11-Oct-2012,2505167-1272873H,"1,329.32",DALE CARE LTD.
Adults Wellbeing and Health,Head of Adults,Third Party Payments,472101,Purchase of Care,11-Oct-2012,2505167-1272887H,"1,065.56",DALE CARE LTD.
Adults Wellbeing and Health,Head of Adults,Third Party Payments,472101,Purchase of Care,11-Oct-2012,2505167-1272895H,555.62,DALE CARE LTD.
Adults Wellbeing and Health,Head of Adults,Third Party Payments,472101,Purchase of Care,11-Oct-2012,2505167-1272926H,727.96,DALE CARE LTD.
Adults Wellbeing and Health,Head of Adults,Third Party Payments,472101,Purchase of Care,11-Oct-2012,2505167-1272928H,530.14,DALE CARE LTD.
Adults Wellbeing and Health,Head of Adults,Third Party Payments,472101,Purchase of Care,11-Oct-2012,2505167-1272932H,"1,730.20",DALE CARE LTD.
Adults Wellbeing and Health,Head of Adults,Third Party Payments,472101,Purchase of Care,11-Oct-2012,2505167-1272949H,696.32,DALE CARE LTD.
Adults Wellbeing and Health,Head of Adults,Third Party Payments,472101,Purchase of Care,11-Oct-2012,2505167-1272952H,654.98,DALE CARE LTD.
Adults Wellbeing and Health,Head of Adults,Third Party Payments,472101,Purchase of Care,11-Oct-2012,2505167-1272960H,590.80,DALE CARE LTD.
Adults Wellbeing and Health,Head of Adults,Third Party Payments,472101,Purchase of Care,11-Oct-2012,2505167-1272994H,569.72,DALE CARE LTD.
Adults Wellbeing and Health,Head of Adults,Third Party Payments,472101,Purchase of Care,11-Oct-2012,2505167-1273006H,858.08,DALE CARE LTD.
Adults Wellbeing and Health,Head of Adults,Third Party Payments,472101,Purchase of Care,11-Oct-2012,2505167-1273010H,886.20,DALE CARE LTD.
Adults Wellbeing and Health,Head of Adults,Third Party Payments,472101,Purchase of Care,11-Oct-2012,2505167-1273024H,504.64,DALE CARE LTD.
Adults Wellbeing and Health,Head of Adults,Third Party Payments,472101,Purchase of Care,11-Oct-2012,2505167-1273034H,590.80,DALE CARE LTD.
Adults Wellbeing and Health,Head of Adults,Third Party Payments,472101,Purchase of Care,11-Oct-2012,2505167-1273045H,587.28,DALE CARE LTD.
Adults Wellbeing and Health,Head of Adults,Third Party Payments,472101,Purchase of Care,11-Oct-2012,2505167-1273057H,535.41,DALE CARE LTD.
Adults Wellbeing and Health,Head of Adults,Third Party Payments,472101,Purchase of Care,11-Oct-2012,2505167-1273073H,"6,615.00",DALE CARE LTD.
Adults Wellbeing and Health,Head of Adults,Third Party Payments,472101,Purchase of Care,11-Oct-2012,2505167-1273077H,"1,128.85",DALE CARE LTD.
Adults Wellbeing and Health,Head of Adults,Third Party Payments,472101,Purchase of Care,11-Oct-2012,2505167-1273252H,611.92,DALE CARE LTD.
Adults Wellbeing and Health,Head of Adults,Third Party Payments,472101,Purchase of Care,11-Oct-2012,2505167-1273295H,654.12,DALE CARE LTD.
Adults Wellbeing and Health,Head of Adults,Third Party Payments,472101,Purchase of Care,11-Oct-2012,2505167-1273390H,759.60,DALE CARE LTD.
Adults Wellbeing and Health,Head of Adults,Third Party Payments,472101,Purchase of Care,11-Oct-2012,2505167-1273767H,"1,012.80",DALE CARE LTD.
Adults Wellbeing and Health,Head of Adults,Third Party Payments,472101,Purchase of Care,11-Oct-2012,2505167-1273788H,586.40,DALE CARE LTD.
Adults Wellbeing and Health,Head of Adults,Third Party Payments,472101,Purchase of Care,11-Oct-2012,2505167-1273801H,738.52,DALE CARE LTD.
Adults Wellbeing and Health,Head of Adults,Third Party Payments,472101,Purchase of Care,11-Oct-2012,2505167-1273889H,"1,519.20",DALE CARE LTD.
Adults Wellbeing and Health,Head of Adults,Third Party Payments,472101,Purchase of Care,11-Oct-2012,2505167-1273898H,506.40,DALE CARE LTD.
Adults Wellbeing and Health,Head of Adults,Third Party Payments,472101,Purchase of Care,11-Oct-2012,2505167-1273923H,559.16,DALE CARE LTD.
Adults Wellbeing and Health,Head of Adults,Third Party Payments,472101,Purchase of Care,11-Oct-2012,2505167-1273946H,511.69,DALE CARE LTD.
Adults Wellbeing and Health,Head of Adults,Third Party Payments,472101,Purchase of Care,11-Oct-2012,2505167-1273994H,675.20,DALE CARE LTD.
Adults Wellbeing and Health,Head of Adults,Third Party Payments,472101,Purchase of Care,11-Oct-2012,2505167-1274021H,534.52,DALE CARE LTD.
Adults Wellbeing and Health,Head of Adults,Third Party Payments,472101,Purchase of Care,11-Oct-2012,2505167-1274023H,548.60,DALE CARE LTD.
Adults Wellbeing and Health,Head of Adults,Third Party Payments,472101,Purchase of Care,11-Oct-2012,2505167-1274031H,675.20,DALE CARE LTD.
Adults Wellbeing and Health,Head of Adults,Third Party Payments,472101,Purchase of Care,11-Oct-2012,2505167-1274079H,516.96,DALE CARE LTD.
Adults Wellbeing and Health,Head of Adults,Third Party Payments,472101,Purchase of Care,11-Oct-2012,2505167-1274113H,516.96,DALE CARE LTD.
Adults Wellbeing and Health,Head of Adults,Third Party Payments,472101,Purchase of Care,11-Oct-2012,2505167-1274121H,590.80,DALE CARE LTD.
Adults Wellbeing and Health,Head of Adults,Third Party Payments,472101,Purchase of Care,11-Oct-2012,2505167-1274235H,886.20,DALE CARE LTD.
Adults Wellbeing and Health,Head of Adults,Third Party Payments,472101,Purchase of Care,11-Oct-2012,2505167-1274254H,576.72,DALE CARE LTD.
Adults Wellbeing and Health,Head of Adults,Third Party Payments,472101,Purchase of Care,11-Oct-2012,2505167-1274260H,501.12,DALE CARE LTD.
Adults Wellbeing and Health,Head of Adults,Third Party Payments,472101,Purchase of Care,11-Oct-2012,2505167-1274295H,"1,329.32",DALE CARE LTD.
Adults Wellbeing and Health,Head of Adults,Third Party Payments,472101,Purchase of Care,11-Oct-2012,2505167-1274301H,726.19,DALE CARE LTD.
Adults Wellbeing and Health,Head of Adults,Third Party Payments,472101,Purchase of Care,11-Oct-2012,2505167-1274314H,"1,263.12",DALE CARE LTD.
Adults Wellbeing and Health,Head of Adults,Third Party Payments,472101,Purchase of Care,11-Oct-2012,2505167-1274330H,567.95,DALE CARE LTD.
Adults Wellbeing and Health,Head of Adults,Third Party Payments,472101,Purchase of Care,11-Oct-2012,2505167-1274352H,668.16,DALE CARE LTD.
Adults Wellbeing and Health,Head of Adults,Third Party Payments,472101,Purchase of Care,11-Oct-2012,2505167-1274360H,611.92,DALE CARE LTD.
Adults Wellbeing and Health,Head of Adults,Third Party Payments,472101,Purchase of Care,11-Oct-2012,2505167-1274379H,611.92,DALE CARE LTD.
Adults Wellbeing and Health,Head of Adults,Third Party Payments,472101,Purchase of Care,11-Oct-2012,2505167-1274410H,590.80,DALE CARE LTD.
Adults Wellbeing and Health,Head of Adults,Third Party Payments,472101,Purchase of Care,11-Oct-2012,2505167-1274469H,508.15,DALE CARE LTD.
Adults Wellbeing and Health,Head of Adults,Third Party Payments,472101,Purchase of Care,11-Oct-2012,2505167-1274475H,633.01,DALE CARE LTD.
Adults Wellbeing and Health,Head of Adults,Third Party Payments,472101,Purchase of Care,11-Oct-2012,2505167-1274513H,759.60,DALE CARE LTD.
Adults Wellbeing and Health,Head of Adults,Third Party Payments,472101,Purchase of Care,11-Oct-2012,2505167-1274826H,"1,181.60",DALE CARE LTD.
Adults Wellbeing and Health,Head of Adults,Third Party Payments,472101,Purchase of Care,11-Oct-2012,2505167-1274830H,966.00,DALE CARE LTD.
Adults Wellbeing and Health,Head of Adults,Third Party Payments,472101,Purchase of Care,11-Oct-2012,2505167-1274843H,601.36,DALE CARE LTD.
Adults Wellbeing and Health,Head of Adults,Third Party Payments,472101,Purchase of Care,11-Oct-2012,2505167-1274865H,928.44,DALE CARE LTD.
Adults Wellbeing and Health,Head of Adults,Third Party Payments,472101,Purchase of Care,11-Oct-2012,2505167-1274931H,"1,329.32",DALE CARE LTD.
Adults Wellbeing and Health,Head of Adults,Third Party Payments,472101,Purchase of Care,11-Oct-2012,2505167-1275029H,615.40,DALE CARE LTD.
Adults Wellbeing and Health,Head of Adults,Third Party Payments,472101,Purchase of Care,11-Oct-2012,2505167-1275032H,958.29,DALE CARE LTD.
Adults Wellbeing and Health,Head of Adults,Third Party Payments,472101,Purchase of Care,11-Oct-2012,2505167-1275052H,552.12,DALE CARE LTD.
Adults Wellbeing and Health,Head of Adults,Third Party Payments,472101,Purchase of Care,11-Oct-2012,2505167-1275063H,822.92,DALE CARE LTD.
Adults Wellbeing and Health,Head of Adults,Third Party Payments,472101,Purchase of Care,11-Oct-2012,2505167-1275094H,"1,068.20",DALE CARE LTD.
Adults Wellbeing and Health,Head of Adults,Third Party Payments,472101,Purchase of Care,11-Oct-2012,2505167-1275113H,738.52,DALE CARE LTD.
Adults Wellbeing and Health,Head of Adults,Third Party Payments,472101,Purchase of Care,11-Oct-2012,2505167-1275114H,590.80,DALE CARE LTD.
Adults Wellbeing and Health,Head of Adults,Third Party Payments,472101,Purchase of Care,11-Oct-2012,2505167-1275151H,633.00,DALE CARE LTD.
Adults Wellbeing and Health,Head of Adults,Third Party Payments,472101,Purchase of Care,11-Oct-2012,2505167-1275158H,527.52,DALE CARE LTD.
Adults Wellbeing and Health,Head of Adults,Third Party Payments,472101,Purchase of Care,11-Oct-2012,2505167-1275164H,516.96,DALE CARE LTD.
Adults Wellbeing and Health,Head of Adults,Third Party Payments,472101,Purchase of Care,11-Oct-2012,2505167-1275184H,633.01,DALE CARE LTD.
Adults Wellbeing and Health,Head of Adults,Third Party Payments,472101,Purchase of Care,11-Oct-2012,2505167-1275218H,"1,639.65",DALE CARE LTD.
Adults Wellbeing and Health,Head of Adults,Third Party Payments,472101,Purchase of Care,11-Oct-2012,2505167-1275233H,654.12,DALE CARE LTD.
Adults Wellbeing and Health,Head of Adults,Third Party Payments,472101,Purchase of Care,11-Oct-2012,2505167-1275238H,606.62,DALE CARE LTD.
Adults Wellbeing and Health,Head of Adults,Third Party Payments,472101,Purchase of Care,11-Oct-2012,2505167-1275258H,735.00,DALE CARE LTD.
Adults Wellbeing and Health,Head of Adults,Third Party Payments,472101,Purchase of Care,11-Oct-2012,2505167-1275264H,531.00,DALE CARE LTD.
Adults Wellbeing and Health,Head of Adults,Third Party Payments,472101,Purchase of Care,11-Oct-2012,2505167-1275314H,513.44,DALE CARE LTD.
Adults Wellbeing and Health,Head of Adults,Third Party Payments,472101,Purchase of Care,11-Oct-2012,2505167-1275338H,691.90,DALE CARE LTD.
Adults Wellbeing and Health,Head of Adults,Third Party Payments,472101,Purchase of Care,11-Oct-2012,2505167-1275412H,611.92,DALE CARE LTD.
Adults Wellbeing and Health,Head of Adults,Third Party Payments,472101,Purchase of Care,11-Oct-2012,2505167-1275526H,"1,181.60",DALE CARE LTD.
Adults Wellbeing and Health,Head of Adults,Third Party Payments,472101,Purchase of Care,11-Oct-2012,2505167-1275620H,576.72,DALE CARE LTD.
Adults Wellbeing and Health,Head of Adults,Third Party Payments,472101,Purchase of Care,11-Oct-2012,2505167-1275650H,"1,593.04",DALE CARE LTD.
Adults Wellbeing and Health,Head of Adults,Third Party Payments,472101,Purchase of Care,11-Oct-2012,2505167-1275712H,738.52,DALE CARE LTD.
Adults Wellbeing and Health,Head of Adults,Third Party Payments,472101,Purchase of Care,11-Oct-2012,2505167-1275806H,548.60,DALE CARE LTD.
Adults Wellbeing and Health,Head of Adults,Third Party Payments,472101,Purchase of Care,11-Oct-2012,2505167-1275815H,675.20,DALE CARE LTD.
Adults Wellbeing and Health,Head of Adults,Third Party Payments,472101,Purchase of Care,11-Oct-2012,2505167-1275832H,855.40,DALE CARE LTD.
Adults Wellbeing and Health,Head of Adults,Third Party Payments,472101,Purchase of Care,11-Oct-2012,2505167-1275840H,522.23,DALE CARE LTD.
Adults Wellbeing and Health,Head of Adults,Third Party Payments,472101,Purchase of Care,11-Oct-2012,2505167-1275841H,638.27,DALE CARE LTD.
Adults Wellbeing and Health,Head of Adults,Third Party Payments,472101,Purchase of Care,11-Oct-2012,2505167-1275844H,668.16,DALE CARE LTD.
Adults Wellbeing and Health,Head of Adults,Third Party Payments,472101,Purchase of Care,11-Oct-2012,2505167-1275888H,685.76,DALE CARE LTD.
Adults Wellbeing and Health,Head of Adults,Third Party Payments,472101,Purchase of Care,11-Oct-2012,2505167-1275928H,"2,278.98",DALE CARE LTD.
Adults Wellbeing and Health,Head of Adults,Third Party Payments,472101,Purchase of Care,11-Oct-2012,2505167-1275936H,801.80,DALE CARE LTD.
Adults Wellbeing and Health,Head of Adults,Third Party Payments,472101,Purchase of Care,11-Oct-2012,2505167-1275938H,524.00,DALE CARE LTD.
Adults Wellbeing and Health,Head of Adults,Third Party Payments,472101,Purchase of Care,11-Oct-2012,2505167-1275958H,675.20,DALE CARE LTD.
Adults Wellbeing and Health,Head of Adults,Third Party Payments,472101,Purchase of Care,11-Oct-2012,2505167-1275967H,567.07,DALE CARE LTD.
Adults Wellbeing and Health,Head of Adults,Third Party Payments,472101,Purchase of Care,11-Oct-2012,2505167-1275973H,647.25,DALE CARE LTD.
Adults Wellbeing and Health,Head of Adults,Third Party Payments,472101,Purchase of Care,11-Oct-2012,2505167-1276038H,527.52,DALE CARE LTD.
Adults Wellbeing and Health,Head of Adults,Third Party Payments,472101,Purchase of Care,11-Oct-2012,2505167-1276039H,501.13,DALE CARE LTD.
Adults Wellbeing and Health,Head of Adults,Third Party Payments,472113,Purchase of Care,11-Oct-2012,2505167-1276045H,807.11,DALE CARE LTD.
Adults Wellbeing and Health,Head of Adults,Third Party Payments,472101,Purchase of Care,11-Oct-2012,2505167-1276073H,594.32,DALE CARE LTD.
Adults Wellbeing and Health,Head of Adults,Third Party Payments,472101,Purchase of Care,11-Oct-2012,2505167-1276079H,559.16,DALE CARE LTD.
Adults Wellbeing and Health,Head of Adults,Third Party Payments,472101,Purchase of Care,11-Oct-2012,2505167-1276084H,749.04,DALE CARE LTD.
Adults Wellbeing and Health,Head of Adults,Third Party Payments,472101,Purchase of Care,11-Oct-2012,2505167-1276104H,664.64,DALE CARE LTD.
Adults Wellbeing and Health,Head of Adults,Third Party Payments,472101,Purchase of Care,11-Oct-2012,2505167-1276116H,527.52,DALE CARE LTD.
Adults Wellbeing and Health,Head of Adults,Third Party Payments,472101,Purchase of Care,11-Oct-2012,2505167-1276170H,749.06,DALE CARE LTD.
Adults Wellbeing and Health,Head of Adults,Third Party Payments,472101,Purchase of Care,11-Oct-2012,2505167-1276183H,548.60,DALE CARE LTD.
Adults Wellbeing and Health,Head of Adults,Third Party Payments,472101,Purchase of Care,11-Oct-2012,2505167-1276244H,593.44,DALE CARE LTD.
Adults Wellbeing and Health,Head of Adults,Third Party Payments,472101,Purchase of Care,11-Oct-2012,2505167-1276266H,886.20,DALE CARE LTD.
Adults Wellbeing and Health,Head of Adults,Third Party Payments,472101,Purchase of Care,11-Oct-2012,2505167-1276331H,"1,076.12",DALE CARE LTD.
Adults Wellbeing and Health,Head of Adults,Third Party Payments,472101,Purchase of Care,11-Oct-2012,2505167-1276371H,622.44,DALE CARE LTD.
Adults Wellbeing and Health,Head of Adults,Third Party Payments,472101,Purchase of Care,11-Oct-2012,2505167-1276380H,590.80,DALE CARE LTD.
Adults Wellbeing and Health,Head of Adults,Third Party Payments,472101,Purchase of Care,11-Oct-2012,2505167-1276402H,548.62,DALE CARE LTD.
Adults Wellbeing and Health,Head of Adults,Third Party Payments,472101,Purchase of Care,11-Oct-2012,2505167-1276406H,685.74,DALE CARE LTD.
Adults Wellbeing and Health,Head of Adults,Third Party Payments,472101,Purchase of Care,11-Oct-2012,2505167-1276411H,662.02,DALE CARE LTD.
Adults Wellbeing and Health,Head of Adults,Third Party Payments,472113,Purchase of Care,11-Oct-2012,2505167-1276422H,759.64,DALE CARE LTD.
Adults Wellbeing and Health,Head of Adults,Third Party Payments,472101,Purchase of Care,11-Oct-2012,2505167-1276425H,701.58,DALE CARE LTD.
Adults Wellbeing and Health,Head of Adults,Third Party Payments,472101,Purchase of Care,11-Oct-2012,2505167-1276433H,886.20,DALE CARE LTD.
Adults Wellbeing and Health,Head of Adults,Third Party Payments,472101,Purchase of Care,11-Oct-2012,2505167-1276438H,"1,107.76",DALE CARE LTD.
Adults Wellbeing and Health,Head of Adults,Third Party Payments,472101,Purchase of Care,11-Oct-2012,2505167-1276471H,511.68,DALE CARE LTD.
Adults Wellbeing and Health,Head of Adults,Third Party Payments,472101,Purchase of Care,11-Oct-2012,2505167-1276473H,759.60,DALE CARE LTD.
Adults Wellbeing and Health,Head of Adults,Third Party Payments,472101,Purchase of Care,11-Oct-2012,2505167-1276488H,675.20,DALE CARE LTD.
Adults Wellbeing and Health,Head of Adults,Third Party Payments,472101,Purchase of Care,11-Oct-2012,2505167-1276491H,527.50,DALE CARE LTD.
Adults Wellbeing and Health,Head of Adults,Third Party Payments,472101,Purchase of Care,11-Oct-2012,2505167-1276536H,865.10,DALE CARE LTD.
Adults Wellbeing and Health,Head of Adults,Third Party Payments,472101,Purchase of Care,11-Oct-2012,2505167-1276568H,749.04,DALE CARE LTD.
Adults Wellbeing and Health,Head of Adults,Third Party Payments,472101,Purchase of Care,11-Oct-2012,2505167-1276570H,745.52,DALE CARE LTD.
Adults Wellbeing and Health,Head of Adults,Third Party Payments,472101,Purchase of Care,11-Oct-2012,2505167-1276573H,"1,477.00",DALE CARE LTD.
Adults Wellbeing and Health,Head of Adults,Third Party Payments,472101,Purchase of Care,11-Oct-2012,2505167-1276598H,531.00,DALE CARE LTD.
Adults Wellbeing and Health,Head of Adults,Third Party Payments,472101,Purchase of Care,11-Oct-2012,2505167-1276645H,938.96,DALE CARE LTD.
Adults Wellbeing and Health,Head of Adults,Third Party Payments,472101,Purchase of Care,11-Oct-2012,2505167-1276654H,"1,213.24",DALE CARE LTD.
Adults Wellbeing and Health,Head of Adults,Third Party Payments,472101,Purchase of Care,11-Oct-2012,2505167-1276660H,656.74,DALE CARE LTD.
Adults Wellbeing and Health,Head of Adults,Third Party Payments,472101,Purchase of Care,11-Oct-2012,2505167-1276664H,886.20,DALE CARE LTD.
Adults Wellbeing and Health,Head of Adults,Third Party Payments,472113,Purchase of Care,11-Oct-2012,2505167-1276826H,"1,002.28",DALE CARE LTD.
Adults Wellbeing and Health,Head of Adults,Third Party Payments,472101,Purchase of Care,11-Oct-2012,2505167-1276875H,752.56,DALE CARE LTD.
Adults Wellbeing and Health,Head of Adults,Third Party Payments,472101,Purchase of Care,11-Oct-2012,2505167-1276886H,"1,447.11",DALE CARE LTD.
Adults Wellbeing and Health,Head of Adults,Third Party Payments,472101,Purchase of Care,11-Oct-2012,2505167-1276890H,622.44,DALE CARE LTD.
Adults Wellbeing and Health,Head of Adults,Third Party Payments,472101,Purchase of Care,11-Oct-2012,2505167-1276918H,"1,139.40",DALE CARE LTD.
Adults Wellbeing and Health,Head of Adults,Third Party Payments,472101,Purchase of Care,11-Oct-2012,2505167-1276922H,812.36,DALE CARE LTD.
Adults Wellbeing and Health,Head of Adults,Third Party Payments,472101,Purchase of Care,11-Oct-2012,2505167-1276960H,592.56,DALE CARE LTD.
Adults Wellbeing and Health,Head of Adults,Third Party Payments,472101,Purchase of Care,11-Oct-2012,2505167-1276967H,590.80,DALE CARE LTD.
Adults Wellbeing and Health,Head of Adults,Third Party Payments,472101,Purchase of Care,11-Oct-2012,2505167-1276984H,"1,582.52",DALE CARE LTD.
Adults Wellbeing and Health,Head of Adults,Third Party Payments,472101,Purchase of Care,11-Oct-2012,2505167-1276985H,"1,371.52",DALE CARE LTD.
Adults Wellbeing and Health,Head of Adults,Third Party Payments,472101,Purchase of Care,11-Oct-2012,2505167-1277069H,984.68,DALE CARE LTD.
Adults Wellbeing and Health,Head of Adults,Third Party Payments,472101,Purchase of Care,11-Oct-2012,2505167-1277070H,571.47,DALE CARE LTD.
Adults Wellbeing and Health,Head of Adults,Third Party Payments,472101,Purchase of Care,11-Oct-2012,2505167-1277079H,527.52,DALE CARE LTD.
Adults Wellbeing and Health,Head of Adults,Third Party Payments,472101,Purchase of Care,11-Oct-2012,2505167-1277099H,865.10,DALE CARE LTD.
Adults Wellbeing and Health,Head of Adults,Third Party Payments,472101,Purchase of Care,11-Oct-2012,2505167-1277130H,685.76,DALE CARE LTD.
Adults Wellbeing and Health,Head of Adults,Third Party Payments,472101,Purchase of Care,11-Oct-2012,2505167-1277138H,643.56,DALE CARE LTD.
Adults Wellbeing and Health,Head of Adults,Third Party Payments,472101,Purchase of Care,11-Oct-2012,2505167-1277157H,511.68,DALE CARE LTD.
Adults Wellbeing and Health,Head of Adults,Third Party Payments,472101,Purchase of Care,11-Oct-2012,2505167-1277200H,"1,197.43",DALE CARE LTD.
Adults Wellbeing and Health,Head of Adults,Third Party Payments,472101,Purchase of Care,11-Oct-2012,2505167-1277215H,"1,181.60",DALE CARE LTD.
Adults Wellbeing and Health,Head of Adults,Third Party Payments,472101,Purchase of Care,11-Oct-2012,2505167-1277230H,738.52,DALE CARE LTD.
Adults Wellbeing and Health,Head of Adults,Third Party Payments,472101,Purchase of Care,11-Oct-2012,2505167-1277284H,928.40,DALE CARE LTD.
Adults Wellbeing and Health,Head of Adults,Third Party Payments,472101,Purchase of Care,11-Oct-2012,2505167-1277291H,604.88,DALE CARE LTD.
Adults Wellbeing and Health,Head of Adults,Third Party Payments,472101,Purchase of Care,11-Oct-2012,2505167-1277322H,"1,920.24",DALE CARE LTD.
Adults Wellbeing and Health,Head of Adults,Third Party Payments,472101,Purchase of Care,11-Oct-2012,2505167-1277335H,643.56,DALE CARE LTD.
Adults Wellbeing and Health,Head of Adults,Third Party Payments,472101,Purchase of Care,11-Oct-2012,2505167-1277337H,611.92,DALE CARE LTD.
Adults Wellbeing and Health,Head of Adults,Third Party Payments,472101,Purchase of Care,11-Oct-2012,2505167-1277367H,569.72,DALE CARE LTD.
Adults Wellbeing and Health,Head of Adults,Third Party Payments,472101,Purchase of Care,11-Oct-2012,2505167-1277398H,633.00,DALE CARE LTD.
Adults Wellbeing and Health,Head of Adults,Third Party Payments,472101,Purchase of Care,11-Oct-2012,2505167-1277424H,907.32,DALE CARE LTD.
Adults Wellbeing and Health,Head of Adults,Third Party Payments,472113,Purchase of Care,11-Oct-2012,2505167-1277463H,833.48,DALE CARE LTD.
Adults Wellbeing and Health,Head of Adults,Third Party Payments,472101,Purchase of Care,11-Oct-2012,2505167-1277473H,738.52,DALE CARE LTD.
Adults Wellbeing and Health,Head of Adults,Third Party Payments,472101,Purchase of Care,11-Oct-2012,2505167-1277501H,516.96,DALE CARE LTD.
